Body Name,Body,Service Area Catergorisation,Service Division Catergorisation,Responsible Unit,Expenses Type,Detailed Expenses Type,Expenses Code,Date,Transaction Number,Amount,Capital / Revenue,Supplier Name,Supplier ID
North East Lincolnshire Council,http://statistics.data.gov.uk/id/local-authority/00FC),Gov  Dem Community Engagement,Gov Dem & Community Engagement,The Knoll - Armed Forces Hub,Cap Land/Build-Build Enh Wrk,Cap Land/Build-Build Enh Wrk,YA102,06/12/2018,544883,800,CAPITAL,JOINT SERVICES MAJOR EVENTS TEAM N E LINCS,109747
North East Lincolnshire Council,http://statistics.data.gov.uk/id/local-authority/00FC),Gov  Dem Community Engagement,Gov Dem & Community Engagement,The Knoll - Armed Forces Hub,Cap Land/Build-Build Enh Wrk,Cap Land/Build-Build Enh Wrk,YA102,12/12/2018,546171,2860,CAPITAL,JOINT SERVICES MAJOR EVENTS TEAM N E LINCS,109747
North East Lincolnshire Council,http://statistics.data.gov.uk/id/local-authority/00FC),Finance Operations & Resources,Resources,Backlog Maintenance,Cap Land/Build-Prof Fees,Cap Land/Build-Prof Fees,YA103,21/12/2018,548505,780.65,CAPITAL,ENGIE SERVICES LTD,133267
North East Lincolnshire Council,http://statistics.data.gov.uk/id/local-authority/00FC),Finance Operations & Resources,Resources,Backlog Maintenance,Cap Land/Build-Build Enh Wrk,Cap Land/Build-Build Enh Wrk,YA102,06/12/2018,544901,6899.1,CAPITAL,TOPCON CONSTRUCTION LTD,108462
North East Lincolnshire Council,http://statistics.data.gov.uk/id/local-authority/00FC),Finance Operations & Resources,Resources,Backlog Maintenance,Cap Land/Build-Prof Fees,Cap Land/Build-Prof Fees,YA103,21/12/2018,548525,568.75,CAPITAL,ENGIE SERVICES LTD,133267
North East Lincolnshire Council,http://statistics.data.gov.uk/id/local-authority/00FC),Finance Operations & Resources,Resources,Backlog Maintenance,Cap Land/Build-Prof Fees,Cap Land/Build-Prof Fees,YA103,21/12/2018,548526,389.35,CAPITAL,ENGIE SERVICES LTD,133267
North East Lincolnshire Council,http://statistics.data.gov.uk/id/local-authority/00FC),Finance Operations & Resources,Resources,Backlog Maintenance,Cap Land/Build-Build Enh Wrk,Cap Land/Build-Build Enh Wrk,YA102,18/12/2018,547497,20702.64,CAPITAL,F R TOWNSEND & CO LTD,104217
North East Lincolnshire Council,http://statistics.data.gov.uk/id/local-authority/00FC),Finance Operations & Resources,Resources,Backlog Maintenance,Cap Land/Build-Build Enh Wrk,Cap Land/Build-Build Enh Wrk,YA102,06/12/2018,544904,8940,CAPITAL,ETON-LINCS LIMITED,101510
North East Lincolnshire Council,http://statistics.data.gov.uk/id/local-authority/00FC),Finance Operations & Resources,Resources,Backlog Maintenance,Cap Land/Build-Build Enh Wrk,Cap Land/Build-Build Enh Wrk,YA102,18/12/2018,547517,3938,CAPITAL,LINCS ELECTRICAL SERVICES LTD,102044
North East Lincolnshire Council,http://statistics.data.gov.uk/id/local-authority/00FC),Finance Operations & Resources,Resources,Backlog Maintenance,Cap Land/Build-Prof Fees,Cap Land/Build-Prof Fees,YA103,21/12/2018,548503,2691.34,CAPITAL,ENGIE SERVICES LTD,133267
North East Lincolnshire Council,http://statistics.data.gov.uk/id/local-authority/00FC),Finance Operations & Resources,Resources,Backlog Maintenance,Cap Land/Build-Prof Fees,Cap Land/Build-Prof Fees,YA103,21/12/2018,548509,1046.76,CAPITAL,ENGIE SERVICES LTD,133267
North East Lincolnshire Council,http://statistics.data.gov.uk/id/local-authority/00FC),Finance Operations & Resources,Resources,Backlog Maintenance,Cap Land/Build-Prof Fees,Cap Land/Build-Prof Fees,YA103,21/12/2018,548513,1800.47,CAPITAL,ENGIE SERVICES LTD,133267
North East Lincolnshire Council,http://statistics.data.gov.uk/id/local-authority/00FC),Finance Operations & Resources,Resources,Backlog Maintenance,Cap Land/Build-Prof Fees,Cap Land/Build-Prof Fees,YA103,21/12/2018,548514,1124.47,CAPITAL,ENGIE SERVICES LTD,133267
North East Lincolnshire Council,http://statistics.data.gov.uk/id/local-authority/00FC),Finance Operations & Resources,Resources,Backlog Maintenance,Cap Land/Build-Prof Fees,Cap Land/Build-Prof Fees,YA103,21/12/2018,548515,696.15,CAPITAL,ENGIE SERVICES LTD,133267
North East Lincolnshire Council,http://statistics.data.gov.uk/id/local-authority/00FC),Finance Operations & Resources,Resources,Backlog Maintenance,Cap Land/Build-Prof Fees,Cap Land/Build-Prof Fees,YA103,21/12/2018,548511,1822.86,CAPITAL,ENGIE SERVICES LTD,133267
North East Lincolnshire Council,http://statistics.data.gov.uk/id/local-authority/00FC),Finance Operations & Resources,Resources,Backlog Maintenance,Cap Land/Build-Prof Fees,Cap Land/Build-Prof Fees,YA103,21/12/2018,548510,417,CAPITAL,ENGIE SERVICES LTD,133267
North East Lincolnshire Council,http://statistics.data.gov.uk/id/local-authority/00FC),Finance Operations & Resources,Resources,Backlog Maintenance,Cap Land/Build-Prof Fees,Cap Land/Build-Prof Fees,YA103,21/12/2018,548521,691.6,CAPITAL,ENGIE SERVICES LTD,133267
North East Lincolnshire Council,http://statistics.data.gov.uk/id/local-authority/00FC),Finance Operations & Resources,Resources,Backlog Maintenance,Cap Land/Build-Prof Fees,Cap Land/Build-Prof Fees,YA103,21/12/2018,548524,975,CAPITAL,ENGIE SERVICES LTD,133267
North East Lincolnshire Council,http://statistics.data.gov.uk/id/local-authority/00FC),Finance Operations & Resources,Resources,Backlog Maintenance,Cap Land/Build-Build Enh Wrk,Cap Land/Build-Build Enh Wrk,YA102,21/12/2018,548520,2970.5,CAPITAL,ENGIE SERVICES LTD,133267
North East Lincolnshire Council,http://statistics.data.gov.uk/id/local-authority/00FC),Finance Operations & Resources,Resources,Backlog Maintenance,Cap Land/Build-Prof Fees,Cap Land/Build-Prof Fees,YA103,21/12/2018,548507,6364.8,CAPITAL,ENGIE SERVICES LTD,133267
North East Lincolnshire Council,http://statistics.data.gov.uk/id/local-authority/00FC),Finance Operations & Resources,Resources,Backlog Maintenance,Cap Land/Build-Prof Fees,Cap Land/Build-Prof Fees,YA103,21/12/2018,548516,1004.12,CAPITAL,ENGIE SERVICES LTD,133267
North East Lincolnshire Council,http://statistics.data.gov.uk/id/local-authority/00FC),Finance Operations & Resources,Resources,Backlog Maintenance,Cap Land/Build-Prof Fees,Cap Land/Build-Prof Fees,YA103,21/12/2018,548508,5770.62,CAPITAL,ENGIE SERVICES LTD,133267
North East Lincolnshire Council,http://statistics.data.gov.uk/id/local-authority/00FC),Finance Operations & Resources,Resources,Backlog Maintenance,Cap Land/Build-Prof Fees,Cap Land/Build-Prof Fees,YA103,21/12/2018,548504,1930.57,CAPITAL,ENGIE SERVICES LTD,133267
North East Lincolnshire Council,http://statistics.data.gov.uk/id/local-authority/00FC),Finance Operations & Resources,Resources,Property Rationalisation Prog,Cap Land/Build-Build Enh Wrk,Cap Land/Build-Build Enh Wrk,YA102,06/12/2018,544898,1495,CAPITAL,LINCS ELECTRICAL SERVICES LTD,102044
North East Lincolnshire Council,http://statistics.data.gov.uk/id/local-authority/00FC),Finance Operations & Resources,Resources,Property Rationalisation Prog,Cap Land/Build-Build Enh Wrk,Cap Land/Build-Build Enh Wrk,YA102,20/12/2018,547635,5055,CAPITAL,ENGIE SERVICES LTD,133267
North East Lincolnshire Council,http://statistics.data.gov.uk/id/local-authority/00FC),Finance Operations & Resources,Resources,Property Rationalisation Prog,Cap Land/Build-Prof Fees,Cap Land/Build-Prof Fees,YA103,21/12/2018,548512,1968.9,CAPITAL,ENGIE SERVICES LTD,133267
North East Lincolnshire Council,http://statistics.data.gov.uk/id/local-authority/00FC),Finance Operations & Resources,Resources,Property Rationalisation Prog,Cap Land/Build-Prof Fees,Cap Land/Build-Prof Fees,YA103,21/12/2018,548518,315.46,CAPITAL,ENGIE SERVICES LTD,133267
North East Lincolnshire Council,http://statistics.data.gov.uk/id/local-authority/00FC),Finance Operations & Resources,Resources,Property Rationalisation Prog,Cap Land/Build-Build Enh Wrk,Cap Land/Build-Build Enh Wrk,YA102,18/12/2018,547519,14850.5,CAPITAL,F R TOWNSEND & CO LTD,104217
North East Lincolnshire Council,http://statistics.data.gov.uk/id/local-authority/00FC),Finance Operations & Resources,Resources,Property Rationalisation Prog,Cap Land/Build-Build Enh Wrk,Cap Land/Build-Build Enh Wrk,YA102,06/12/2018,545584,760,CAPITAL,LUCION ENVIRONMENTAL,142063
North East Lincolnshire Council,http://statistics.data.gov.uk/id/local-authority/00FC),Finance Operations & Resources,Resources,Property Rationalisation Prog,Cap Land/Build-Build Enh Wrk,Cap Land/Build-Build Enh Wrk,YA102,06/12/2018,545585,380,CAPITAL,LUCION ENVIRONMENTAL,142063
North East Lincolnshire Council,http://statistics.data.gov.uk/id/local-authority/00FC),Finance Operations & Resources,Resources,Property Rationalisation Prog,Cap Land/Build-Build Enh Wrk,Cap Land/Build-Build Enh Wrk,YA102,20/12/2018,547635,22747.2,CAPITAL,ENGIE SERVICES LTD,133267
North East Lincolnshire Council,http://statistics.data.gov.uk/id/local-authority/00FC),Finance Operations & Resources,Resources,Property Rationalisation Prog,Cap Land/Build-Prof Fees,Cap Land/Build-Prof Fees,YA103,21/12/2018,548523,19135.58,CAPITAL,ENGIE SERVICES LTD,133267
North East Lincolnshire Council,http://statistics.data.gov.uk/id/local-authority/00FC),Finance Operations & Resources,Resources,Property Rationalisation Prog,Cap Land/Build-Prof Fees,Cap Land/Build-Prof Fees,YA103,21/12/2018,548528,14332.92,CAPITAL,ENGIE SERVICES LTD,133267
North East Lincolnshire Council,http://statistics.data.gov.uk/id/local-authority/00FC),Finance Operations & Resources,Resources,Property Rationalisation Prog,Cap Land/Build-Prof Fees,Cap Land/Build-Prof Fees,YA103,21/12/2018,548529,3101.08,CAPITAL,ENGIE SERVICES LTD,133267
North East Lincolnshire Council,http://statistics.data.gov.uk/id/local-authority/00FC),Finance Operations & Resources,Resources,Property Rationalisation Prog,Cap Land/Build-Build Enh Wrk,Cap Land/Build-Build Enh Wrk,YA102,20/12/2018,547635,575,CAPITAL,ENGIE SERVICES LTD,133267
North East Lincolnshire Council,http://statistics.data.gov.uk/id/local-authority/00FC),Finance Operations & Resources,Resources,Property Rationalisation Prog,Cap Land/Build-Build Enh Wrk,Cap Land/Build-Build Enh Wrk,YA102,20/12/2018,547635,7677,CAPITAL,ENGIE SERVICES LTD,133267
North East Lincolnshire Council,http://statistics.data.gov.uk/id/local-authority/00FC),Finance Operations & Resources,Resources,Heritage Assets At Risk,Cap Land/Build-Build Enh Wrk,Cap Land/Build-Build Enh Wrk,YA102,18/12/2018,547516,785,CAPITAL,ETON-LINCS LIMITED,101510
North East Lincolnshire Council,http://statistics.data.gov.uk/id/local-authority/00FC),Finance Operations & Resources,Shared Services,Ict Refresh 16-17,Cap Land/Build-Build Enh Wrk,Cap Land/Build-Build Enh Wrk,YA102,06/12/2018,545490,704.76,CAPITAL,TOTAL COMPUTER NETWORKS LTD,141310
North East Lincolnshire Council,http://statistics.data.gov.uk/id/local-authority/00FC),Finance Operations & Resources,Shared Services,Ict Refresh 16-17,Cap Land/Build-Build Enh Wrk,Cap Land/Build-Build Enh Wrk,YA102,11/12/2018,545528,460.92,CAPITAL,TOTAL COMPUTER NETWORKS LTD,141310
North East Lincolnshire Council,http://statistics.data.gov.uk/id/local-authority/00FC),Finance Operations & Resources,Shared Services,Ict Refresh 16-17,Cap Intangible Assets,Cap Intangible Assets,YH101,04/12/2018,544510,15200,CAPITAL,NOWCOMM LTD,136502
North East Lincolnshire Council,http://statistics.data.gov.uk/id/local-authority/00FC),Finance Operations & Resources,Environment,Fleet Replacement Programme,Cap Veh Plt Eqp-Purchase,Cap Veh Plt Eqp-Purchase,YB101,11/12/2018,543491,68583.55,CAPITAL,TREKA BUS LIMITED,104832
North East Lincolnshire Council,http://statistics.data.gov.uk/id/local-authority/00FC),Finance Operations & Resources,Environment,Fleet Replacement Programme,Cap Veh Plt Eqp-Purchase,Cap Veh Plt Eqp-Purchase,YB101,11/12/2018,543508,68583.55,CAPITAL,TREKA BUS LIMITED,104832
North East Lincolnshire Council,http://statistics.data.gov.uk/id/local-authority/00FC),Finance Operations & Resources,Environment,Fleet Replacement Programme,Cap Veh Plt Eqp-Purchase,Cap Veh Plt Eqp-Purchase,YB101,11/12/2018,543829,68583.55,CAPITAL,TREKA BUS LIMITED,104832
North East Lincolnshire Council,http://statistics.data.gov.uk/id/local-authority/00FC),Finance Operations & Resources,Environment,Fleet Replacement Programme,Cap Veh Plt Eqp-Purchase,Cap Veh Plt Eqp-Purchase,YB101,18/12/2018,546952,68583.55,CAPITAL,TREKA BUS LIMITED,104832
North East Lincolnshire Council,http://statistics.data.gov.uk/id/local-authority/00FC),Finance Operations & Resources,Environment,Fleet Replacement Programme,Cap Veh Plt Eqp-Purchase,Cap Veh Plt Eqp-Purchase,YB101,11/12/2018,543874,68583.55,CAPITAL,TREKA BUS LIMITED,104832
North East Lincolnshire Council,http://statistics.data.gov.uk/id/local-authority/00FC),Finance Operations & Resources,Environment,Fleet Replacement Programme,Cap Veh Plt Eqp-Purchase,Cap Veh Plt Eqp-Purchase,YB101,18/12/2018,546915,68583.55,CAPITAL,TREKA BUS LIMITED,104832
North East Lincolnshire Council,http://statistics.data.gov.uk/id/local-authority/00FC),Economy And Growth,Economy & Growth,Local Transport Plan Schemes,Cap Infrastr-Build Enh Wrk,Cap Infrastr-Build Enh Wrk,YC102,06/12/2018,545035,8455.87,CAPITAL,SPECIALIST SURFACING LIMITED,100579
North East Lincolnshire Council,http://statistics.data.gov.uk/id/local-authority/00FC),Economy And Growth,Economy & Growth,Local Transport Plan Schemes,Cap Infrastr-Build Enh Wrk,Cap Infrastr-Build Enh Wrk,YC102,21/12/2018,547902,1250,CAPITAL,LOCAL TRANSPORT PROJECTS LTD,121248
North East Lincolnshire Council,http://statistics.data.gov.uk/id/local-authority/00FC),Economy And Growth,Economy & Growth,Local Transport Plan Schemes,Cap Infrastr-Build Enh Wrk,Cap Infrastr-Build Enh Wrk,YC102,11/12/2018,545007,500,CAPITAL,ENGIE SERVICES LTD,133267
North East Lincolnshire Council,http://statistics.data.gov.uk/id/local-authority/00FC),Economy And Growth,Economy & Growth,Local Transport Plan Schemes,Cap Infrastr-Build Enh Wrk,Cap Infrastr-Build Enh Wrk,YC102,06/12/2018,545016,1500,CAPITAL,ENGIE SERVICES LTD,133267
North East Lincolnshire Council,http://statistics.data.gov.uk/id/local-authority/00FC),Economy And Growth,Economy & Growth,Local Transport Plan Schemes,Cap Infrastr-Build Enh Wrk,Cap Infrastr-Build Enh Wrk,YC102,13/12/2018,546680,6746.36,CAPITAL,C R REYNOLDS (CONSTRUCTION) LTD,103021
North East Lincolnshire Council,http://statistics.data.gov.uk/id/local-authority/00FC),Economy And Growth,Economy & Growth,Local Transport Plan Schemes,Cap Infrastr-Build Enh Wrk,Cap Infrastr-Build Enh Wrk,YC102,18/12/2018,546122,3320,CAPITAL,ONEWAY TM LIMITED,128602
North East Lincolnshire Council,http://statistics.data.gov.uk/id/local-authority/00FC),Economy And Growth,Economy & Growth,Local Transport Plan Schemes,Cap Infrastr-Build Enh Wrk,Cap Infrastr-Build Enh Wrk,YC102,21/12/2018,547526,2854,CAPITAL,PETER COX LTD,111844
North East Lincolnshire Council,http://statistics.data.gov.uk/id/local-authority/00FC),Economy And Growth,Economy & Growth,Local Transport Plan Schemes,Cap Infrastr-Build Enh Wrk,Cap Infrastr-Build Enh Wrk,YC102,21/12/2018,547453,7595,CAPITAL,FAIRFIELD CONTROL SYSTEMS LTD,133883
North East Lincolnshire Council,http://statistics.data.gov.uk/id/local-authority/00FC),Economy And Growth,Economy & Growth,Local Transport Plan Schemes,Cap Infrastr-Build Enh Wrk,Cap Infrastr-Build Enh Wrk,YC102,11/12/2018,545898,2000,CAPITAL,ENGIE SERVICES LTD,133267
North East Lincolnshire Council,http://statistics.data.gov.uk/id/local-authority/00FC),Economy And Growth,Economy & Growth,Local Transport Plan Schemes,Cap Land/Build-Build Enh Wrk,Cap Land/Build-Build Enh Wrk,YA102,20/12/2018,547498,6880.02,CAPITAL,J MCCANN & CO LTD,100841
North East Lincolnshire Council,http://statistics.data.gov.uk/id/local-authority/00FC),Economy And Growth,Economy & Growth,Local Transport Plan Schemes,Cap Infrastr-Purchase,Cap Infrastr-Purchase,YC101,06/12/2018,545021,780,CAPITAL,ENGIE SERVICES LTD,133267
North East Lincolnshire Council,http://statistics.data.gov.uk/id/local-authority/00FC),Economy And Growth,Economy & Growth,Local Transport Plan Schemes,Cap Infrastr-Purchase,Cap Infrastr-Purchase,YC101,11/12/2018,545897,600,CAPITAL,ENGIE SERVICES LTD,133267
North East Lincolnshire Council,http://statistics.data.gov.uk/id/local-authority/00FC),Economy And Growth,Economy & Growth,Local Transport Plan Schemes,Cap Infrastr-Build Enh Wrk,Cap Infrastr-Build Enh Wrk,YC102,20/12/2018,547569,29217.85,CAPITAL,ENGIE SERVICES LTD,133267
North East Lincolnshire Council,http://statistics.data.gov.uk/id/local-authority/00FC),Economy And Growth,Economy & Growth,Local Transport Plan Schemes,Cap Infrastr-Build Enh Wrk,Cap Infrastr-Build Enh Wrk,YC102,06/12/2018,545037,3520,CAPITAL,ONEWAY TM LIMITED,128602
North East Lincolnshire Council,http://statistics.data.gov.uk/id/local-authority/00FC),Economy And Growth,Economy & Growth,Local Transport Plan Schemes,Cap Infrastr-Build Enh Wrk,Cap Infrastr-Build Enh Wrk,YC102,18/12/2018,547422,30000,CAPITAL,SPECIALIST SURFACING LIMITED,100579
North East Lincolnshire Council,http://statistics.data.gov.uk/id/local-authority/00FC),Economy And Growth,Economy & Growth,Local Transport Plan Schemes,Cap Infrastr-Build Enh Wrk,Cap Infrastr-Build Enh Wrk,YC102,11/12/2018,545896,8000,CAPITAL,ENGIE SERVICES LTD,133267
North East Lincolnshire Council,http://statistics.data.gov.uk/id/local-authority/00FC),Economy And Growth,Economy & Growth,Local Transport Plan Schemes,Cap Infrastr-Build Enh Wrk,Cap Infrastr-Build Enh Wrk,YC102,13/12/2018,546678,1332.04,CAPITAL,C R REYNOLDS (CONSTRUCTION) LTD,103021
North East Lincolnshire Council,http://statistics.data.gov.uk/id/local-authority/00FC),Economy And Growth,Economy & Growth,Local Transport Plan Schemes,Cap Infrastr-Build Enh Wrk,Cap Infrastr-Build Enh Wrk,YC102,21/12/2018,548121,5264.74,CAPITAL,SOUTHAM SERVICES (LINCS) LTD,140951
North East Lincolnshire Council,http://statistics.data.gov.uk/id/local-authority/00FC),Economy And Growth,Economy & Growth,Local Transport Plan Schemes,Cap Infrastr-Build Enh Wrk,Cap Infrastr-Build Enh Wrk,YC102,11/12/2018,544881,11248.46,CAPITAL,KIELY BROS LTD,106644
North East Lincolnshire Council,http://statistics.data.gov.uk/id/local-authority/00FC),Economy And Growth,Economy & Growth,Local Transport Plan Schemes,Cap Infrastr-Build Enh Wrk,Cap Infrastr-Build Enh Wrk,YC102,11/12/2018,545882,13000,CAPITAL,ENGIE SERVICES LTD,133267
North East Lincolnshire Council,http://statistics.data.gov.uk/id/local-authority/00FC),Economy And Growth,Economy & Growth,Local Transport Plan Schemes,Cap Infrastr-Build Enh Wrk,Cap Infrastr-Build Enh Wrk,YC102,13/12/2018,546679,4024.12,CAPITAL,C R REYNOLDS (CONSTRUCTION) LTD,103021
North East Lincolnshire Council,http://statistics.data.gov.uk/id/local-authority/00FC),Economy And Growth,Economy & Growth,Local Transport Plan Schemes,Cap Infrastr-Build Enh Wrk,Cap Infrastr-Build Enh Wrk,YC102,20/12/2018,547903,1350,CAPITAL,LOCAL TRANSPORT PROJECTS LTD,121248
North East Lincolnshire Council,http://statistics.data.gov.uk/id/local-authority/00FC),Economy And Growth,Economy & Growth,Local Transport Plan Schemes,Cap Infrastr-Build Enh Wrk,Cap Infrastr-Build Enh Wrk,YC102,06/12/2018,545015,1000,CAPITAL,ENGIE SERVICES LTD,133267
North East Lincolnshire Council,http://statistics.data.gov.uk/id/local-authority/00FC),Economy And Growth,Economy & Growth,Local Transport Plan Schemes,Cap Infrastr-Build Enh Wrk,Cap Infrastr-Build Enh Wrk,YC102,18/12/2018,546862,135574.94,CAPITAL,EC SURFACING LTD,125951
North East Lincolnshire Council,http://statistics.data.gov.uk/id/local-authority/00FC),Economy And Growth,Economy & Growth,Local Transport Plan Schemes,Cap Infrastr-Build Enh Wrk,Cap Infrastr-Build Enh Wrk,YC102,13/12/2018,546676,2264.28,CAPITAL,C R REYNOLDS (CONSTRUCTION) LTD,103021
North East Lincolnshire Council,http://statistics.data.gov.uk/id/local-authority/00FC),Economy And Growth,Economy & Growth,Local Transport Plan Schemes,Cap Infrastr-Build Enh Wrk,Cap Infrastr-Build Enh Wrk,YC102,06/12/2018,545012,500,CAPITAL,ENGIE SERVICES LTD,133267
North East Lincolnshire Council,http://statistics.data.gov.uk/id/local-authority/00FC),Economy And Growth,Economy & Growth,Local Transport Plan Schemes,Cap Infrastr-Build Enh Wrk,Cap Infrastr-Build Enh Wrk,YC102,11/12/2018,545009,7788.48,CAPITAL,ENGIE SERVICES LTD,133267
North East Lincolnshire Council,http://statistics.data.gov.uk/id/local-authority/00FC),Economy And Growth,Economy & Growth,Clee Hlf Townscape Heritage,Cap Infrastr-Prof Fees,Cap Infrastr-Prof Fees,YC103,06/12/2018,545061,1471.94,CAPITAL,ENGIE SERVICES LTD,133267
North East Lincolnshire Council,http://statistics.data.gov.uk/id/local-authority/00FC),Economy And Growth,Economy & Growth,Gllep Junction Improvement,Cap Land/Build-Build Enh Wrk,Cap Land/Build-Build Enh Wrk,YA102,06/12/2018,545017,6027,CAPITAL,ENGIE SERVICES LTD,133267
North East Lincolnshire Council,http://statistics.data.gov.uk/id/local-authority/00FC),Economy And Growth,Economy & Growth,Gllep Junction Improvement,Cap Infrastr-Build Enh Wrk,Cap Infrastr-Build Enh Wrk,YC102,06/12/2018,545013,6000,CAPITAL,ENGIE SERVICES LTD,133267
North East Lincolnshire Council,http://statistics.data.gov.uk/id/local-authority/00FC),Economy And Growth,Economy & Growth,Shiip Scheme,Cap Infrastr-Prof Fees,Cap Infrastr-Prof Fees,YC103,18/12/2018,546969,795.5,CAPITAL,BEVAN BRITTAN LLP,131317
North East Lincolnshire Council,http://statistics.data.gov.uk/id/local-authority/00FC),Economy And Growth,Economy & Growth,Shiip Scheme,Cap Infrastr-Prof Fees,Cap Infrastr-Prof Fees,YC103,18/12/2018,546968,548,CAPITAL,BEVAN BRITTAN LLP,131317
North East Lincolnshire Council,http://statistics.data.gov.uk/id/local-authority/00FC),Economy And Growth,Economy & Growth,Shiip Scheme,Cap Infrastr-Build Enh Wrk,Cap Infrastr-Build Enh Wrk,YC102,11/12/2018,545336,308793.74,CAPITAL,J E SPENCE AND SON LTD,141305
North East Lincolnshire Council,http://statistics.data.gov.uk/id/local-authority/00FC),Economy And Growth,Economy & Growth,Shiip Scheme,Cap Infrastr-Prof Fees,Cap Infrastr-Prof Fees,YC103,06/12/2018,545060,9250,CAPITAL,ENGIE SERVICES LTD,133267
North East Lincolnshire Council,http://statistics.data.gov.uk/id/local-authority/00FC),Economy And Growth,Economy & Growth,Unlocking The Potential,Cap Infrastr-Prof Fees,Cap Infrastr-Prof Fees,YC103,06/12/2018,544958,2045.45,CAPITAL,ENGIE SERVICES LTD,133267
North East Lincolnshire Council,http://statistics.data.gov.uk/id/local-authority/00FC),Economy And Growth,Economy & Growth,Unlocking The Potential,Cap Infrastr-Prof Fees,Cap Infrastr-Prof Fees,YC103,06/12/2018,545064,2045.45,CAPITAL,ENGIE SERVICES LTD,133267
North East Lincolnshire Council,http://statistics.data.gov.uk/id/local-authority/00FC),Economy And Growth,Economy & Growth,Coastal Communities Fund,Cap Infrastr-Build Enh Wrk,Cap Infrastr-Build Enh Wrk,YC102,21/12/2018,547620,2150,CAPITAL,LOCAL TRANSPORT PROJECTS LTD,121248
North East Lincolnshire Council,http://statistics.data.gov.uk/id/local-authority/00FC),Economy And Growth,Economy & Growth,Coastal Communities Fund,Cap Infrastr-Build Enh Wrk,Cap Infrastr-Build Enh Wrk,YC102,21/12/2018,547619,1150,CAPITAL,LOCAL TRANSPORT PROJECTS LTD,121248
North East Lincolnshire Council,http://statistics.data.gov.uk/id/local-authority/00FC),Economy And Growth,Economy & Growth,Coastal Communities Fund,Cap Infrastr-Build Enh Wrk,Cap Infrastr-Build Enh Wrk,YC102,11/12/2018,545329,1977.36,CAPITAL,BRITISH TELECOMMUNICATIONS PLC,100974
North East Lincolnshire Council,http://statistics.data.gov.uk/id/local-authority/00FC),Economy And Growth,Economy & Growth,Coastal Communities Fund,Cap Infrastr-Build Enh Wrk,Cap Infrastr-Build Enh Wrk,YC102,11/12/2018,545062,6743.52,CAPITAL,ENGIE SERVICES LTD,133267
North East Lincolnshire Council,http://statistics.data.gov.uk/id/local-authority/00FC),Economy And Growth,Economy & Growth,Coastal Communities Fund,Cap Infrastr-Build Enh Wrk,Cap Infrastr-Build Enh Wrk,YC102,06/12/2018,545063,535.71,CAPITAL,ENGIE SERVICES LTD,133267
North East Lincolnshire Council,http://statistics.data.gov.uk/id/local-authority/00FC),Economy And Growth,Economy & Growth,Coastal Communities Fund,Cap Infrastr-Prof Fees,Cap Infrastr-Prof Fees,YC103,18/12/2018,545963,4800,CAPITAL,HODSON ARCHITECTS LTD,101328
North East Lincolnshire Council,http://statistics.data.gov.uk/id/local-authority/00FC),Economy And Growth,Economy & Growth,Cleethorpes Cycle Hub,Cap Infrastr-Build Enh Wrk,Cap Infrastr-Build Enh Wrk,YC102,11/12/2018,545526,54003.38,CAPITAL,S VOASE BUILDERS LTD,103594
North East Lincolnshire Council,http://statistics.data.gov.uk/id/local-authority/00FC),Economy And Growth,Economy & Growth,A18 Laceby To Ludborough,Cap Land/Build-Build Enh Wrk,Cap Land/Build-Build Enh Wrk,YA102,18/12/2018,547287,75000,CAPITAL,ENGIE SERVICES LTD,133267
North East Lincolnshire Council,http://statistics.data.gov.uk/id/local-authority/00FC),Economy And Growth,Economy & Growth,A18 Laceby To Ludborough,Cap Infrastr-Build Enh Wrk,Cap Infrastr-Build Enh Wrk,YC102,06/12/2018,545011,10588.8,CAPITAL,ENGIE SERVICES LTD,133267
North East Lincolnshire Council,http://statistics.data.gov.uk/id/local-authority/00FC),Economy And Growth,Economy & Growth,Smart Energy For Business,Cap Land/Build-Build Enh Wrk,Cap Land/Build-Build Enh Wrk,YA102,18/12/2018,547542,15616.41,CAPITAL,F R TOWNSEND & CO LTD,104217
North East Lincolnshire Council,http://statistics.data.gov.uk/id/local-authority/00FC),Economy And Growth,Economy & Growth,Smart Energy For Business,Cap Land/Build-Build Enh Wrk,Cap Land/Build-Build Enh Wrk,YA102,04/12/2018,544871,46522.73,CAPITAL,HAITHS HEATING LTD,101342
North East Lincolnshire Council,http://statistics.data.gov.uk/id/local-authority/00FC),Economy And Growth,Economy & Growth,Smart Energy For Business,Cap Land/Build-Build Enh Wrk,Cap Land/Build-Build Enh Wrk,YA102,20/12/2018,548023,43834.48,CAPITAL,HAITHS HEATING LTD,101342
North East Lincolnshire Council,http://statistics.data.gov.uk/id/local-authority/00FC),Public Health And Leisure,Leisure,Bradley Football Redevelopment,Cap Land/Build-Build Enh Wrk,Cap Land/Build-Build Enh Wrk,YA102,11/12/2018,545852,1687.72,CAPITAL,ROBINSON LOW FRANCIS LLP,136534
North East Lincolnshire Council,http://statistics.data.gov.uk/id/local-authority/00FC),Adult Services,Adult Services,Hps-Disabled Fac. Grants,Cap Grants To O/Side Sources,Cap Grants To O/Side Sources,YJ101,18/12/2018,547609,7970.73,CAPITAL,ABLE 4 ENTERPRISE LTD,120159
North East Lincolnshire Council,http://statistics.data.gov.uk/id/local-authority/00FC),Adult Services,Adult Services,Hps-Disabled Fac. Grants,Cap Grants To O/Side Sources,Cap Grants To O/Side Sources,YJ101,04/12/2018,544993,2049.02,CAPITAL,KES BUILDING MAINTENANCE LIMITED,100786
North East Lincolnshire Council,http://statistics.data.gov.uk/id/local-authority/00FC),Adult Services,Adult Services,Hps-Disabled Fac. Grants,Cap Grants To O/Side Sources,Cap Grants To O/Side Sources,YJ101,06/12/2018,544890,1348.53,CAPITAL,TOPCON CONSTRUCTION LTD,108462
North East Lincolnshire Council,http://statistics.data.gov.uk/id/local-authority/00FC),Adult Services,Adult Services,Hps-Disabled Fac. Grants,Cap Grants To O/Side Sources,Cap Grants To O/Side Sources,YJ101,11/12/2018,545330,35053.76,CAPITAL,ENGIE SERVICES LTD,133267
North East Lincolnshire Council,http://statistics.data.gov.uk/id/local-authority/00FC),Adult Services,Adult Services,Hps-Disabled Fac. Grants,Cap Grants To O/Side Sources,Cap Grants To O/Side Sources,YJ101,18/12/2018,546961,3363.16,CAPITAL,ENGIE SERVICES LTD,133267
North East Lincolnshire Council,http://statistics.data.gov.uk/id/local-authority/00FC),Adult Services,Adult Services,Hps-Disabled Fac. Grants,Cap Grants To O/Side Sources,Cap Grants To O/Side Sources,YJ101,11/12/2018,545539,4562,CAPITAL,OBAM LIFT SERVICES LTD,112666
North East Lincolnshire Council,http://statistics.data.gov.uk/id/local-authority/00FC),Adult Services,Adult Services,Hps-Disabled Fac. Grants,Cap Grants To O/Side Sources,Cap Grants To O/Side Sources,YJ101,20/12/2018,547423,8610.14,CAPITAL,TOPCON CONSTRUCTION LTD,108462
North East Lincolnshire Council,http://statistics.data.gov.uk/id/local-authority/00FC),Adult Services,Adult Services,Hps-Disabled Fac. Grants,Cap Grants To O/Side Sources,Cap Grants To O/Side Sources,YJ101,18/12/2018,546864,13111.01,CAPITAL,ABLE 4 ENTERPRISE LTD,120159
North East Lincolnshire Council,http://statistics.data.gov.uk/id/local-authority/00FC),Adult Services,Adult Services,Hps-Disabled Fac. Grants,Cap Grants To O/Side Sources,Cap Grants To O/Side Sources,YJ101,18/12/2018,546832,2262,CAPITAL,OBAM LIFT SERVICES LTD,112666
North East Lincolnshire Council,http://statistics.data.gov.uk/id/local-authority/00FC),Adult Services,Adult Services,Hps-Disabled Fac. Grants,Cap Grants To O/Side Sources,Cap Grants To O/Side Sources,YJ101,18/12/2018,546867,11128.28,CAPITAL,ABLE 4 ENTERPRISE LTD,120159
North East Lincolnshire Council,http://statistics.data.gov.uk/id/local-authority/00FC),Adult Services,Adult Services,Hps-Disabled Fac. Grants,Cap Grants To O/Side Sources,Cap Grants To O/Side Sources,YJ101,20/12/2018,547673,13372.18,CAPITAL,MARK BENNETT,101838
North East Lincolnshire Council,http://statistics.data.gov.uk/id/local-authority/00FC),Adult Services,Adult Services,Hps-Disabled Fac. Grants,Cap Grants To O/Side Sources,Cap Grants To O/Side Sources,YJ101,18/12/2018,546988,1619,CAPITAL,OBAM LIFT SERVICES LTD,112666
North East Lincolnshire Council,http://statistics.data.gov.uk/id/local-authority/00FC),Adult Services,Adult Services,Hps-Disabled Fac. Grants,Cap Grants To O/Side Sources,Cap Grants To O/Side Sources,YJ101,18/12/2018,546870,6887.54,CAPITAL,LINDUM GROUP LIMITED,101185
North East Lincolnshire Council,http://statistics.data.gov.uk/id/local-authority/00FC),Adult Services,Adult Services,Hps-Disabled Fac. Grants,Cap Grants To O/Side Sources,Cap Grants To O/Side Sources,YJ101,18/12/2018,547384,4120,CAPITAL,OBAM LIFT SERVICES LTD,112666
North East Lincolnshire Council,http://statistics.data.gov.uk/id/local-authority/00FC),Adult Services,Adult Services,Hps-Disabled Fac. Grants,Cap Grants To O/Side Sources,Cap Grants To O/Side Sources,YJ101,20/12/2018,547671,15481.11,CAPITAL,VIC HANSEN BUILDING & JOINERY LTD,103981
North East Lincolnshire Council,http://statistics.data.gov.uk/id/local-authority/00FC),Adult Services,Adult Services,Hps-Disabled Fac. Grants,Cap Grants To O/Side Sources,Cap Grants To O/Side Sources,YJ101,18/12/2018,546863,10935.56,CAPITAL,ABLE 4 ENTERPRISE LTD,120159
North East Lincolnshire Council,http://statistics.data.gov.uk/id/local-authority/00FC),Adult Services,Adult Services,Hps-Disabled Fac. Grants,Cap Grants To O/Side Sources,Cap Grants To O/Side Sources,YJ101,18/12/2018,547028,8840,CAPITAL,WESSEX LIFT CO LTD,126902
North East Lincolnshire Council,http://statistics.data.gov.uk/id/local-authority/00FC),Adult Services,Adult Services,Hps-Disabled Fac. Grants,Cap Grants To O/Side Sources,Cap Grants To O/Side Sources,YJ101,13/12/2018,546697,5743.29,CAPITAL,ABLE 4 ENTERPRISE LTD,120159
North East Lincolnshire Council,http://statistics.data.gov.uk/id/local-authority/00FC),Adult Services,Adult Services,Hps-Disabled Fac. Grants,Cap Grants To O/Side Sources,Cap Grants To O/Side Sources,YJ101,21/12/2018,547616,4290,CAPITAL,OBAM LIFT SERVICES LTD,112666
North East Lincolnshire Council,http://statistics.data.gov.uk/id/local-authority/00FC),Adult Services,Adult Services,Hps-Disabled Fac. Grants,Cap Grants To O/Side Sources,Cap Grants To O/Side Sources,YJ101,18/12/2018,546953,8554.61,CAPITAL,P G INGOLDBY & SONS LTD,100591
North East Lincolnshire Council,http://statistics.data.gov.uk/id/local-authority/00FC),Adult Services,Adult Services,Hps-Disabled Fac. Grants,Cap Grants To O/Side Sources,Cap Grants To O/Side Sources,YJ101,06/12/2018,544950,8795.9,CAPITAL,MARK BENNETT,101838
North East Lincolnshire Council,http://statistics.data.gov.uk/id/local-authority/00FC),Adult Services,Adult Services,Hps-Disabled Fac. Grants,Cap Grants To O/Side Sources,Cap Grants To O/Side Sources,YJ101,18/12/2018,547415,9358.92,CAPITAL,MARK BENNETT,101838
North East Lincolnshire Council,http://statistics.data.gov.uk/id/local-authority/00FC),Adult Services,Adult Services,Hps-Disabled Fac. Grants,Cap Grants To O/Side Sources,Cap Grants To O/Side Sources,YJ101,06/12/2018,545039,1247.85,CAPITAL,P G INGOLDBY & SONS LTD,100591
North East Lincolnshire Council,http://statistics.data.gov.uk/id/local-authority/00FC),Adult Services,Adult Services,Hps-Disabled Fac. Grants,Cap Grants To O/Side Sources,Cap Grants To O/Side Sources,YJ101,20/12/2018,547677,7188.82,CAPITAL,MARK BENNETT,101838
North East Lincolnshire Council,http://statistics.data.gov.uk/id/local-authority/00FC),Children & Family Services,Ass Dir - Skills,Community Learning Services,Miscellaneous Expenses,Activities - Service Users,LL114,13/12/2018,545952,-270,REVENUE,LINKAGE COMMUNITY TRUST LTD,104471
North East Lincolnshire Council,http://statistics.data.gov.uk/id/local-authority/00FC),Children & Family Services,Ass Dir - Skills,Community Learning Services,Miscellaneous Expenses,Activities - Service Users,LL114,18/12/2018,545131,585,REVENUE,LINKAGE COMMUNITY TRUST LTD,104471
North East Lincolnshire Council,http://statistics.data.gov.uk/id/local-authority/00FC),Children & Family Services,Ass Dir - Skills,Community Learning Services,Miscellaneous Expenses,Activities - Service Users,LL114,13/12/2018,546781,426,REVENUE,AMAZON EUROPE (COMMU LEARNING SKILLS HUB),141592
North East Lincolnshire Council,http://statistics.data.gov.uk/id/local-authority/00FC),Children & Family Services,Ass Dir - Skills,Community Learning Services,Miscellaneous Expenses,Activities - Service Users,LL114,04/12/2018,545047,1501.5,REVENUE,CLEETHORPES CHILDCARE,101591
North East Lincolnshire Council,http://statistics.data.gov.uk/id/local-authority/00FC),Children & Family Services,Ass Dir - Skills,Community Learning Services,Miscellaneous Expenses,Activities - Service Users,LL114,21/12/2018,548133,420,REVENUE,CITB,141568
North East Lincolnshire Council,http://statistics.data.gov.uk/id/local-authority/00FC),Children & Family Services,Ass Dir - Skills,Community Learning Services,Miscellaneous Expenses,Activities - Service Users,LL114,20/12/2018,650645,415,REVENUE,REDACTED PERSONAL INFORMATION,REDACTED PERSONAL INFORMATION
North East Lincolnshire Council,http://statistics.data.gov.uk/id/local-authority/00FC),Children & Family Services,Ass Dir - Skills,Community Learning Services,Miscellaneous Expenses,Activities - Service Users,LL114,20/12/2018,650641,250,REVENUE,REDACTED PERSONAL INFORMATION,REDACTED PERSONAL INFORMATION
North East Lincolnshire Council,http://statistics.data.gov.uk/id/local-authority/00FC),Children & Family Services,Ass Dir - Skills,Community Learning Services,Communications And Computing,Computer S/Ware - Licences,LF103,06/12/2018,545296,4388.49,REVENUE,TRIBAL EDUCATION LIMITED,103641
North East Lincolnshire Council,http://statistics.data.gov.uk/id/local-authority/00FC),Children & Family Services,Ass Dir - Skills,Community Learning Services,Communications And Computing,Computer S/Ware - Licences,LF103,06/12/2018,545297,11400,REVENUE,TRIBAL EDUCATION LIMITED,103641
North East Lincolnshire Council,http://statistics.data.gov.uk/id/local-authority/00FC),Children & Family Services,Ass Dir - Skills,Community Learning Services,Miscellaneous Expenses,Activities - Service Users,LL114,11/12/2018,545032,704,REVENUE,MRS MARIA JOHNSON,140171
North East Lincolnshire Council,http://statistics.data.gov.uk/id/local-authority/00FC),Children & Family Services,Ass Dir - Skills,Community Learning Services,Miscellaneous Expenses,Activities - Service Users,LL114,11/12/2018,545033,704,REVENUE,MRS MARIA JOHNSON,140171
North East Lincolnshire Council,http://statistics.data.gov.uk/id/local-authority/00FC),Children & Family Services,Ass Dir - Skills,Community Learning Services,Miscellaneous Expenses,Exam Fees,LL115,06/12/2018,544949,302.5,REVENUE,NOCN,123052
North East Lincolnshire Council,http://statistics.data.gov.uk/id/local-authority/00FC),Children & Family Services,Ass Dir - Education,Access And Education Services,Contract Hire-Operating Leases,Vehicles - Contract Hire,JC101,13/12/2018,546158,1430,REVENUE,MINICABS CLEETHORPES (LINCS) LTD,102124
North East Lincolnshire Council,http://statistics.data.gov.uk/id/local-authority/00FC),Children & Family Services,Ass Dir - Education,Access And Education Services,Contract Hire-Operating Leases,Vehicles - Contract Hire,JC101,18/12/2018,547361,832.5,REVENUE,LINKS TAXIS,100546
North East Lincolnshire Council,http://statistics.data.gov.uk/id/local-authority/00FC),Children & Family Services,Ass Dir - Education,Access And Education Services,Contract Hire-Operating Leases,Vehicles - Contract Hire,JC101,18/12/2018,547350,747.5,REVENUE,LINKS TAXIS,100546
North East Lincolnshire Council,http://statistics.data.gov.uk/id/local-authority/00FC),Children & Family Services,Ass Dir - Education,Access And Education Services,Contract Hire-Operating Leases,Vehicles - Contract Hire,JC101,18/12/2018,547358,780,REVENUE,LINKS TAXIS,100546
North East Lincolnshire Council,http://statistics.data.gov.uk/id/local-authority/00FC),Children & Family Services,Ass Dir - Education,Access And Education Services,Contract Hire-Operating Leases,Vehicles - Contract Hire,JC101,18/12/2018,547295,1260,REVENUE,AA RADIO CARS LTD,101222
North East Lincolnshire Council,http://statistics.data.gov.uk/id/local-authority/00FC),Children & Family Services,Ass Dir - Education,Access And Education Services,Contract Hire-Operating Leases,Vehicles - Contract Hire,JC101,18/12/2018,547353,640,REVENUE,LINKS TAXIS,100546
North East Lincolnshire Council,http://statistics.data.gov.uk/id/local-authority/00FC),Children & Family Services,Ass Dir - Education,Access And Education Services,Contract Hire-Operating Leases,Vehicles - Contract Hire,JC101,18/12/2018,547355,840,REVENUE,LINKS TAXIS,100546
North East Lincolnshire Council,http://statistics.data.gov.uk/id/local-authority/00FC),Children & Family Services,Ass Dir - Education,Access And Education Services,Contract Hire-Operating Leases,Vehicles - Contract Hire,JC101,18/12/2018,547351,430,REVENUE,LINKS TAXIS,100546
North East Lincolnshire Council,http://statistics.data.gov.uk/id/local-authority/00FC),Children & Family Services,Ass Dir - Education,Access And Education Services,Contract Hire-Operating Leases,Vehicles - Contract Hire,JC101,20/12/2018,547917,450,REVENUE,FON A CAR LTD,140517
North East Lincolnshire Council,http://statistics.data.gov.uk/id/local-authority/00FC),Children & Family Services,Ass Dir - Education,Access And Education Services,Contract Hire-Operating Leases,Vehicles - Contract Hire,JC101,18/12/2018,547438,977,REVENUE,LINKS TAXIS,100546
North East Lincolnshire Council,http://statistics.data.gov.uk/id/local-authority/00FC),Children & Family Services,Ass Dir - Education,Access And Education Services,Contract Hire-Operating Leases,Vehicles - Contract Hire,JC101,18/12/2018,547437,1384,REVENUE,LINKS TAXIS,100546
North East Lincolnshire Council,http://statistics.data.gov.uk/id/local-authority/00FC),Children & Family Services,Ass Dir - Education,Access And Education Services,Contract Hire-Operating Leases,Vehicles - Contract Hire,JC101,18/12/2018,547448,570,REVENUE,COXONS CARS LIMITED,100578
North East Lincolnshire Council,http://statistics.data.gov.uk/id/local-authority/00FC),Children & Family Services,Ass Dir - Education,Access And Education Services,Contract Hire-Operating Leases,Vehicles - Contract Hire,JC101,18/12/2018,547275,598,REVENUE,LINKS TAXIS,100546
North East Lincolnshire Council,http://statistics.data.gov.uk/id/local-authority/00FC),Children & Family Services,Ass Dir - Education,Access And Education Services,Contract Hire-Operating Leases,Vehicles - Contract Hire,JC101,18/12/2018,547318,600,REVENUE,LINKS TAXIS,100546
North East Lincolnshire Council,http://statistics.data.gov.uk/id/local-authority/00FC),Children & Family Services,Ass Dir - Education,Access And Education Services,Contract Hire-Operating Leases,Vehicles - Contract Hire,JC101,18/12/2018,547347,352,REVENUE,LINKS TAXIS,100546
North East Lincolnshire Council,http://statistics.data.gov.uk/id/local-authority/00FC),Children & Family Services,Ass Dir - Education,Access And Education Services,Contract Hire-Operating Leases,Vehicles - Contract Hire,JC101,18/12/2018,547322,735,REVENUE,LINKS TAXIS,100546
North East Lincolnshire Council,http://statistics.data.gov.uk/id/local-authority/00FC),Children & Family Services,Ass Dir - Education,Access And Education Services,Contract Hire-Operating Leases,Vehicles - Contract Hire,JC101,18/12/2018,547330,480,REVENUE,LINKS TAXIS,100546
North East Lincolnshire Council,http://statistics.data.gov.uk/id/local-authority/00FC),Children & Family Services,Ass Dir - Education,Access And Education Services,Contract Hire-Operating Leases,Vehicles - Contract Hire,JC101,18/12/2018,547329,1491,REVENUE,LINKS TAXIS,100546
North East Lincolnshire Council,http://statistics.data.gov.uk/id/local-authority/00FC),Children & Family Services,Ass Dir - Education,Access And Education Services,Contract Hire-Operating Leases,Vehicles - Contract Hire,JC101,18/12/2018,547365,1275,REVENUE,LINKS TAXIS,100546
North East Lincolnshire Council,http://statistics.data.gov.uk/id/local-authority/00FC),Children & Family Services,Ass Dir - Education,Access And Education Services,Contract Hire-Operating Leases,Vehicles - Contract Hire,JC101,18/12/2018,547345,1485,REVENUE,LINKS TAXIS,100546
North East Lincolnshire Council,http://statistics.data.gov.uk/id/local-authority/00FC),Children & Family Services,Ass Dir - Education,Access And Education Services,Contract Hire-Operating Leases,Vehicles - Contract Hire,JC101,18/12/2018,547394,2200,REVENUE,BEST FUTURES COMMUNITY INTEREST COMPANY,128600
North East Lincolnshire Council,http://statistics.data.gov.uk/id/local-authority/00FC),Children & Family Services,Ass Dir - Education,Access And Education Services,Contract Hire-Operating Leases,Vehicles - Contract Hire,JC101,12/12/2018,546151,1540,REVENUE,MINICABS CLEETHORPES (LINCS) LTD,102124
North East Lincolnshire Council,http://statistics.data.gov.uk/id/local-authority/00FC),Children & Family Services,Ass Dir - Education,Access And Education Services,Contract Hire-Operating Leases,Vehicles - Contract Hire,JC101,18/12/2018,547306,945,REVENUE,AA RADIO CARS LTD,101222
North East Lincolnshire Council,http://statistics.data.gov.uk/id/local-authority/00FC),Children & Family Services,Ass Dir - Education,Access And Education Services,Contract Hire-Operating Leases,Vehicles - Contract Hire,JC101,18/12/2018,547303,1188,REVENUE,AA RADIO CARS LTD,101222
North East Lincolnshire Council,http://statistics.data.gov.uk/id/local-authority/00FC),Children & Family Services,Ass Dir - Education,Access And Education Services,Contract Hire-Operating Leases,Vehicles - Contract Hire,JC101,18/12/2018,547354,735,REVENUE,LINKS TAXIS,100546
North East Lincolnshire Council,http://statistics.data.gov.uk/id/local-authority/00FC),Children & Family Services,Ass Dir - Education,Access And Education Services,Contract Hire-Operating Leases,Vehicles - Contract Hire,JC101,18/12/2018,547279,2480,REVENUE,AMVALE MEDICAL TRANSPORT LTD,130777
North East Lincolnshire Council,http://statistics.data.gov.uk/id/local-authority/00FC),Children & Family Services,Ass Dir - Education,Access And Education Services,Contract Hire-Operating Leases,Vehicles - Contract Hire,JC101,18/12/2018,547359,1240,REVENUE,LINKS TAXIS,100546
North East Lincolnshire Council,http://statistics.data.gov.uk/id/local-authority/00FC),Children & Family Services,Ass Dir - Education,Access And Education Services,Contract Hire-Operating Leases,Vehicles - Contract Hire,JC101,18/12/2018,547579,1364,REVENUE,LINKS TAXIS,100546
North East Lincolnshire Council,http://statistics.data.gov.uk/id/local-authority/00FC),Children & Family Services,Ass Dir - Education,Access And Education Services,Contract Hire-Operating Leases,Vehicles - Contract Hire,JC101,20/12/2018,547896,300,REVENUE,AMVALE LIMITED,101030
North East Lincolnshire Council,http://statistics.data.gov.uk/id/local-authority/00FC),Children & Family Services,Ass Dir - Education,Access And Education Services,Contract Hire-Operating Leases,Vehicles - Contract Hire,JC101,18/12/2018,547290,3630,REVENUE,AMVALE LIMITED,101030
North East Lincolnshire Council,http://statistics.data.gov.uk/id/local-authority/00FC),Children & Family Services,Ass Dir - Education,Access And Education Services,Contract Hire-Operating Leases,Vehicles - Contract Hire,JC101,18/12/2018,547291,3850,REVENUE,AMVALE LIMITED,101030
North East Lincolnshire Council,http://statistics.data.gov.uk/id/local-authority/00FC),Children & Family Services,Ass Dir - Education,Access And Education Services,Contract Hire-Operating Leases,Vehicles - Contract Hire,JC101,18/12/2018,547292,3630,REVENUE,AMVALE LIMITED,101030
North East Lincolnshire Council,http://statistics.data.gov.uk/id/local-authority/00FC),Children & Family Services,Ass Dir - Education,Access And Education Services,Contract Hire-Operating Leases,Vehicles - Contract Hire,JC101,18/12/2018,547393,3756,REVENUE,MILLMAN COACHES,100700
North East Lincolnshire Council,http://statistics.data.gov.uk/id/local-authority/00FC),Children & Family Services,Ass Dir - Education,Access And Education Services,Contract Hire-Operating Leases,Vehicles - Contract Hire,JC101,18/12/2018,547605,1364,REVENUE,LINKS TAXIS,100546
North East Lincolnshire Council,http://statistics.data.gov.uk/id/local-authority/00FC),Children & Family Services,Ass Dir - Education,Access And Education Services,Contract Hire-Operating Leases,Vehicles - Contract Hire,JC101,18/12/2018,547304,375.2,REVENUE,AA RADIO CARS LTD,101222
North East Lincolnshire Council,http://statistics.data.gov.uk/id/local-authority/00FC),Children & Family Services,Ass Dir - Education,Access And Education Services,Contract Hire-Operating Leases,Vehicles - Contract Hire,JC101,18/12/2018,547300,1078,REVENUE,AA RADIO CARS LTD,101222
North East Lincolnshire Council,http://statistics.data.gov.uk/id/local-authority/00FC),Children & Family Services,Ass Dir - Education,Access And Education Services,Contract Hire-Operating Leases,Vehicles - Contract Hire,JC101,12/12/2018,546149,660,REVENUE,COXONS CARS LIMITED,100578
North East Lincolnshire Council,http://statistics.data.gov.uk/id/local-authority/00FC),Children & Family Services,Ass Dir - Education,Access And Education Services,Contract Hire-Operating Leases,Vehicles - Contract Hire,JC101,18/12/2018,547293,3410,REVENUE,AMVALE LIMITED,101030
North East Lincolnshire Council,http://statistics.data.gov.uk/id/local-authority/00FC),Children & Family Services,Ass Dir - Education,Access And Education Services,Contract Hire-Operating Leases,Vehicles - Contract Hire,JC101,18/12/2018,547276,3080,REVENUE,AMVALE MEDICAL TRANSPORT LTD,130777
North East Lincolnshire Council,http://statistics.data.gov.uk/id/local-authority/00FC),Children & Family Services,Ass Dir - Education,Access And Education Services,Contract Hire-Operating Leases,Vehicles - Contract Hire,JC101,18/12/2018,547289,2840,REVENUE,THE BUS RUN,101522
North East Lincolnshire Council,http://statistics.data.gov.uk/id/local-authority/00FC),Children & Family Services,Ass Dir - Education,Access And Education Services,Contract Hire-Operating Leases,Vehicles - Contract Hire,JC101,18/12/2018,547308,3097.6,REVENUE,GRIMSBY MINIBUSES LTD,121524
North East Lincolnshire Council,http://statistics.data.gov.uk/id/local-authority/00FC),Children & Family Services,Ass Dir - Education,Access And Education Services,Contract Hire-Operating Leases,Vehicles - Contract Hire,JC101,18/12/2018,547309,3086.6,REVENUE,GRIMSBY MINIBUSES LTD,121524
North East Lincolnshire Council,http://statistics.data.gov.uk/id/local-authority/00FC),Children & Family Services,Ass Dir - Education,Access And Education Services,Contract Hire-Operating Leases,Vehicles - Contract Hire,JC101,12/12/2018,546141,576,REVENUE,COXONS CARS LIMITED,100578
North East Lincolnshire Council,http://statistics.data.gov.uk/id/local-authority/00FC),Children & Family Services,Ass Dir - Education,Access And Education Services,Contract Hire-Operating Leases,Vehicles - Contract Hire,JC101,18/12/2018,547372,726,REVENUE,LINKS TAXIS,100546
North East Lincolnshire Council,http://statistics.data.gov.uk/id/local-authority/00FC),Children & Family Services,Ass Dir - Education,Access And Education Services,Contract Hire-Operating Leases,Vehicles - Contract Hire,JC101,18/12/2018,547445,704,REVENUE,COXONS CARS LIMITED,100578
North East Lincolnshire Council,http://statistics.data.gov.uk/id/local-authority/00FC),Children & Family Services,Ass Dir - Education,Access And Education Services,Contract Hire-Operating Leases,Vehicles - Contract Hire,JC101,18/12/2018,547327,1034,REVENUE,LINKS TAXIS,100546
North East Lincolnshire Council,http://statistics.data.gov.uk/id/local-authority/00FC),Children & Family Services,Ass Dir - Education,Access And Education Services,Contract Hire-Operating Leases,Vehicles - Contract Hire,JC101,18/12/2018,547373,820,REVENUE,LINKS TAXIS,100546
North East Lincolnshire Council,http://statistics.data.gov.uk/id/local-authority/00FC),Children & Family Services,Ass Dir - Education,Access And Education Services,Contract Hire-Operating Leases,Vehicles - Contract Hire,JC101,18/12/2018,547367,1276,REVENUE,LINKS TAXIS,100546
North East Lincolnshire Council,http://statistics.data.gov.uk/id/local-authority/00FC),Children & Family Services,Ass Dir - Education,Access And Education Services,Contract Hire-Operating Leases,Vehicles - Contract Hire,JC101,18/12/2018,547277,2728,REVENUE,AMVALE MEDICAL TRANSPORT LTD,130777
North East Lincolnshire Council,http://statistics.data.gov.uk/id/local-authority/00FC),Children & Family Services,Ass Dir - Education,Access And Education Services,Contract Hire-Operating Leases,Vehicles - Contract Hire,JC101,18/12/2018,547398,2200,REVENUE,HANSONS AIRPORT EXPRESS,111879
North East Lincolnshire Council,http://statistics.data.gov.uk/id/local-authority/00FC),Children & Family Services,Ass Dir - Education,Access And Education Services,Contract Hire-Operating Leases,Vehicles - Contract Hire,JC101,18/12/2018,547312,820,REVENUE,AMVALE LIMITED,101030
North East Lincolnshire Council,http://statistics.data.gov.uk/id/local-authority/00FC),Children & Family Services,Ass Dir - Education,Access And Education Services,Contract Hire-Operating Leases,Vehicles - Contract Hire,JC101,18/12/2018,547313,820,REVENUE,AMVALE LIMITED,101030
North East Lincolnshire Council,http://statistics.data.gov.uk/id/local-authority/00FC),Children & Family Services,Ass Dir - Education,Access And Education Services,Contract Hire-Operating Leases,Vehicles - Contract Hire,JC101,12/12/2018,546161,1128,REVENUE,MINICABS CLEETHORPES (LINCS) LTD,102124
North East Lincolnshire Council,http://statistics.data.gov.uk/id/local-authority/00FC),Children & Family Services,Ass Dir - Education,Access And Education Services,Contract Hire-Operating Leases,Vehicles - Contract Hire,JC101,18/12/2018,547319,700,REVENUE,LINKS TAXIS,100546
North East Lincolnshire Council,http://statistics.data.gov.uk/id/local-authority/00FC),Children & Family Services,Ass Dir - Education,Access And Education Services,Contract Hire-Operating Leases,Vehicles - Contract Hire,JC101,18/12/2018,547368,1817.5,REVENUE,LINKS TAXIS,100546
North East Lincolnshire Council,http://statistics.data.gov.uk/id/local-authority/00FC),Children & Family Services,Ass Dir - Education,Access And Education Services,Contract Hire-Operating Leases,Vehicles - Contract Hire,JC101,18/12/2018,547321,2420,REVENUE,LINKS TAXIS,100546
North East Lincolnshire Council,http://statistics.data.gov.uk/id/local-authority/00FC),Children & Family Services,Ass Dir - Education,Access And Education Services,Contract Hire-Operating Leases,Vehicles - Contract Hire,JC101,18/12/2018,547374,630,REVENUE,LINKS TAXIS,100546
North East Lincolnshire Council,http://statistics.data.gov.uk/id/local-authority/00FC),Children & Family Services,Ass Dir - Education,Access And Education Services,Contract Hire-Operating Leases,Vehicles - Contract Hire,JC101,18/12/2018,547282,2640,REVENUE,AMVALE MEDICAL TRANSPORT LTD,130777
North East Lincolnshire Council,http://statistics.data.gov.uk/id/local-authority/00FC),Children & Family Services,Ass Dir - Education,Access And Education Services,Contract Hire-Operating Leases,Vehicles - Contract Hire,JC101,18/12/2018,547283,4774,REVENUE,AMVALE MEDICAL TRANSPORT LTD,130777
North East Lincolnshire Council,http://statistics.data.gov.uk/id/local-authority/00FC),Children & Family Services,Ass Dir - Education,Access And Education Services,Contract Hire-Operating Leases,Vehicles - Contract Hire,JC101,18/12/2018,547294,1166,REVENUE,AA RADIO CARS LTD,101222
North East Lincolnshire Council,http://statistics.data.gov.uk/id/local-authority/00FC),Children & Family Services,Ass Dir - Education,Access And Education Services,Contract Hire-Operating Leases,Vehicles - Contract Hire,JC101,18/12/2018,547320,1870,REVENUE,LINKS TAXIS,100546
North East Lincolnshire Council,http://statistics.data.gov.uk/id/local-authority/00FC),Children & Family Services,Ass Dir - Education,Access And Education Services,Contract Hire-Operating Leases,Vehicles - Contract Hire,JC101,18/12/2018,547281,4730,REVENUE,AMVALE MEDICAL TRANSPORT LTD,130777
North East Lincolnshire Council,http://statistics.data.gov.uk/id/local-authority/00FC),Children & Family Services,Ass Dir - Education,Access And Education Services,Contract Hire-Operating Leases,Vehicles - Contract Hire,JC101,18/12/2018,547284,2618,REVENUE,AMVALE MEDICAL TRANSPORT LTD,130777
North East Lincolnshire Council,http://statistics.data.gov.uk/id/local-authority/00FC),Children & Family Services,Ass Dir - Education,Access And Education Services,Contract Hire-Operating Leases,Vehicles - Contract Hire,JC101,18/12/2018,547375,1435,REVENUE,LINKS TAXIS,100546
North East Lincolnshire Council,http://statistics.data.gov.uk/id/local-authority/00FC),Children & Family Services,Ass Dir - Education,Access And Education Services,Contract Hire-Operating Leases,Vehicles - Contract Hire,JC101,12/12/2018,546143,360,REVENUE,COXONS CARS LIMITED,100578
North East Lincolnshire Council,http://statistics.data.gov.uk/id/local-authority/00FC),Children & Family Services,Ass Dir - Education,Access And Education Services,Contract Hire-Operating Leases,Vehicles - Contract Hire,JC101,12/12/2018,546147,704,REVENUE,COXONS CARS LIMITED,100578
North East Lincolnshire Council,http://statistics.data.gov.uk/id/local-authority/00FC),Children & Family Services,Ass Dir - Education,Access And Education Services,Contract Hire-Operating Leases,Vehicles - Contract Hire,JC101,18/12/2018,547449,727.5,REVENUE,COXONS CARS LIMITED,100578
North East Lincolnshire Council,http://statistics.data.gov.uk/id/local-authority/00FC),Children & Family Services,Ass Dir - Education,Access And Education Services,Contract Hire-Operating Leases,Vehicles - Contract Hire,JC101,13/12/2018,546153,841.5,REVENUE,MINICABS CLEETHORPES (LINCS) LTD,102124
North East Lincolnshire Council,http://statistics.data.gov.uk/id/local-authority/00FC),Children & Family Services,Ass Dir - Education,Access And Education Services,Contract Hire-Operating Leases,Vehicles - Contract Hire,JC101,18/12/2018,547362,1911,REVENUE,LINKS TAXIS,100546
North East Lincolnshire Council,http://statistics.data.gov.uk/id/local-authority/00FC),Children & Family Services,Ass Dir - Education,Access And Education Services,Contract Hire-Operating Leases,Vehicles - Contract Hire,JC101,18/12/2018,547328,860,REVENUE,LINKS TAXIS,100546
North East Lincolnshire Council,http://statistics.data.gov.uk/id/local-authority/00FC),Children & Family Services,Ass Dir - Education,Access And Education Services,Contract Hire-Operating Leases,Vehicles - Contract Hire,JC101,18/12/2018,547346,1116,REVENUE,LINKS TAXIS,100546
North East Lincolnshire Council,http://statistics.data.gov.uk/id/local-authority/00FC),Children & Family Services,Ass Dir - Education,Access And Education Services,Contract Hire-Operating Leases,Vehicles - Contract Hire,JC101,18/12/2018,547348,810,REVENUE,LINKS TAXIS,100546
North East Lincolnshire Council,http://statistics.data.gov.uk/id/local-authority/00FC),Children & Family Services,Ass Dir - Education,Access And Education Services,Contract Hire-Operating Leases,Vehicles - Contract Hire,JC101,18/12/2018,547443,747.5,REVENUE,LINKS TAXIS,100546
North East Lincolnshire Council,http://statistics.data.gov.uk/id/local-authority/00FC),Children & Family Services,Ass Dir - Education,Access And Education Services,Contract Hire-Operating Leases,Vehicles - Contract Hire,JC101,18/12/2018,547324,1525,REVENUE,LINKS TAXIS,100546
North East Lincolnshire Council,http://statistics.data.gov.uk/id/local-authority/00FC),Children & Family Services,Ass Dir - Education,Access And Education Services,Contract Hire-Operating Leases,Vehicles - Contract Hire,JC101,18/12/2018,547364,1870,REVENUE,LINKS TAXIS,100546
North East Lincolnshire Council,http://statistics.data.gov.uk/id/local-authority/00FC),Children & Family Services,Ass Dir - Education,Access And Education Services,Contract Hire-Operating Leases,Vehicles - Contract Hire,JC101,18/12/2018,547381,660,REVENUE,REDACTED PERSONAL INFORMATION,REDACTED PERSONAL INFORMATION
North East Lincolnshire Council,http://statistics.data.gov.uk/id/local-authority/00FC),Children & Family Services,Ass Dir - Education,Access And Education Services,Contract Hire-Operating Leases,Vehicles - Contract Hire,JC101,18/12/2018,547331,3434.9,REVENUE,LINKS TAXIS,100546
North East Lincolnshire Council,http://statistics.data.gov.uk/id/local-authority/00FC),Children & Family Services,Ass Dir - Education,Access And Education Services,Contract Hire-Operating Leases,Vehicles - Contract Hire,JC101,18/12/2018,547399,1071,REVENUE,MINICABS CLEETHORPES (LINCS) LTD,102124
North East Lincolnshire Council,http://statistics.data.gov.uk/id/local-authority/00FC),Children & Family Services,Ass Dir - Education,Access And Education Services,Contract Hire-Operating Leases,Vehicles - Contract Hire,JC101,18/12/2018,547357,1584,REVENUE,LINKS TAXIS,100546
North East Lincolnshire Council,http://statistics.data.gov.uk/id/local-authority/00FC),Children & Family Services,Ass Dir - Education,Access And Education Services,Contract Hire-Operating Leases,Vehicles - Contract Hire,JC101,18/12/2018,547369,840,REVENUE,LINKS TAXIS,100546
North East Lincolnshire Council,http://statistics.data.gov.uk/id/local-authority/00FC),Children & Family Services,Ass Dir - Education,Access And Education Services,Contract Hire-Operating Leases,Vehicles - Contract Hire,JC101,12/12/2018,546146,704,REVENUE,COXONS CARS LIMITED,100578
North East Lincolnshire Council,http://statistics.data.gov.uk/id/local-authority/00FC),Children & Family Services,Ass Dir - Education,Access And Education Services,Contract Hire-Operating Leases,Vehicles - Contract Hire,JC101,20/12/2018,547522,798,REVENUE,COXONS CARS LIMITED,100578
North East Lincolnshire Council,http://statistics.data.gov.uk/id/local-authority/00FC),Children & Family Services,Ass Dir - Education,Access And Education Services,Contract Hire-Operating Leases,Vehicles - Contract Hire,JC101,18/12/2018,547343,1476,REVENUE,LINKS TAXIS,100546
North East Lincolnshire Council,http://statistics.data.gov.uk/id/local-authority/00FC),Children & Family Services,Ass Dir - Education,Access And Education Services,Contract Hire-Operating Leases,Vehicles - Contract Hire,JC101,18/12/2018,547397,2200,REVENUE,HANSONS AIRPORT EXPRESS,111879
North East Lincolnshire Council,http://statistics.data.gov.uk/id/local-authority/00FC),Children & Family Services,Ass Dir - Education,Access And Education Services,Contract Hire-Operating Leases,Vehicles - Contract Hire,JC101,12/12/2018,546159,350,REVENUE,MINICABS CLEETHORPES (LINCS) LTD,102124
North East Lincolnshire Council,http://statistics.data.gov.uk/id/local-authority/00FC),Children & Family Services,Ass Dir - Education,Access And Education Services,Contract Hire-Operating Leases,Vehicles - Contract Hire,JC101,12/12/2018,546154,990,REVENUE,MINICABS CLEETHORPES (LINCS) LTD,102124
North East Lincolnshire Council,http://statistics.data.gov.uk/id/local-authority/00FC),Children & Family Services,Ass Dir - Education,Access And Education Services,Contract Hire-Operating Leases,Vehicles - Contract Hire,JC101,18/12/2018,547446,666,REVENUE,COXONS CARS LIMITED,100578
North East Lincolnshire Council,http://statistics.data.gov.uk/id/local-authority/00FC),Children & Family Services,Ass Dir - Education,Access And Education Services,Contract Hire-Operating Leases,Vehicles - Contract Hire,JC101,18/12/2018,547311,820,REVENUE,AMVALE LIMITED,101030
North East Lincolnshire Council,http://statistics.data.gov.uk/id/local-authority/00FC),Children & Family Services,Ass Dir - Education,Access And Education Services,Contract Hire-Operating Leases,Vehicles - Contract Hire,JC101,18/12/2018,547370,1817.5,REVENUE,LINKS TAXIS,100546
North East Lincolnshire Council,http://statistics.data.gov.uk/id/local-authority/00FC),Children & Family Services,Ass Dir - Education,Access And Education Services,Contract Hire-Operating Leases,Vehicles - Contract Hire,JC101,18/12/2018,547379,936,REVENUE,DRS TAXI SERVICE,141083
North East Lincolnshire Council,http://statistics.data.gov.uk/id/local-authority/00FC),Children & Family Services,Ass Dir - Education,Access And Education Services,Contract Hire-Operating Leases,Vehicles - Contract Hire,JC101,18/12/2018,547347,352,REVENUE,LINKS TAXIS,100546
North East Lincolnshire Council,http://statistics.data.gov.uk/id/local-authority/00FC),Children & Family Services,Ass Dir - Education,Access And Education Services,Contract Hire-Operating Leases,Vehicles - Contract Hire,JC101,12/12/2018,546160,1640,REVENUE,MINICABS CLEETHORPES (LINCS) LTD,102124
North East Lincolnshire Council,http://statistics.data.gov.uk/id/local-authority/00FC),Children & Family Services,Ass Dir - Education,Access And Education Services,Contract Hire-Operating Leases,Vehicles - Contract Hire,JC101,18/12/2018,547280,2838,REVENUE,AMVALE MEDICAL TRANSPORT LTD,130777
North East Lincolnshire Council,http://statistics.data.gov.uk/id/local-authority/00FC),Children & Family Services,Ass Dir - Education,Access And Education Services,Contract Hire-Operating Leases,Vehicles - Contract Hire,JC101,18/12/2018,547363,1273,REVENUE,LINKS TAXIS,100546
North East Lincolnshire Council,http://statistics.data.gov.uk/id/local-authority/00FC),Children & Family Services,Ass Dir - Education,Access And Education Services,Contract Hire-Operating Leases,Vehicles - Contract Hire,JC101,18/12/2018,547447,1452,REVENUE,COXONS CARS LIMITED,100578
North East Lincolnshire Council,http://statistics.data.gov.uk/id/local-authority/00FC),Children & Family Services,Ass Dir - Education,Access And Education Services,Contract Hire-Operating Leases,Vehicles - Contract Hire,JC101,20/12/2018,547521,528,REVENUE,COXONS CARS LIMITED,100578
North East Lincolnshire Council,http://statistics.data.gov.uk/id/local-authority/00FC),Children & Family Services,Ass Dir - Education,Access And Education Services,Contract Hire-Operating Leases,Vehicles - Contract Hire,JC101,18/12/2018,547296,550,REVENUE,AA RADIO CARS LTD,101222
North East Lincolnshire Council,http://statistics.data.gov.uk/id/local-authority/00FC),Children & Family Services,Ass Dir - Education,Access And Education Services,Contract Hire-Operating Leases,Vehicles - Contract Hire,JC101,18/12/2018,547297,688,REVENUE,AA RADIO CARS LTD,101222
North East Lincolnshire Council,http://statistics.data.gov.uk/id/local-authority/00FC),Children & Family Services,Ass Dir - Education,Access And Education Services,Contract Hire-Operating Leases,Vehicles - Contract Hire,JC101,06/12/2018,545137,750,REVENUE,MINICABS CLEETHORPES (LINCS) LTD,102124
North East Lincolnshire Council,http://statistics.data.gov.uk/id/local-authority/00FC),Children & Family Services,Ass Dir - Education,Access And Education Services,Contract Hire-Operating Leases,Vehicles - Contract Hire,JC101,12/12/2018,546156,1000,REVENUE,MINICABS CLEETHORPES (LINCS) LTD,102124
North East Lincolnshire Council,http://statistics.data.gov.uk/id/local-authority/00FC),Children & Family Services,Ass Dir - Education,Access And Education Services,Contract Hire-Operating Leases,Vehicles - Contract Hire,JC101,18/12/2018,547441,880,REVENUE,LINKS TAXIS,100546
North East Lincolnshire Council,http://statistics.data.gov.uk/id/local-authority/00FC),Children & Family Services,Ass Dir - Education,Access And Education Services,Contract Hire-Operating Leases,Vehicles - Contract Hire,JC101,18/12/2018,547371,660,REVENUE,LINKS TAXIS,100546
North East Lincolnshire Council,http://statistics.data.gov.uk/id/local-authority/00FC),Children & Family Services,Ass Dir - Education,Access And Education Services,Contract Hire-Operating Leases,Vehicles - Contract Hire,JC101,18/12/2018,547307,616,REVENUE,AA RADIO CARS LTD,101222
North East Lincolnshire Council,http://statistics.data.gov.uk/id/local-authority/00FC),Children & Family Services,Ass Dir - Education,Access And Education Services,Contract Hire-Operating Leases,Vehicles - Contract Hire,JC101,18/12/2018,547349,1100,REVENUE,LINKS TAXIS,100546
North East Lincolnshire Council,http://statistics.data.gov.uk/id/local-authority/00FC),Children & Family Services,Ass Dir - Education,Access And Education Services,Contract Hire-Operating Leases,Vehicles - Contract Hire,JC101,18/12/2018,547310,2671.9,REVENUE,GRIMSBY MINIBUSES LTD,121524
North East Lincolnshire Council,http://statistics.data.gov.uk/id/local-authority/00FC),Children & Family Services,Ass Dir - Education,Access And Education Services,Contract Hire-Operating Leases,Vehicles - Contract Hire,JC101,18/12/2018,547360,1200,REVENUE,LINKS TAXIS,100546
North East Lincolnshire Council,http://statistics.data.gov.uk/id/local-authority/00FC),Children & Family Services,Ass Dir - Education,Access And Education Services,Contract Hire-Operating Leases,Vehicles - Contract Hire,JC101,18/12/2018,547352,2106,REVENUE,LINKS TAXIS,100546
North East Lincolnshire Council,http://statistics.data.gov.uk/id/local-authority/00FC),Children & Family Services,Ass Dir - Education,Access And Education Services,Contract Hire-Operating Leases,Vehicles - Contract Hire,JC101,18/12/2018,547378,596,REVENUE,DRS TAXI SERVICE,141083
North East Lincolnshire Council,http://statistics.data.gov.uk/id/local-authority/00FC),Children & Family Services,Ass Dir - Education,Access And Education Services,Contract Hire-Operating Leases,Vehicles - Contract Hire,JC101,18/12/2018,547396,2207.5,REVENUE,REDACTED PERSONAL INFORMATION,REDACTED PERSONAL INFORMATION
North East Lincolnshire Council,http://statistics.data.gov.uk/id/local-authority/00FC),Children & Family Services,Ass Dir - Education,Access And Education Services,Contract Hire-Operating Leases,Vehicles - Contract Hire,JC101,12/12/2018,546157,1210,REVENUE,MINICABS CLEETHORPES (LINCS) LTD,102124
North East Lincolnshire Council,http://statistics.data.gov.uk/id/local-authority/00FC),Children & Family Services,Ass Dir - Education,Access And Education Services,Contract Hire-Operating Leases,Vehicles - Contract Hire,JC101,18/12/2018,547285,3200,REVENUE,AMVALE MEDICAL TRANSPORT LTD,130777
North East Lincolnshire Council,http://statistics.data.gov.uk/id/local-authority/00FC),Children & Family Services,Ass Dir - Education,Access And Education Services,Contract Hire-Operating Leases,Vehicles - Contract Hire,JC101,12/12/2018,546155,1600,REVENUE,MINICABS CLEETHORPES (LINCS) LTD,102124
North East Lincolnshire Council,http://statistics.data.gov.uk/id/local-authority/00FC),Children & Family Services,Ass Dir - Education,Access And Education Services,Contract Hire-Operating Leases,Vehicles - Contract Hire,JC101,18/12/2018,547278,6000,REVENUE,AMVALE MEDICAL TRANSPORT LTD,130777
North East Lincolnshire Council,http://statistics.data.gov.uk/id/local-authority/00FC),Children & Family Services,Ass Dir - Education,Access And Education Services,Contract Hire-Operating Leases,Vehicles - Contract Hire,JC101,18/12/2018,547382,638,REVENUE,COUNTRY CABS,101999
North East Lincolnshire Council,http://statistics.data.gov.uk/id/local-authority/00FC),Children & Family Services,Ass Dir - Education,Access And Education Services,Contract Hire-Operating Leases,Vehicles - Contract Hire,JC101,18/12/2018,547380,2200,REVENUE,REDACTED PERSONAL INFORMATION,REDACTED PERSONAL INFORMATION
North East Lincolnshire Council,http://statistics.data.gov.uk/id/local-authority/00FC),Children & Family Services,Ass Dir - Education,Access And Education Services,Contract Hire-Operating Leases,Vehicles - Contract Hire,JC101,18/12/2018,547344,1440,REVENUE,LINKS TAXIS,100546
North East Lincolnshire Council,http://statistics.data.gov.uk/id/local-authority/00FC),Children & Family Services,Ass Dir - Education,Access And Education Services,Contract Hire-Operating Leases,Vehicles - Contract Hire,JC101,18/12/2018,547356,1940,REVENUE,LINKS TAXIS,100546
North East Lincolnshire Council,http://statistics.data.gov.uk/id/local-authority/00FC),Children & Family Services,Ass Dir - Education,Access And Education Services,Contract Hire-Operating Leases,Vehicles - Contract Hire,JC101,18/12/2018,547323,1822.5,REVENUE,LINKS TAXIS,100546
North East Lincolnshire Council,http://statistics.data.gov.uk/id/local-authority/00FC),Children & Family Services,Ass Dir - Education,Access And Education Services,Contract Hire-Operating Leases,Vehicles - Contract Hire,JC101,18/12/2018,547400,2700,REVENUE,MINICABS CLEETHORPES (LINCS) LTD,102124
North East Lincolnshire Council,http://statistics.data.gov.uk/id/local-authority/00FC),Children & Family Services,Ass Dir - Education,Access And Education Services,Contract Hire-Operating Leases,Vehicles - Contract Hire,JC101,18/12/2018,547377,3529.5,REVENUE,WATAXIS,141297
North East Lincolnshire Council,http://statistics.data.gov.uk/id/local-authority/00FC),Children & Family Services,Ass Dir - Education,Access And Education Services,Contract Hire-Operating Leases,Vehicles - Contract Hire,JC101,18/12/2018,547325,388.08,REVENUE,LINKS TAXIS,100546
North East Lincolnshire Council,http://statistics.data.gov.uk/id/local-authority/00FC),Children & Family Services,Ass Dir - Education,Access And Education Services,Contract Hire-Operating Leases,Vehicles - Contract Hire,JC101,18/12/2018,547376,1560,REVENUE,WATAXIS,141297
North East Lincolnshire Council,http://statistics.data.gov.uk/id/local-authority/00FC),Children & Family Services,Ass Dir - Education,Access And Education Services,Contract Hire-Operating Leases,Vehicles - Contract Hire,JC101,18/12/2018,547305,752,REVENUE,AA RADIO CARS LTD,101222
North East Lincolnshire Council,http://statistics.data.gov.uk/id/local-authority/00FC),Children & Family Services,Ass Dir - Education,Access And Education Services,Contract Hire-Operating Leases,Vehicles - Contract Hire,JC101,18/12/2018,547440,704,REVENUE,LINKS TAXIS,100546
North East Lincolnshire Council,http://statistics.data.gov.uk/id/local-authority/00FC),Children & Family Services,Ass Dir - Education,Access And Education Services,Contract Hire-Operating Leases,Vehicles - Contract Hire,JC101,18/12/2018,547439,1540,REVENUE,LINKS TAXIS,100546
North East Lincolnshire Council,http://statistics.data.gov.uk/id/local-authority/00FC),Children & Family Services,Ass Dir - Education,Access And Education Services,Contract Hire-Operating Leases,Vehicles - Contract Hire,JC101,18/12/2018,547326,537.5,REVENUE,LINKS TAXIS,100546
North East Lincolnshire Council,http://statistics.data.gov.uk/id/local-authority/00FC),Children & Family Services,Ass Dir - Education,Access And Education Services,Contract Hire-Operating Leases,Vehicles - Contract Hire,JC101,18/12/2018,547401,610,REVENUE,MINICABS CLEETHORPES (LINCS) LTD,102124
North East Lincolnshire Council,http://statistics.data.gov.uk/id/local-authority/00FC),Children & Family Services,Ass Dir - Education,Access And Education Services,Contract Hire-Operating Leases,Vehicles - Contract Hire,JC101,18/12/2018,547420,1089,REVENUE,REDACTED PERSONAL INFORMATION,REDACTED PERSONAL INFORMATION
North East Lincolnshire Council,http://statistics.data.gov.uk/id/local-authority/00FC),Children & Family Services,Ass Dir - Education,Access And Education Services,Customer And Client Receipts,Fees/Chrgs-O/Side Scope Vat 4,VC125,13/12/2018,646370,360,REVENUE,REDACTED PERSONAL INFORMATION,REDACTED PERSONAL INFORMATION
North East Lincolnshire Council,http://statistics.data.gov.uk/id/local-authority/00FC),Children & Family Services,Ass Dir - Education,Access And Education Services,Direct Employee Expenses,Agency Supply Teachers,EA104,06/12/2018,545059,285,REVENUE,SUSAN J BOOTH,103257
North East Lincolnshire Council,http://statistics.data.gov.uk/id/local-authority/00FC),Children & Family Services,Ass Dir - Education,Access And Education Services,Direct Employee Expenses,Agency Supply Teachers,EA104,18/12/2018,547432,279,REVENUE,ZOE EVERATT,106842
North East Lincolnshire Council,http://statistics.data.gov.uk/id/local-authority/00FC),Children & Family Services,Ass Dir - Education,Access And Education Services,Direct Employee Expenses,Agency Supply Teachers,EA104,11/12/2018,545535,255,REVENUE,MATT GIDLOW,103864
North East Lincolnshire Council,http://statistics.data.gov.uk/id/local-authority/00FC),Children & Family Services,Ass Dir - Education,Access And Education Services,Direct Employee Expenses,Agency Supply Teachers,EA104,11/12/2018,545537,270,REVENUE,MATT GIDLOW,103864
North East Lincolnshire Council,http://statistics.data.gov.uk/id/local-authority/00FC),Children & Family Services,Ass Dir - Education,Access And Education Services,Direct Employee Expenses,Agency Supply Teachers,EA104,18/12/2018,546853,750,REVENUE,MRS RUTH HART,101928
North East Lincolnshire Council,http://statistics.data.gov.uk/id/local-authority/00FC),Children & Family Services,Ass Dir - Education,Access And Education Services,Direct Employee Expenses,Agency Supply Teachers,EA104,20/12/2018,547564,300,REVENUE,SUE HERON,101951
North East Lincolnshire Council,http://statistics.data.gov.uk/id/local-authority/00FC),Children & Family Services,Ass Dir - Education,Access And Education Services,Direct Employee Expenses,Agency Supply Teachers,EA104,20/12/2018,547489,450,REVENUE,CAROLINE MASSDAM GOOCH,104894
North East Lincolnshire Council,http://statistics.data.gov.uk/id/local-authority/00FC),Children & Family Services,Ass Dir - Education,Access And Education Services,Direct Employee Expenses,Agency Supply Teachers,EA104,18/12/2018,546905,450,REVENUE,AMY NAYLOR,133863
North East Lincolnshire Council,http://statistics.data.gov.uk/id/local-authority/00FC),Children & Family Services,Ass Dir - Education,Access And Education Services,Direct Employee Expenses,Agency Supply Teachers,EA104,18/12/2018,546854,270,REVENUE,KEVIN ROGERS,101480
North East Lincolnshire Council,http://statistics.data.gov.uk/id/local-authority/00FC),Children & Family Services,Ass Dir - Education,Access And Education Services,Direct Employee Expenses,Agency Supply Teachers,EA104,20/12/2018,547475,1125,REVENUE,ANDREW IAN TAYLOR MUSIC,139100
North East Lincolnshire Council,http://statistics.data.gov.uk/id/local-authority/00FC),Children & Family Services,Ass Dir - Education,Access And Education Services,Direct Employee Expenses,Agency Supply Teachers,EA104,06/12/2018,545489,262.5,REVENUE,JOANNE TOWNELL,103709
North East Lincolnshire Council,http://statistics.data.gov.uk/id/local-authority/00FC),Children & Family Services,Ass Dir - Education,Access And Education Services,Direct Employee Expenses,Agency Supply Teachers,EA104,20/12/2018,547563,577.5,REVENUE,KEVIN ROGERS,101480
North East Lincolnshire Council,http://statistics.data.gov.uk/id/local-authority/00FC),Children & Family Services,Ass Dir - Education,Access And Education Services,Direct Employee Expenses,Agency Supply Teachers,EA104,20/12/2018,547473,1200,REVENUE,ANDREW IAN TAYLOR MUSIC,139100
North East Lincolnshire Council,http://statistics.data.gov.uk/id/local-authority/00FC),Children & Family Services,Ass Dir - Education,Access And Education Services,Direct Employee Expenses,Agency Supply Teachers,EA104,20/12/2018,547562,360,REVENUE,KEVIN ROGERS,101480
North East Lincolnshire Council,http://statistics.data.gov.uk/id/local-authority/00FC),Children & Family Services,Ass Dir - Education,Access And Education Services,Rents,Rent,GC101,12/12/2018,546440,1250,REVENUE,JOHN WHITGIFT ACADEMY,106898
North East Lincolnshire Council,http://statistics.data.gov.uk/id/local-authority/00FC),Children & Family Services,Ass Dir - Education,Access And Education Services,Rents,Rent,GC101,20/12/2018,547455,1250,REVENUE,JOHN WHITGIFT ACADEMY,106898
North East Lincolnshire Council,http://statistics.data.gov.uk/id/local-authority/00FC),Children & Family Services,Ass Dir - Education,Access And Education Services,Private Contractors,Third Party Prov - Private,PH101,20/12/2018,547969,33813,REVENUE,LINCS INSPIRE LTD,120610
North East Lincolnshire Council,http://statistics.data.gov.uk/id/local-authority/00FC),Children & Family Services,Ass Dir - Education,Access And Education Services,Other Agencies,Other,PJ121,18/12/2018,546756,1050,REVENUE,EMMA MIDDLETON,105103
North East Lincolnshire Council,http://statistics.data.gov.uk/id/local-authority/00FC),Children & Family Services,Ass Dir - Education,Access And Education Services,Other Agencies,Performers,PJ101,20/12/2018,547914,600,REVENUE,STEVE WALKER,103219
North East Lincolnshire Council,http://statistics.data.gov.uk/id/local-authority/00FC),Children & Family Services,Ass Dir - Education,Access And Education Services,Other Agencies,Performers,PJ101,20/12/2018,547487,500,REVENUE,CAROLINE MASSDAM GOOCH,104894
North East Lincolnshire Council,http://statistics.data.gov.uk/id/local-authority/00FC),Children & Family Services,Ass Dir - Education,Access And Education Services,Other Agencies,Performers,PJ101,20/12/2018,547981,350,REVENUE,JASON SCOTT,141398
North East Lincolnshire Council,http://statistics.data.gov.uk/id/local-authority/00FC),Children & Family Services,Ass Dir - Education,Access And Education Services,Other Agencies,Tuition,PJ112,20/12/2018,548085,660,REVENUE,FORTIS THERAPY & TRAINING,120445
North East Lincolnshire Council,http://statistics.data.gov.uk/id/local-authority/00FC),Children & Family Services,Ass Dir - Education,Sen/Inclusion,Indirect Employee Expenses,Staff Training,EB122,04/12/2018,544670,2200,REVENUE,THE CONSULTATION INSTITUTE,112913
North East Lincolnshire Council,http://statistics.data.gov.uk/id/local-authority/00FC),Children & Family Services,Ass Dir - Education,Sen/Inclusion,Other Local Authorities,Third Pp - Other Local Auth,PC101,18/12/2018,546749,23495,REVENUE,REDACTED PERSONAL INFORMATION,REDACTED PERSONAL INFORMATION
North East Lincolnshire Council,http://statistics.data.gov.uk/id/local-authority/00FC),Children & Family Services,Ass Dir - Education,Sen/Inclusion,Other Local Authorities,Third Pp - Other Local Auth,PC101,18/12/2018,546750,25375,REVENUE,REDACTED PERSONAL INFORMATION,REDACTED PERSONAL INFORMATION
North East Lincolnshire Council,http://statistics.data.gov.uk/id/local-authority/00FC),Children & Family Services,Ass Dir - Education,Sen/Inclusion,Other Local Authorities,Third Pp - Other Local Auth,PC101,18/12/2018,546755,21755,REVENUE,REDACTED PERSONAL INFORMATION,REDACTED PERSONAL INFORMATION
North East Lincolnshire Council,http://statistics.data.gov.uk/id/local-authority/00FC),Children & Family Services,Ass Dir - Education,Sen/Inclusion,Other Local Authorities,Third Pp - Other Local Auth,PC101,18/12/2018,546751,21755,REVENUE,REDACTED PERSONAL INFORMATION,REDACTED PERSONAL INFORMATION
North East Lincolnshire Council,http://statistics.data.gov.uk/id/local-authority/00FC),Children & Family Services,Ass Dir - Education,Sen/Inclusion,Other Local Authorities,Third Pp - Other Local Auth,PC101,18/12/2018,546752,21755,REVENUE,REDACTED PERSONAL INFORMATION,REDACTED PERSONAL INFORMATION
North East Lincolnshire Council,http://statistics.data.gov.uk/id/local-authority/00FC),Children & Family Services,Ass Dir - Education,Sen/Inclusion,Other Local Authorities,Third Pp - Other Local Auth,PC101,18/12/2018,546753,21755,REVENUE,REDACTED PERSONAL INFORMATION,REDACTED PERSONAL INFORMATION
North East Lincolnshire Council,http://statistics.data.gov.uk/id/local-authority/00FC),Children & Family Services,Ass Dir - Education,Sen/Inclusion,Other Local Authorities,Third Pp - Other Local Auth,PC101,18/12/2018,547457,3264.8,REVENUE,REDACTED PERSONAL INFORMATION,REDACTED PERSONAL INFORMATION
North East Lincolnshire Council,http://statistics.data.gov.uk/id/local-authority/00FC),Children & Family Services,Ass Dir - Education,Sen/Inclusion,Other Local Authorities,Third Pp - Other Local Auth,PC101,18/12/2018,547460,3264.8,REVENUE,REDACTED PERSONAL INFORMATION,REDACTED PERSONAL INFORMATION
North East Lincolnshire Council,http://statistics.data.gov.uk/id/local-authority/00FC),Children & Family Services,Ass Dir - Education,Sen/Inclusion,Other Local Authorities,Third Pp - Other Local Auth,PC101,18/12/2018,547459,2750,REVENUE,REDACTED PERSONAL INFORMATION,REDACTED PERSONAL INFORMATION
North East Lincolnshire Council,http://statistics.data.gov.uk/id/local-authority/00FC),Children & Family Services,Ass Dir - Education,Sen/Inclusion,Other Local Authorities,Third Pp - Other Local Auth,PC101,18/12/2018,547458,2750,REVENUE,REDACTED PERSONAL INFORMATION,REDACTED PERSONAL INFORMATION
North East Lincolnshire Council,http://statistics.data.gov.uk/id/local-authority/00FC),Children & Family Services,Ass Dir - Education,Sen/Inclusion,Other Local Authorities,Third Pp - Other Local Auth,PC101,04/12/2018,544872,7000.4,REVENUE,REDACTED PERSONAL INFORMATION,REDACTED PERSONAL INFORMATION
North East Lincolnshire Council,http://statistics.data.gov.uk/id/local-authority/00FC),Children & Family Services,Ass Dir - Education,Sen/Inclusion,Other Local Authorities,Third Pp - Other Local Auth,PC101,18/12/2018,547461,3264.8,REVENUE,REDACTED PERSONAL INFORMATION,REDACTED PERSONAL INFORMATION
North East Lincolnshire Council,http://statistics.data.gov.uk/id/local-authority/00FC),Children & Family Services,Ass Dir - Education,Sen/Inclusion,Other Local Authorities,Third Pp - Other Local Auth,PC101,11/12/2018,545337,27457.01,REVENUE,REDACTED PERSONAL INFORMATION,REDACTED PERSONAL INFORMATION
North East Lincolnshire Council,http://statistics.data.gov.uk/id/local-authority/00FC),Children & Family Services,Ass Dir - Education,Sen/Inclusion,Other Local Authorities,Third Pp - Other Local Auth,PC101,11/12/2018,545888,17809.92,REVENUE,REDACTED PERSONAL INFORMATION,REDACTED PERSONAL INFORMATION
North East Lincolnshire Council,http://statistics.data.gov.uk/id/local-authority/00FC),Children & Family Services,Ass Dir - Education,Sen/Inclusion,Other Local Authorities,Third Pp - Other Local Auth,PC101,13/12/2018,546775,2955.26,REVENUE,REDACTED PERSONAL INFORMATION,REDACTED PERSONAL INFORMATION
North East Lincolnshire Council,http://statistics.data.gov.uk/id/local-authority/00FC),Children & Family Services,Ass Dir - Education,Sen/Inclusion,Other Local Authorities,Third Pp - Other Local Auth,PC101,13/12/2018,546758,4544.9,REVENUE,REDACTED PERSONAL INFORMATION,REDACTED PERSONAL INFORMATION
North East Lincolnshire Council,http://statistics.data.gov.uk/id/local-authority/00FC),Children & Family Services,Ass Dir - Education,Sen/Inclusion,Other Local Authorities,Third Pp - Other Local Auth,PC101,13/12/2018,546762,2206.4,REVENUE,REDACTED PERSONAL INFORMATION,REDACTED PERSONAL INFORMATION
North East Lincolnshire Council,http://statistics.data.gov.uk/id/local-authority/00FC),Children & Family Services,Ass Dir - Education,Sen/Inclusion,Other Local Authorities,Third Pp - Other Local Auth,PC101,13/12/2018,546763,4620,REVENUE,REDACTED PERSONAL INFORMATION,REDACTED PERSONAL INFORMATION
North East Lincolnshire Council,http://statistics.data.gov.uk/id/local-authority/00FC),Children & Family Services,Ass Dir - Education,Sen/Inclusion,Other Local Authorities,Third Pp - Other Local Auth,PC101,13/12/2018,546764,4620,REVENUE,REDACTED PERSONAL INFORMATION,REDACTED PERSONAL INFORMATION
North East Lincolnshire Council,http://statistics.data.gov.uk/id/local-authority/00FC),Children & Family Services,Ass Dir - Education,Sen/Inclusion,Other Local Authorities,Third Pp - Other Local Auth,PC101,13/12/2018,546765,4095,REVENUE,REDACTED PERSONAL INFORMATION,REDACTED PERSONAL INFORMATION
North East Lincolnshire Council,http://statistics.data.gov.uk/id/local-authority/00FC),Children & Family Services,Ass Dir - Education,Sen/Inclusion,Other Local Authorities,Third Pp - Other Local Auth,PC101,13/12/2018,546766,4095,REVENUE,REDACTED PERSONAL INFORMATION,REDACTED PERSONAL INFORMATION
North East Lincolnshire Council,http://statistics.data.gov.uk/id/local-authority/00FC),Children & Family Services,Ass Dir - Education,Sen/Inclusion,Other Local Authorities,Third Pp - Other Local Auth,PC101,18/12/2018,546790,108822.8,REVENUE,REDACTED PERSONAL INFORMATION,REDACTED PERSONAL INFORMATION
North East Lincolnshire Council,http://statistics.data.gov.uk/id/local-authority/00FC),Children & Family Services,Ass Dir - Education,Sen/Inclusion,Other Local Authorities,Third Pp - Other Local Auth,PC101,18/12/2018,546785,60425,REVENUE,REDACTED PERSONAL INFORMATION,REDACTED PERSONAL INFORMATION
North East Lincolnshire Council,http://statistics.data.gov.uk/id/local-authority/00FC),Children & Family Services,Ass Dir - Education,Sen/Inclusion,Private Contractors,Third Party Prov - Private,PH101,11/12/2018,545892,13714.29,REVENUE,ROC NORTHWEST,141289
North East Lincolnshire Council,http://statistics.data.gov.uk/id/local-authority/00FC),Children & Family Services,Ass Dir - Education,Sen/Inclusion,Private Contractors,Third Party Prov - Private,PH101,11/12/2018,545893,14171.43,REVENUE,ROC NORTHWEST,141289
North East Lincolnshire Council,http://statistics.data.gov.uk/id/local-authority/00FC),Children & Family Services,Ass Dir - Education,Sen/Inclusion,Private Contractors,Third Party Prov - Private,PH101,11/12/2018,545891,19906.43,REVENUE,HALLIWELL HOMES LTD,137992
North East Lincolnshire Council,http://statistics.data.gov.uk/id/local-authority/00FC),Children & Family Services,Ass Dir - Education,Sen/Inclusion,Private Contractors,Third Party Prov - Private,PH101,11/12/2018,545890,10015.74,REVENUE,CARE TODAY CHILDRENS SERVICES,128284
North East Lincolnshire Council,http://statistics.data.gov.uk/id/local-authority/00FC),Children & Family Services,Ass Dir - Education,Sen/Inclusion,Private Contractors,Third Party Prov - Private,PH101,11/12/2018,545889,16385.71,REVENUE,REFLEXION CARE GROUP LIMITED,106975
North East Lincolnshire Council,http://statistics.data.gov.uk/id/local-authority/00FC),Children & Family Services,Ass Dir - Education,Sen/Inclusion,Private Contractors,Third Party Prov - Private,PH101,04/12/2018,544877,12648,REVENUE,LASKA CARE AND EDUCATION LTD,140222
North East Lincolnshire Council,http://statistics.data.gov.uk/id/local-authority/00FC),Children & Family Services,Ass Dir - Education,Sen/Inclusion,Private Contractors,Third Party Prov - Private,PH101,04/12/2018,544877,2192.14,REVENUE,LASKA CARE AND EDUCATION LTD,140222
North East Lincolnshire Council,http://statistics.data.gov.uk/id/local-authority/00FC),Children & Family Services,Ass Dir - Education,Sen/Inclusion,Private Contractors,Third Party Prov - Private,PH101,04/12/2018,544877,289.5,REVENUE,LASKA CARE AND EDUCATION LTD,140222
North East Lincolnshire Council,http://statistics.data.gov.uk/id/local-authority/00FC),Children & Family Services,Ass Dir - Education,Sen/Inclusion,Private Contractors,Third Party Prov - Private,PH101,13/12/2018,546767,26242.02,REVENUE,CARE TODAY CHILDRENS SERVICES,128284
North East Lincolnshire Council,http://statistics.data.gov.uk/id/local-authority/00FC),Children & Family Services,Ass Dir - Education,Sen/Inclusion,Private Contractors,Third Party Prov - Private,PH101,13/12/2018,546768,16692.9,REVENUE,CARE TODAY CHILDRENS SERVICES,128284
North East Lincolnshire Council,http://statistics.data.gov.uk/id/local-authority/00FC),Children & Family Services,Ass Dir - Education,Sen/Inclusion,Private Contractors,Third Party Prov - Private,PH101,13/12/2018,546769,14361.43,REVENUE,LASKA CARE AND EDUCATION LTD,140222
North East Lincolnshire Council,http://statistics.data.gov.uk/id/local-authority/00FC),Children & Family Services,Ass Dir - Education,Sen/Inclusion,Private Contractors,Third Party Prov - Private,PH101,13/12/2018,546770,11335.8,REVENUE,CARE TODAY CHILDRENS SERVICES,128284
North East Lincolnshire Council,http://statistics.data.gov.uk/id/local-authority/00FC),Children & Family Services,Ass Dir - Education,Sen/Inclusion,Private Contractors,Third Party Prov - Private,PH101,13/12/2018,546771,13714.29,REVENUE,ROC NORTHWEST,141289
North East Lincolnshire Council,http://statistics.data.gov.uk/id/local-authority/00FC),Children & Family Services,Ass Dir - Education,Sen/Inclusion,Private Contractors,Third Party Prov - Private,PH101,18/12/2018,547016,17121.3,REVENUE,TIMEOUT HOMES LTD,110615
North East Lincolnshire Council,http://statistics.data.gov.uk/id/local-authority/00FC),Children & Family Services,Ass Dir - Education,Sen/Inclusion,Private Contractors,Third Party Prov - Private,PH101,18/12/2018,547015,16928.4,REVENUE,TIMEOUT HOMES LTD,110615
North East Lincolnshire Council,http://statistics.data.gov.uk/id/local-authority/00FC),Children & Family Services,Ass Dir - Education,Sen/Inclusion,Miscellaneous Expenses,Contingency Reserve,LL123,13/12/2018,546873,6094,REVENUE,THE CAMBRIDGE PARK ACADEMY,107472
North East Lincolnshire Council,http://statistics.data.gov.uk/id/local-authority/00FC),Children & Family Services,Ass Dir - Education,Sen/Inclusion,Miscellaneous Expenses,Contingency Reserve,LL123,13/12/2018,546874,3413,REVENUE,THE CAMBRIDGE PARK ACADEMY,107472
North East Lincolnshire Council,http://statistics.data.gov.uk/id/local-authority/00FC),Children & Family Services,Ass Dir - Education,Sen/Inclusion,Miscellaneous Expenses,Contingency Reserve,LL123,13/12/2018,546875,12825,REVENUE,THE CAMBRIDGE PARK ACADEMY,107472
North East Lincolnshire Council,http://statistics.data.gov.uk/id/local-authority/00FC),Children & Family Services,Ass Dir - Education,Sen/Inclusion,Contributions To Provisions,Contributions - Other,LK103,20/12/2018,547480,429,REVENUE,COMMUNITY ACCORD,106613
North East Lincolnshire Council,http://statistics.data.gov.uk/id/local-authority/00FC),Children & Family Services,Ass Dir - Education,Sen/Inclusion,Contributions To Provisions,Contributions - Other,LK103,20/12/2018,547479,606,REVENUE,COMMUNITY ACCORD,106613
North East Lincolnshire Council,http://statistics.data.gov.uk/id/local-authority/00FC),Children & Family Services,Ass Dir - Education,Sen/Inclusion,Contributions To Provisions,Contributions - Other,LK103,20/12/2018,547478,588,REVENUE,COMMUNITY ACCORD,106613
North East Lincolnshire Council,http://statistics.data.gov.uk/id/local-authority/00FC),Children & Family Services,Ass Dir - Education,Sen/Inclusion,Contributions To Provisions,Contributions - Other,LK103,13/12/2018,546761,332.5,REVENUE,JOHN WHITGIFT ACADEMY,106898
North East Lincolnshire Council,http://statistics.data.gov.uk/id/local-authority/00FC),Children & Family Services,Ass Dir - Education,Sen/Inclusion,Equip / Furniture / Materials,Teaching Materials,LA117,18/12/2018,546912,600,REVENUE,NSPCC,135755
North East Lincolnshire Council,http://statistics.data.gov.uk/id/local-authority/00FC),Children & Family Services,Ass Dir - Education,Sen/Inclusion,Equip / Furniture / Materials,Non-Teaching Resources,LA118,18/12/2018,547042,266.26,REVENUE,OFFICE FRIENDS LTD,102454
North East Lincolnshire Council,http://statistics.data.gov.uk/id/local-authority/00FC),Children & Family Services,Ass Dir - Education,Sen/Inclusion,Private Contractors,Third Party Prov - Private,PH101,04/12/2018,644333,605.24,REVENUE,REDACTED PERSONAL INFORMATION,REDACTED PERSONAL INFORMATION
North East Lincolnshire Council,http://statistics.data.gov.uk/id/local-authority/00FC),Children & Family Services,Ass Dir - Education,Sen/Inclusion,Private Contractors,Third Party Prov - Private,PH101,20/12/2018,650797,605.24,REVENUE,REDACTED PERSONAL INFORMATION,REDACTED PERSONAL INFORMATION
North East Lincolnshire Council,http://statistics.data.gov.uk/id/local-authority/00FC),Children & Family Services,Ass Dir - Education,Sen/Inclusion,Private Contractors,Third Party Prov - Private,PH101,17/12/2018,647239,2900,REVENUE,REDACTED PERSONAL INFORMATION,REDACTED PERSONAL INFORMATION
North East Lincolnshire Council,http://statistics.data.gov.uk/id/local-authority/00FC),Children & Family Services,Ass Dir - Education,Sen/Inclusion,Private Contractors,Third Party Prov - Private,PH101,20/12/2018,547878,1200,REVENUE,LINKAGE COMMUNITY TRUST LTD,104471
North East Lincolnshire Council,http://statistics.data.gov.uk/id/local-authority/00FC),Children & Family Services,Ass Dir - Education,Sen/Inclusion,Private Contractors,Third Party Prov - Private,PH101,20/12/2018,547333,-2400,REVENUE,LINKAGE COMMUNITY TRUST LTD,104471
North East Lincolnshire Council,http://statistics.data.gov.uk/id/local-authority/00FC),Children & Family Services,Ass Dir - Education,Sen/Inclusion,Private Contractors,Third Party Prov - Private,PH101,20/12/2018,547466,10684.6,REVENUE,LINKAGE COMMUNITY TRUST LTD,104471
North East Lincolnshire Council,http://statistics.data.gov.uk/id/local-authority/00FC),Children & Family Services,Ass Dir - Education,Sen/Inclusion,Private Contractors,Third Party Prov - Private,PH101,20/12/2018,547921,-332,REVENUE,LINKAGE COMMUNITY TRUST LTD,104471
North East Lincolnshire Council,http://statistics.data.gov.uk/id/local-authority/00FC),Children & Family Services,Ass Dir - Education,Sen/Inclusion,Private Contractors,Third Party Prov - Private,PH101,20/12/2018,547467,11107.8,REVENUE,LINKAGE COMMUNITY TRUST LTD,104471
North East Lincolnshire Council,http://statistics.data.gov.uk/id/local-authority/00FC),Children & Family Services,Ass Dir - Education,Sen/Inclusion,Miscellaneous Expenses,Contingency Reserve,LL123,13/12/2018,546883,1317,REVENUE,PHOENIX PARK ACADEMY,126685
North East Lincolnshire Council,http://statistics.data.gov.uk/id/local-authority/00FC),Children & Family Services,Ass Dir - Education,Sen/Inclusion,Miscellaneous Expenses,Contingency Reserve,LL123,13/12/2018,546886,4654,REVENUE,PHOENIX PARK ACADEMY,126685
North East Lincolnshire Council,http://statistics.data.gov.uk/id/local-authority/00FC),Children & Family Services,Ass Dir - Education,Sen/Inclusion,Miscellaneous Expenses,Contingency Reserve,LL123,13/12/2018,546885,15800,REVENUE,PHOENIX PARK ACADEMY,126685
North East Lincolnshire Council,http://statistics.data.gov.uk/id/local-authority/00FC),Children & Family Services,Ass Dir - Education,Sen/Inclusion,Miscellaneous Expenses,Contingency Reserve,LL123,13/12/2018,546884,44767,REVENUE,PHOENIX PARK ACADEMY,126685
North East Lincolnshire Council,http://statistics.data.gov.uk/id/local-authority/00FC),Children & Family Services,Ass Dir - Education,Sen/Inclusion,Miscellaneous Expenses,Contingency Reserve,LL123,13/12/2018,546888,26333,REVENUE,SEVENHILLS ACADEMY,128660
North East Lincolnshire Council,http://statistics.data.gov.uk/id/local-authority/00FC),Children & Family Services,Ass Dir - Education,Sen/Inclusion,Miscellaneous Expenses,Contingency Reserve,LL123,13/12/2018,546887,26333,REVENUE,SEVENHILLS ACADEMY,128660
North East Lincolnshire Council,http://statistics.data.gov.uk/id/local-authority/00FC),Children & Family Services,Ass Dir - Education,Sen/Inclusion,Contributions To Provisions,Contributions - Other,LK103,13/12/2018,546759,1181.82,REVENUE,TEACHING PERSONNEL LTD,101305
North East Lincolnshire Council,http://statistics.data.gov.uk/id/local-authority/00FC),Children & Family Services,Ass Dir - Education,Sen/Inclusion,Contributions To Provisions,Contributions - Other,LK103,13/12/2018,546760,1128,REVENUE,TEACHING PERSONNEL LTD,101305
North East Lincolnshire Council,http://statistics.data.gov.uk/id/local-authority/00FC),Children & Family Services,Ass Dir - Education,Sen/Inclusion,Contributions To Provisions,Contributions - Other,LK103,20/12/2018,547477,1270.82,REVENUE,TEACHING PERSONNEL LTD,101305
North East Lincolnshire Council,http://statistics.data.gov.uk/id/local-authority/00FC),Children & Family Services,Ass Dir - Education,Sen/Inclusion,Contributions To Provisions,Contributions - Third Sector,LK102,17/12/2018,647311,470.75,REVENUE,REDACTED PERSONAL INFORMATION,REDACTED PERSONAL INFORMATION
North East Lincolnshire Council,http://statistics.data.gov.uk/id/local-authority/00FC),Children & Family Services,Ass Dir - Education,Sen/Inclusion,Contributions To Provisions,Contributions - Third Sector,LK102,17/12/2018,649076,520,REVENUE,REDACTED PERSONAL INFORMATION,REDACTED PERSONAL INFORMATION
North East Lincolnshire Council,http://statistics.data.gov.uk/id/local-authority/00FC),Children & Family Services,Ass Dir - Education,Sen/Inclusion,Miscellaneous Expenses,Contingency Reserve,LL123,13/12/2018,546876,1666,REVENUE,THE CAMBRIDGE PARK ACADEMY,107472
North East Lincolnshire Council,http://statistics.data.gov.uk/id/local-authority/00FC),Children & Family Services,Ass Dir - Education,Sen/Inclusion,Miscellaneous Expenses,Contingency Reserve,LL123,13/12/2018,546877,135752,REVENUE,THE CAMBRIDGE PARK ACADEMY,107472
North East Lincolnshire Council,http://statistics.data.gov.uk/id/local-authority/00FC),Children & Family Services,Ass Dir - Education,Sen/Inclusion,Miscellaneous Expenses,Contingency Reserve,LL123,13/12/2018,546878,6666,REVENUE,HUMBERSTON PARK SPECIAL SCHOOL,107911
North East Lincolnshire Council,http://statistics.data.gov.uk/id/local-authority/00FC),Children & Family Services,Ass Dir - Education,Sen/Inclusion,Miscellaneous Expenses,Contingency Reserve,LL123,13/12/2018,546879,108009,REVENUE,HUMBERSTON PARK SPECIAL SCHOOL,107911
North East Lincolnshire Council,http://statistics.data.gov.uk/id/local-authority/00FC),Children & Family Services,Ass Dir - Education,Sen/Inclusion,Miscellaneous Expenses,Other Expenses General,LL119,13/12/2018,546881,5833,REVENUE,EASTFIELD PRIMARY ACADEMY,121907
North East Lincolnshire Council,http://statistics.data.gov.uk/id/local-authority/00FC),Children & Family Services,Ass Dir - Education,Sen/Inclusion,Miscellaneous Expenses,Other Expenses General,LL119,13/12/2018,546880,1944.92,REVENUE,EASTFIELD PRIMARY ACADEMY,121907
North East Lincolnshire Council,http://statistics.data.gov.uk/id/local-authority/00FC),Children & Family Services,Ass Dir - Education,Sen/Inclusion,Miscellaneous Expenses,Other Expenses General,LL119,13/12/2018,546882,8750,REVENUE,EASTFIELD PRIMARY ACADEMY,121907
North East Lincolnshire Council,http://statistics.data.gov.uk/id/local-authority/00FC),Children & Family Services,Ass Dir - Education,Sen/Inclusion,Contributions To Provisions,Contributions - Other,LK103,11/12/2018,545870,822.15,REVENUE,CLEETHORPES CHILDCARE,101591
North East Lincolnshire Council,http://statistics.data.gov.uk/id/local-authority/00FC),Children & Family Services,Ass Dir - Education,Sen/Inclusion,Contributions To Provisions,Contributions - Other,LK103,04/12/2018,545138,1409.4,REVENUE,ORMISTON SOUTH PARADE ACADEMY,111750
North East Lincolnshire Council,http://statistics.data.gov.uk/id/local-authority/00FC),Children & Family Services,Ass Dir - Education,Sen/Inclusion,Contributions To Provisions,Contributions - Other,LK103,06/12/2018,545471,-1409.4,REVENUE,SOUTH PARADE DAY-CARE & OOSC,119842
North East Lincolnshire Council,http://statistics.data.gov.uk/id/local-authority/00FC),Children & Family Services,Ass Dir - Education,Sen/Inclusion,Contributions To Provisions,Contributions - Other,LK103,06/12/2018,545471,-1409.4,REVENUE,SOUTH PARADE DAY-CARE & OOSC,119842
North East Lincolnshire Council,http://statistics.data.gov.uk/id/local-authority/00FC),Children & Family Services,Ass Dir - Education,Sen/Inclusion,Contributions To Provisions,Contributions - Other,LK103,04/12/2018,545138,1409.4,REVENUE,ORMISTON SOUTH PARADE ACADEMY,111750
North East Lincolnshire Council,http://statistics.data.gov.uk/id/local-authority/00FC),Children & Family Services,Ass Dir - Education,Sen/Inclusion,Contributions To Provisions,Contributions - Other,LK103,11/12/2018,545907,1096.2,REVENUE,EASYLEARN LTD,105424
North East Lincolnshire Council,http://statistics.data.gov.uk/id/local-authority/00FC),Children & Family Services,Ass Dir - Education,Sen/Inclusion,Contributions To Provisions,Contributions - Other,LK103,20/12/2018,547925,1096.2,REVENUE,WIZ KIDZ,102424
North East Lincolnshire Council,http://statistics.data.gov.uk/id/local-authority/00FC),Children & Family Services,Ass Dir - Education,Sen/Inclusion,Contributions To Provisions,Contributions - Other,LK103,11/12/2018,545907,1644.3,REVENUE,EASYLEARN LTD,105424
North East Lincolnshire Council,http://statistics.data.gov.uk/id/local-authority/00FC),Children & Family Services,Ass Dir - Education,Sen/Inclusion,Contributions To Provisions,Contributions - Other,LK103,20/12/2018,547925,1644.3,REVENUE,WIZ KIDZ,102424
North East Lincolnshire Council,http://statistics.data.gov.uk/id/local-authority/00FC),Children & Family Services,Ass Dir - Education,Sen/Inclusion,Contributions To Provisions,Contributions - Other,LK103,11/12/2018,545868,328.86,REVENUE,FOR UNDER FIVES,101931
North East Lincolnshire Council,http://statistics.data.gov.uk/id/local-authority/00FC),Children & Family Services,Ass Dir - Education,Sen/Inclusion,Contributions To Provisions,Contributions - Other,LK103,11/12/2018,545871,1409.4,REVENUE,JUDY CLARK CHILD CARE,100939
North East Lincolnshire Council,http://statistics.data.gov.uk/id/local-authority/00FC),Children & Family Services,Ass Dir - Education,Sen/Inclusion,Contributions To Provisions,Contributions - Other,LK103,11/12/2018,545866,1409.4,REVENUE,LITTLECOATES PRIMARY ACADEMY,134261
North East Lincolnshire Council,http://statistics.data.gov.uk/id/local-authority/00FC),Children & Family Services,Ass Dir - Education,Sen/Inclusion,Contributions To Provisions,Contributions - Other,LK103,11/12/2018,545866,1973.16,REVENUE,LITTLECOATES PRIMARY ACADEMY,134261
North East Lincolnshire Council,http://statistics.data.gov.uk/id/local-authority/00FC),Children & Family Services,Ass Dir - Education,Sen/Inclusion,Contributions To Provisions,Contributions - Other,LK103,11/12/2018,545869,1409.4,REVENUE,PRECIOUS TIMES CHILDCARE SERVICES,101420
North East Lincolnshire Council,http://statistics.data.gov.uk/id/local-authority/00FC),Children & Family Services,Ass Dir - Education,School Improvement,Contributions To Provisions,Contributions - Other,LK103,06/12/2018,545403,615,REVENUE,BUTTERFLIES DAY NURSERY,101694
North East Lincolnshire Council,http://statistics.data.gov.uk/id/local-authority/00FC),Children & Family Services,Ass Dir - Education,School Improvement,Contributions To Provisions,Contributions - Other,LK103,06/12/2018,545426,615,REVENUE,LITTLE BLOSSOMS DAY NURSERY,111058
North East Lincolnshire Council,http://statistics.data.gov.uk/id/local-authority/00FC),Children & Family Services,Ass Dir - Education,School Improvement,Contributions To Provisions,Contributions - Other,LK103,06/12/2018,545435,615,REVENUE,GRIMSBY INSTITUTE - LITTLE STARS DAY NURSERY,114230
North East Lincolnshire Council,http://statistics.data.gov.uk/id/local-authority/00FC),Children & Family Services,Ass Dir - Education,School Improvement,Contributions To Provisions,Contributions - Other,LK103,06/12/2018,545430,615,REVENUE,MACAULAY PRIMARY ACADEMY,112680
North East Lincolnshire Council,http://statistics.data.gov.uk/id/local-authority/00FC),Children & Family Services,Ass Dir - Education,School Improvement,Contributions To Provisions,Contributions - Other,LK103,06/12/2018,545448,615,REVENUE,CANON PETER HALL CE PRIMARY ACADEMY,126646
North East Lincolnshire Council,http://statistics.data.gov.uk/id/local-authority/00FC),Children & Family Services,Ass Dir - Education,School Improvement,Contributions To Provisions,Contributions - Other,LK103,06/12/2018,545406,615,REVENUE,WIZ KIDZ,102424
North East Lincolnshire Council,http://statistics.data.gov.uk/id/local-authority/00FC),Children & Family Services,Ass Dir - Education,School Improvement,Private Contractors,Third Party Prov - Private,PH101,13/12/2018,546858,548.55,REVENUE,SCARTHO INFANTS SCHOOL,120365
North East Lincolnshire Council,http://statistics.data.gov.uk/id/local-authority/00FC),Children & Family Services,Ass Dir - Education,School Improvement,Other Agencies,Nursery Educ Fund - Standard,PJ139,13/12/2018,546607,540,REVENUE,ANDREA CULLUM - LITTLE GEMS,127347
North East Lincolnshire Council,http://statistics.data.gov.uk/id/local-authority/00FC),Children & Family Services,Ass Dir - Education,School Improvement,Other Agencies,Nursery Educ Fund - Standard,PJ139,13/12/2018,546576,627.3,REVENUE,ALISON'S CHILDMINDING SERVICES,119740
North East Lincolnshire Council,http://statistics.data.gov.uk/id/local-authority/00FC),Children & Family Services,Ass Dir - Education,School Improvement,Other Agencies,Nursery Educ Fund - Standard,PJ139,13/12/2018,546635,576,REVENUE,MRS A PARKER,132521
North East Lincolnshire Council,http://statistics.data.gov.uk/id/local-authority/00FC),Children & Family Services,Ass Dir - Education,School Improvement,Other Agencies,Nursery Educ Fund - Standard,PJ139,13/12/2018,546573,675,REVENUE,MISS AMANDA YOUNG,119739
North East Lincolnshire Council,http://statistics.data.gov.uk/id/local-authority/00FC),Children & Family Services,Ass Dir - Education,School Improvement,Other Agencies,Nursery Educ Fund - Standard,PJ139,13/12/2018,546575,1093.5,REVENUE,MISS AMANDA YOUNG,119739
North East Lincolnshire Council,http://statistics.data.gov.uk/id/local-authority/00FC),Children & Family Services,Ass Dir - Education,School Improvement,Other Agencies,Nursery Educ Fund - Standard,PJ139,13/12/2018,546499,553.5,REVENUE,JACQUELINE BRACEY,101200
North East Lincolnshire Council,http://statistics.data.gov.uk/id/local-authority/00FC),Children & Family Services,Ass Dir - Education,School Improvement,Other Agencies,Nursery Educ Fund - Standard,PJ139,13/12/2018,546480,16402.5,REVENUE,FOR UNDER FIVES LTD,100647
North East Lincolnshire Council,http://statistics.data.gov.uk/id/local-authority/00FC),Children & Family Services,Ass Dir - Education,School Improvement,Other Agencies,Nursery Educ Fund - Standard,PJ139,13/12/2018,546551,22140,REVENUE,BURSAR PLAYGROUP,111550
North East Lincolnshire Council,http://statistics.data.gov.uk/id/local-authority/00FC),Children & Family Services,Ass Dir - Education,School Improvement,Other Agencies,Nursery Educ Fund - Standard,PJ139,13/12/2018,546524,28228.5,REVENUE,BUTTERFLIES DAY NURSERY,101694
North East Lincolnshire Council,http://statistics.data.gov.uk/id/local-authority/00FC),Children & Family Services,Ass Dir - Education,School Improvement,Other Agencies,Nursery Educ Fund - Standard,PJ139,13/12/2018,546638,25697.25,REVENUE,CAMPDEN KIDS LTD,132975
North East Lincolnshire Council,http://statistics.data.gov.uk/id/local-authority/00FC),Children & Family Services,Ass Dir - Education,School Improvement,Other Agencies,Nursery Educ Fund - Standard,PJ139,13/12/2018,546604,22963.5,REVENUE,CANON PETER HALL CE PRIMARY ACADEMY,126646
North East Lincolnshire Council,http://statistics.data.gov.uk/id/local-authority/00FC),Children & Family Services,Ass Dir - Education,School Improvement,Other Agencies,Nursery Educ Fund - Standard,PJ139,13/12/2018,546485,31549.5,REVENUE,FOR UNDER FIVES LTD,100647
North East Lincolnshire Council,http://statistics.data.gov.uk/id/local-authority/00FC),Children & Family Services,Ass Dir - Education,School Improvement,Other Agencies,Nursery Educ Fund - Standard,PJ139,13/12/2018,546497,41004,REVENUE,THE CHILDRENS HOUSE,101141
North East Lincolnshire Council,http://statistics.data.gov.uk/id/local-authority/00FC),Children & Family Services,Ass Dir - Education,School Improvement,Other Agencies,Nursery Educ Fund - Standard,PJ139,13/12/2018,546669,1368,REVENUE,CLARE HOLNESS,140793
North East Lincolnshire Council,http://statistics.data.gov.uk/id/local-authority/00FC),Children & Family Services,Ass Dir - Education,School Improvement,Other Agencies,Nursery Educ Fund - Standard,PJ139,13/12/2018,546643,522,REVENUE,CLEE KIDS CLUB CIC,133644
North East Lincolnshire Council,http://statistics.data.gov.uk/id/local-authority/00FC),Children & Family Services,Ass Dir - Education,School Improvement,Other Agencies,Nursery Educ Fund - Standard,PJ139,13/12/2018,546666,540,REVENUE,MRS LYNSEY CONNOLLY,140212
North East Lincolnshire Council,http://statistics.data.gov.uk/id/local-authority/00FC),Children & Family Services,Ass Dir - Education,School Improvement,Other Agencies,Nursery Educ Fund - Standard,PJ139,13/12/2018,546653,675,REVENUE,DONNA DAYCARE,135022
North East Lincolnshire Council,http://statistics.data.gov.uk/id/local-authority/00FC),Children & Family Services,Ass Dir - Education,School Improvement,Other Agencies,Nursery Educ Fund - Standard,PJ139,13/12/2018,546589,23760,REVENUE,EASTFIELD PRIMARY ACADEMY,121907
North East Lincolnshire Council,http://statistics.data.gov.uk/id/local-authority/00FC),Children & Family Services,Ass Dir - Education,School Improvement,Other Agencies,Nursery Educ Fund - Standard,PJ139,13/12/2018,546539,6372,REVENUE,EAST RAVENDALE C OF E PRIMARY SCHOOL ACADEMY,109167
North East Lincolnshire Council,http://statistics.data.gov.uk/id/local-authority/00FC),Children & Family Services,Ass Dir - Education,School Improvement,Other Agencies,Nursery Educ Fund - Standard,PJ139,13/12/2018,546554,19372.5,REVENUE,EDWARD HENEAGE PRIMARY (ACADEMY),111742
North East Lincolnshire Council,http://statistics.data.gov.uk/id/local-authority/00FC),Children & Family Services,Ass Dir - Education,School Improvement,Other Agencies,Nursery Educ Fund - Standard,PJ139,13/12/2018,546628,29889,REVENUE,ELLISTON PRIMARY ACADEMY,129629
North East Lincolnshire Council,http://statistics.data.gov.uk/id/local-authority/00FC),Children & Family Services,Ass Dir - Education,School Improvement,Other Agencies,Nursery Educ Fund - Standard,PJ139,13/12/2018,546640,540,REVENUE,EMMA BRYAN,133307
North East Lincolnshire Council,http://statistics.data.gov.uk/id/local-authority/00FC),Children & Family Services,Ass Dir - Education,School Improvement,Other Agencies,Nursery Educ Fund - Standard,PJ139,13/12/2018,546627,17280,REVENUE,FAIRFIELD PRIMARY ACADEMY,129030
North East Lincolnshire Council,http://statistics.data.gov.uk/id/local-authority/00FC),Children & Family Services,Ass Dir - Education,School Improvement,Other Agencies,Nursery Educ Fund - Standard,PJ139,13/12/2018,546608,1107,REVENUE,SARAH FARROW-BROWNE,127842
North East Lincolnshire Council,http://statistics.data.gov.uk/id/local-authority/00FC),Children & Family Services,Ass Dir - Education,School Improvement,Other Agencies,Nursery Educ Fund - Standard,PJ139,13/12/2018,546623,6642,REVENUE,FREESTON TOTS PRESCHOOL,128592
North East Lincolnshire Council,http://statistics.data.gov.uk/id/local-authority/00FC),Children & Family Services,Ass Dir - Education,School Improvement,Other Agencies,Nursery Educ Fund - Standard,PJ139,13/12/2018,546508,19926,REVENUE,FIRST STEPS GRIMSBY LIMITED,101411
North East Lincolnshire Council,http://statistics.data.gov.uk/id/local-authority/00FC),Children & Family Services,Ass Dir - Education,School Improvement,Other Agencies,Nursery Educ Fund - Standard,PJ139,13/12/2018,546507,1278,REVENUE,FIRST STEPS GRIMSBY LIMITED,101411
North East Lincolnshire Council,http://statistics.data.gov.uk/id/local-authority/00FC),Children & Family Services,Ass Dir - Education,School Improvement,Other Agencies,Nursery Educ Fund - Standard,PJ139,13/12/2018,546648,25920,REVENUE,GREAT COATES PRIMARY ACADEMY,134467
North East Lincolnshire Council,http://statistics.data.gov.uk/id/local-authority/00FC),Children & Family Services,Ass Dir - Education,School Improvement,Other Agencies,Nursery Educ Fund - Standard,PJ139,13/12/2018,546598,540,REVENUE,HANNAH TOFTON - LITTLE LAMBS CHILDMINDER,123304
North East Lincolnshire Council,http://statistics.data.gov.uk/id/local-authority/00FC),Children & Family Services,Ass Dir - Education,School Improvement,Other Agencies,Nursery Educ Fund - Standard,PJ139,13/12/2018,546658,2088,REVENUE,AMYS LITTLE ADVENTURERS,137406
North East Lincolnshire Council,http://statistics.data.gov.uk/id/local-authority/00FC),Children & Family Services,Ass Dir - Education,School Improvement,Other Agencies,Nursery Educ Fund - Standard,PJ139,13/12/2018,546478,11880,REVENUE,FOR UNDER FIVES LTD,100647
North East Lincolnshire Council,http://statistics.data.gov.uk/id/local-authority/00FC),Children & Family Services,Ass Dir - Education,School Improvement,Other Agencies,Nursery Educ Fund - Standard,PJ139,13/12/2018,546517,1080,REVENUE,HELEN CROOKS,101529
North East Lincolnshire Council,http://statistics.data.gov.uk/id/local-authority/00FC),Children & Family Services,Ass Dir - Education,School Improvement,Other Agencies,Nursery Educ Fund - Standard,PJ139,13/12/2018,546495,22734,REVENUE,HEALING VILLAGE NURSERY,101096
North East Lincolnshire Council,http://statistics.data.gov.uk/id/local-authority/00FC),Children & Family Services,Ass Dir - Education,School Improvement,Other Agencies,Nursery Educ Fund - Standard,PJ139,13/12/2018,546624,756,REVENUE,MRS HELEN HESELTINE,128765
North East Lincolnshire Council,http://statistics.data.gov.uk/id/local-authority/00FC),Children & Family Services,Ass Dir - Education,School Improvement,Other Agencies,Nursery Educ Fund - Standard,PJ139,13/12/2018,546619,3240,REVENUE,ELLIE TOTS CHILDMINDING SERVICES,128251
North East Lincolnshire Council,http://statistics.data.gov.uk/id/local-authority/00FC),Children & Family Services,Ass Dir - Education,School Improvement,Other Agencies,Nursery Educ Fund - Standard,PJ139,13/12/2018,546521,9298.8,REVENUE,CLEETHORPES CHILDCARE,101591
North East Lincolnshire Council,http://statistics.data.gov.uk/id/local-authority/00FC),Children & Family Services,Ass Dir - Education,School Improvement,Other Agencies,Nursery Educ Fund - Standard,PJ139,13/12/2018,546633,19440,REVENUE,HUMBERSTON CLOVERFIELDS ACADEMY NURSERY,132178
North East Lincolnshire Council,http://statistics.data.gov.uk/id/local-authority/00FC),Children & Family Services,Ass Dir - Education,School Improvement,Other Agencies,Nursery Educ Fund - Standard,PJ139,13/12/2018,546567,32553,REVENUE,HUMBERSTON PRE SCHOOL,114491
North East Lincolnshire Council,http://statistics.data.gov.uk/id/local-authority/00FC),Children & Family Services,Ass Dir - Education,School Improvement,Other Agencies,Nursery Educ Fund - Standard,PJ139,13/12/2018,546594,7560,REVENUE,IMMINGHAM DAY CARE,122312
North East Lincolnshire Council,http://statistics.data.gov.uk/id/local-authority/00FC),Children & Family Services,Ass Dir - Education,School Improvement,Other Agencies,Nursery Educ Fund - Standard,PJ139,13/12/2018,546493,1350,REVENUE,IMMINGHAM DAY NURSERY,100998
North East Lincolnshire Council,http://statistics.data.gov.uk/id/local-authority/00FC),Children & Family Services,Ass Dir - Education,School Improvement,Other Agencies,Nursery Educ Fund - Standard,PJ139,13/12/2018,546487,1143.9,REVENUE,JUDY CLARK CHILD CARE,100939
North East Lincolnshire Council,http://statistics.data.gov.uk/id/local-authority/00FC),Children & Family Services,Ass Dir - Education,School Improvement,Other Agencies,Nursery Educ Fund - Standard,PJ139,13/12/2018,546602,1080,REVENUE,KEELY HASLAM,126459
North East Lincolnshire Council,http://statistics.data.gov.uk/id/local-authority/00FC),Children & Family Services,Ass Dir - Education,School Improvement,Other Agencies,Nursery Educ Fund - Standard,PJ139,13/12/2018,546529,4968,REVENUE,MS KAREN HUDSON,102103
North East Lincolnshire Council,http://statistics.data.gov.uk/id/local-authority/00FC),Children & Family Services,Ass Dir - Education,School Improvement,Other Agencies,Nursery Educ Fund - Standard,PJ139,13/12/2018,546657,1080,REVENUE,MRS KAREN RICH,136994
North East Lincolnshire Council,http://statistics.data.gov.uk/id/local-authority/00FC),Children & Family Services,Ass Dir - Education,School Improvement,Other Agencies,Nursery Educ Fund - Standard,PJ139,13/12/2018,546612,10184.4,REVENUE,LEAP AHEAD NURSERY,128017
North East Lincolnshire Council,http://statistics.data.gov.uk/id/local-authority/00FC),Children & Family Services,Ass Dir - Education,School Improvement,Other Agencies,Nursery Educ Fund - Standard,PJ139,13/12/2018,546614,4981.5,REVENUE,LEAP AHEAD NURSERY,128017
North East Lincolnshire Council,http://statistics.data.gov.uk/id/local-authority/00FC),Children & Family Services,Ass Dir - Education,School Improvement,Other Agencies,Nursery Educ Fund - Standard,PJ139,13/12/2018,546611,8820,REVENUE,LEAP AHEAD NURSERY,128017
North East Lincolnshire Council,http://statistics.data.gov.uk/id/local-authority/00FC),Children & Family Services,Ass Dir - Education,School Improvement,Other Agencies,Nursery Educ Fund - Standard,PJ139,13/12/2018,546548,32724,REVENUE,LITTLE BLOSSOMS DAY NURSERY,111058
North East Lincolnshire Council,http://statistics.data.gov.uk/id/local-authority/00FC),Children & Family Services,Ass Dir - Education,School Improvement,Other Agencies,Nursery Educ Fund - Standard,PJ139,13/12/2018,546565,38880,REVENUE,GRIMSBY INSTITUTE - LITTLE STARS DAY NURSERY,114230
North East Lincolnshire Council,http://statistics.data.gov.uk/id/local-authority/00FC),Children & Family Services,Ass Dir - Education,School Improvement,Other Agencies,Nursery Educ Fund - Standard,PJ139,13/12/2018,546593,9288,REVENUE,LITTLE TWINKLES CHILDCARE LTD,122217
North East Lincolnshire Council,http://statistics.data.gov.uk/id/local-authority/00FC),Children & Family Services,Ass Dir - Education,School Improvement,Other Agencies,Nursery Educ Fund - Standard,PJ139,13/12/2018,546544,68817.6,REVENUE,LISLE MARSDEN CHILDCARE LIMITED,110493
North East Lincolnshire Council,http://statistics.data.gov.uk/id/local-authority/00FC),Children & Family Services,Ass Dir - Education,School Improvement,Other Agencies,Nursery Educ Fund - Standard,PJ139,13/12/2018,546647,17158.5,REVENUE,LITTLECOATES PRIMARY ACADEMY,134261
North East Lincolnshire Council,http://statistics.data.gov.uk/id/local-authority/00FC),Children & Family Services,Ass Dir - Education,School Improvement,Other Agencies,Nursery Educ Fund - Standard,PJ139,13/12/2018,546644,1080,REVENUE,LINDA PENDRED,133792
North East Lincolnshire Council,http://statistics.data.gov.uk/id/local-authority/00FC),Children & Family Services,Ass Dir - Education,School Improvement,Other Agencies,Nursery Educ Fund - Standard,PJ139,13/12/2018,546562,39298.5,REVENUE,MACAULAY PRIMARY ACADEMY,112680
North East Lincolnshire Council,http://statistics.data.gov.uk/id/local-authority/00FC),Children & Family Services,Ass Dir - Education,School Improvement,Other Agencies,Nursery Educ Fund - Standard,PJ139,13/12/2018,546537,18000,REVENUE,NEW WALTHAM ACADEMY,108556
North East Lincolnshire Council,http://statistics.data.gov.uk/id/local-authority/00FC),Children & Family Services,Ass Dir - Education,School Improvement,Other Agencies,Nursery Educ Fund - Standard,PJ139,13/12/2018,546616,21042,REVENUE,ONLY ABOUT KIDS,128121
North East Lincolnshire Council,http://statistics.data.gov.uk/id/local-authority/00FC),Children & Family Services,Ass Dir - Education,School Improvement,Other Agencies,Nursery Educ Fund - Standard,PJ139,13/12/2018,546597,15830.1,REVENUE,OASIS ACADEMY SCHOOL (NUNSTHORPE SCHOOL),122861
North East Lincolnshire Council,http://statistics.data.gov.uk/id/local-authority/00FC),Children & Family Services,Ass Dir - Education,School Improvement,Other Agencies,Nursery Educ Fund - Standard,PJ139,13/12/2018,546579,42066,REVENUE,OLD CLEE PRIMARY ACADEMY,119822
North East Lincolnshire Council,http://statistics.data.gov.uk/id/local-authority/00FC),Children & Family Services,Ass Dir - Education,School Improvement,Other Agencies,Nursery Educ Fund - Standard,PJ139,13/12/2018,546556,57010.5,REVENUE,ORMISTON SOUTH PARADE ACADEMY,111750
North East Lincolnshire Council,http://statistics.data.gov.uk/id/local-authority/00FC),Children & Family Services,Ass Dir - Education,School Improvement,Other Agencies,Nursery Educ Fund - Standard,PJ139,13/12/2018,546655,16200,REVENUE,PILGRIM ACADEMY,136366
North East Lincolnshire Council,http://statistics.data.gov.uk/id/local-authority/00FC),Children & Family Services,Ass Dir - Education,School Improvement,Other Agencies,Nursery Educ Fund - Standard,PJ139,13/12/2018,546513,24552,REVENUE,PRECIOUS TIMES CHILDCARE SERVICES,101420
North East Lincolnshire Council,http://statistics.data.gov.uk/id/local-authority/00FC),Children & Family Services,Ass Dir - Education,School Improvement,Other Agencies,Nursery Educ Fund - Standard,PJ139,13/12/2018,546512,39852,REVENUE,PRECIOUS TIMES CHILDCARE SERVICES,101420
North East Lincolnshire Council,http://statistics.data.gov.uk/id/local-authority/00FC),Children & Family Services,Ass Dir - Education,School Improvement,Other Agencies,Nursery Educ Fund - Standard,PJ139,13/12/2018,546486,16605,REVENUE,FOR UNDER FIVES LTD,100647
North East Lincolnshire Council,http://statistics.data.gov.uk/id/local-authority/00FC),Children & Family Services,Ass Dir - Education,School Improvement,Other Agencies,Nursery Educ Fund - Standard,PJ139,13/12/2018,546591,45940.5,REVENUE,REYNOLDS PRIMARY ACADEMY,122175
North East Lincolnshire Council,http://statistics.data.gov.uk/id/local-authority/00FC),Children & Family Services,Ass Dir - Education,School Improvement,Other Agencies,Nursery Educ Fund - Standard,PJ139,13/12/2018,546492,26918.33,REVENUE,READY TEDDY GO,100973
North East Lincolnshire Council,http://statistics.data.gov.uk/id/local-authority/00FC),Children & Family Services,Ass Dir - Education,School Improvement,Other Agencies,Nursery Educ Fund - Standard,PJ139,13/12/2018,546675,2376,REVENUE,SARA BUNCE,142138
North East Lincolnshire Council,http://statistics.data.gov.uk/id/local-authority/00FC),Children & Family Services,Ass Dir - Education,School Improvement,Other Agencies,Nursery Educ Fund - Standard,PJ139,13/12/2018,546670,360,REVENUE,LITTLE EXPLORERS,140997
North East Lincolnshire Council,http://statistics.data.gov.uk/id/local-authority/00FC),Children & Family Services,Ass Dir - Education,School Improvement,Other Agencies,Nursery Educ Fund - Standard,PJ139,13/12/2018,546560,1080,REVENUE,SARA HARRISON,112491
North East Lincolnshire Council,http://statistics.data.gov.uk/id/local-authority/00FC),Children & Family Services,Ass Dir - Education,School Improvement,Other Agencies,Nursery Educ Fund - Standard,PJ139,13/12/2018,546546,911.25,REVENUE,SHARON SPRINGALL,111029
North East Lincolnshire Council,http://statistics.data.gov.uk/id/local-authority/00FC),Children & Family Services,Ass Dir - Education,School Improvement,Other Agencies,Nursery Educ Fund - Standard,PJ139,13/12/2018,546621,3025.35,REVENUE,SARAH'S CHILDMINDING,128578
North East Lincolnshire Council,http://statistics.data.gov.uk/id/local-authority/00FC),Children & Family Services,Ass Dir - Education,School Improvement,Other Agencies,Nursery Educ Fund - Standard,PJ139,13/12/2018,546519,37404,REVENUE,CLEETHORPES CHILDCARE,101591
North East Lincolnshire Council,http://statistics.data.gov.uk/id/local-authority/00FC),Children & Family Services,Ass Dir - Education,School Improvement,Other Agencies,Nursery Educ Fund - Standard,PJ139,13/12/2018,546481,31032,REVENUE,FOR UNDER FIVES LTD,100647
North East Lincolnshire Council,http://statistics.data.gov.uk/id/local-authority/00FC),Children & Family Services,Ass Dir - Education,School Improvement,Other Agencies,Nursery Educ Fund - Standard,PJ139,13/12/2018,546631,18144,REVENUE,SPRINGFIELD PRIMARY ACADEMY,131306
North East Lincolnshire Council,http://statistics.data.gov.uk/id/local-authority/00FC),Children & Family Services,Ass Dir - Education,School Improvement,Other Agencies,Nursery Educ Fund - Standard,PJ139,13/12/2018,546527,5940,REVENUE,SARAH SHOTBOLT,101742
North East Lincolnshire Council,http://statistics.data.gov.uk/id/local-authority/00FC),Children & Family Services,Ass Dir - Education,School Improvement,Other Agencies,Nursery Educ Fund - Standard,PJ139,13/12/2018,546586,11070,REVENUE,ST CHRISTOPHERS PRE SCHOOL,121589
North East Lincolnshire Council,http://statistics.data.gov.uk/id/local-authority/00FC),Children & Family Services,Ass Dir - Education,School Improvement,Other Agencies,Nursery Educ Fund - Standard,PJ139,13/12/2018,546584,1080,REVENUE,STEPHANIE DURRANT,120541
North East Lincolnshire Council,http://statistics.data.gov.uk/id/local-authority/00FC),Children & Family Services,Ass Dir - Education,School Improvement,Other Agencies,Nursery Educ Fund - Standard,PJ139,13/12/2018,546489,21600,REVENUE,ST JAMES SCHOOL,100940
North East Lincolnshire Council,http://statistics.data.gov.uk/id/local-authority/00FC),Children & Family Services,Ass Dir - Education,School Improvement,Other Agencies,Nursery Educ Fund - Standard,PJ139,13/12/2018,546542,11955.6,REVENUE,ST JOSEPH'S RC PRIMARY ACADEMY,110066
North East Lincolnshire Council,http://statistics.data.gov.uk/id/local-authority/00FC),Children & Family Services,Ass Dir - Education,School Improvement,Other Agencies,Nursery Educ Fund - Standard,PJ139,13/12/2018,546526,19764,REVENUE,ST MARGARETS PRE-SCHOOL,101724
North East Lincolnshire Council,http://statistics.data.gov.uk/id/local-authority/00FC),Children & Family Services,Ass Dir - Education,School Improvement,Other Agencies,Nursery Educ Fund - Standard,PJ139,13/12/2018,546569,17712,REVENUE,ST MARYS CATHOLIC PRIMARY VOLUNTARY ACADEMY,115108
North East Lincolnshire Council,http://statistics.data.gov.uk/id/local-authority/00FC),Children & Family Services,Ass Dir - Education,School Improvement,Other Agencies,Nursery Educ Fund - Standard,PJ139,13/12/2018,546504,34169.4,REVENUE,ST PETERS CHILDREN CENTRE,101322
North East Lincolnshire Council,http://statistics.data.gov.uk/id/local-authority/00FC),Children & Family Services,Ass Dir - Education,School Improvement,Other Agencies,Nursery Educ Fund - Standard,PJ139,13/12/2018,546558,12730.5,REVENUE,STRAND PRIMARY ACADEMY,111862
North East Lincolnshire Council,http://statistics.data.gov.uk/id/local-authority/00FC),Children & Family Services,Ass Dir - Education,School Improvement,Other Agencies,Nursery Educ Fund - Standard,PJ139,13/12/2018,546534,11402.1,REVENUE,THE AVENUE PLAYGROUP,103168
North East Lincolnshire Council,http://statistics.data.gov.uk/id/local-authority/00FC),Children & Family Services,Ass Dir - Education,School Improvement,Other Agencies,Nursery Educ Fund - Standard,PJ139,13/12/2018,546572,22472.1,REVENUE,THRUNSCOE PRIMARY AND NURSERY ACADEMY,118749
North East Lincolnshire Council,http://statistics.data.gov.uk/id/local-authority/00FC),Children & Family Services,Ass Dir - Education,School Improvement,Other Agencies,Nursery Educ Fund - Standard,PJ139,13/12/2018,546536,67752,REVENUE,WALTHAM LEAS PRE-SCHOOL,108236
North East Lincolnshire Council,http://statistics.data.gov.uk/id/local-authority/00FC),Children & Family Services,Ass Dir - Education,School Improvement,Other Agencies,Nursery Educ Fund - Standard,PJ139,13/12/2018,546550,20479.5,REVENUE,WEELSBY ACADEMY,111161
North East Lincolnshire Council,http://statistics.data.gov.uk/id/local-authority/00FC),Children & Family Services,Ass Dir - Education,School Improvement,Other Agencies,Nursery Educ Fund - Standard,PJ139,13/12/2018,546502,25461,REVENUE,WELHOLME PRE SCHOOL,101258
North East Lincolnshire Council,http://statistics.data.gov.uk/id/local-authority/00FC),Children & Family Services,Ass Dir - Education,School Improvement,Other Agencies,Nursery Educ Fund - Standard,PJ139,13/12/2018,546506,1350,REVENUE,WENDOVER PRE-SCHOOL,101350
North East Lincolnshire Council,http://statistics.data.gov.uk/id/local-authority/00FC),Children & Family Services,Ass Dir - Education,School Improvement,Other Agencies,Nursery Educ Fund - Standard,PJ139,13/12/2018,546505,10260,REVENUE,WENDOVER PRE-SCHOOL,101350
North East Lincolnshire Council,http://statistics.data.gov.uk/id/local-authority/00FC),Children & Family Services,Ass Dir - Education,School Improvement,Other Agencies,Nursery Educ Fund - Standard,PJ139,13/12/2018,546583,11623.5,REVENUE,WILLOWS PRIMARY ACADEMY,120478
North East Lincolnshire Council,http://statistics.data.gov.uk/id/local-authority/00FC),Children & Family Services,Ass Dir - Education,School Improvement,Other Agencies,Nursery Educ Fund - Standard,PJ139,13/12/2018,546531,12825,REVENUE,WIZ KIDZ,102424
North East Lincolnshire Council,http://statistics.data.gov.uk/id/local-authority/00FC),Children & Family Services,Ass Dir - Education,School Improvement,Other Agencies,Nursery Educ Fund - Standard,PJ139,13/12/2018,546532,25461,REVENUE,WIZ KIDZ,102424
North East Lincolnshire Council,http://statistics.data.gov.uk/id/local-authority/00FC),Children & Family Services,Ass Dir - Education,School Improvement,Other Agencies,Nursery Educ Fund - Standard,PJ139,13/12/2018,546637,7749,REVENUE,WOODLANDS ACADEMY,132649
North East Lincolnshire Council,http://statistics.data.gov.uk/id/local-authority/00FC),Children & Family Services,Ass Dir - Education,School Improvement,Other Agencies,Nursery Educ Fund - Standard,PJ139,13/12/2018,546564,24840,REVENUE,YARBOROUGH ACADEMY,112852
North East Lincolnshire Council,http://statistics.data.gov.uk/id/local-authority/00FC),Children & Family Services,Ass Dir - Education,School Improvement,Other Agencies,Nursery Educ Fund - Standard,PJ139,06/12/2018,545371,1053,REVENUE,FOR UNDER FIVES LTD,100647
North East Lincolnshire Council,http://statistics.data.gov.uk/id/local-authority/00FC),Children & Family Services,Ass Dir - Education,School Improvement,Other Agencies,Nursery Educ Fund - Standard,PJ139,06/12/2018,545429,430.5,REVENUE,BURSAR PLAYGROUP,111550
North East Lincolnshire Council,http://statistics.data.gov.uk/id/local-authority/00FC),Children & Family Services,Ass Dir - Education,School Improvement,Other Agencies,Nursery Educ Fund - Standard,PJ139,06/12/2018,545377,291.6,REVENUE,FOR UNDER FIVES LTD,100647
North East Lincolnshire Council,http://statistics.data.gov.uk/id/local-authority/00FC),Children & Family Services,Ass Dir - Education,School Improvement,Other Agencies,Nursery Educ Fund - Standard,PJ139,06/12/2018,545442,475.65,REVENUE,EASTFIELD PRIMARY ACADEMY,121907
North East Lincolnshire Council,http://statistics.data.gov.uk/id/local-authority/00FC),Children & Family Services,Ass Dir - Education,School Improvement,Other Agencies,Nursery Educ Fund - Standard,PJ139,06/12/2018,545394,728,REVENUE,FIRST STEPS GRIMSBY LIMITED,101411
North East Lincolnshire Council,http://statistics.data.gov.uk/id/local-authority/00FC),Children & Family Services,Ass Dir - Education,School Improvement,Other Agencies,Nursery Educ Fund - Standard,PJ139,06/12/2018,545396,307.5,REVENUE,FIRST STEPS GRIMSBY LIMITED,101411
North East Lincolnshire Council,http://statistics.data.gov.uk/id/local-authority/00FC),Children & Family Services,Ass Dir - Education,School Improvement,Other Agencies,Nursery Educ Fund - Standard,PJ139,06/12/2018,545374,420,REVENUE,FOR UNDER FIVES LTD,100647
North East Lincolnshire Council,http://statistics.data.gov.uk/id/local-authority/00FC),Children & Family Services,Ass Dir - Education,School Improvement,Other Agencies,Nursery Educ Fund - Standard,PJ139,06/12/2018,545438,580.65,REVENUE,HUMBERSTON PRE SCHOOL,114491
North East Lincolnshire Council,http://statistics.data.gov.uk/id/local-authority/00FC),Children & Family Services,Ass Dir - Education,School Improvement,Other Agencies,Nursery Educ Fund - Standard,PJ139,06/12/2018,545458,258.15,REVENUE,LEAP AHEAD NURSERY,128017
North East Lincolnshire Council,http://statistics.data.gov.uk/id/local-authority/00FC),Children & Family Services,Ass Dir - Education,School Improvement,Other Agencies,Nursery Educ Fund - Standard,PJ139,06/12/2018,545434,415.9,REVENUE,GRIMSBY INSTITUTE - LITTLE STARS DAY NURSERY,114230
North East Lincolnshire Council,http://statistics.data.gov.uk/id/local-authority/00FC),Children & Family Services,Ass Dir - Education,School Improvement,Other Agencies,Nursery Educ Fund - Standard,PJ139,06/12/2018,545431,541.2,REVENUE,MACAULAY PRIMARY ACADEMY,112680
North East Lincolnshire Council,http://statistics.data.gov.uk/id/local-authority/00FC),Children & Family Services,Ass Dir - Education,School Improvement,Other Agencies,Nursery Educ Fund - Standard,PJ139,06/12/2018,545416,767.7,REVENUE,NEW WALTHAM ACADEMY,108556
North East Lincolnshire Council,http://statistics.data.gov.uk/id/local-authority/00FC),Children & Family Services,Ass Dir - Education,School Improvement,Other Agencies,Nursery Educ Fund - Standard,PJ139,06/12/2018,545445,416.7,REVENUE,OASIS ACADEMY SCHOOL (NUNSTHORPE SCHOOL),122861
North East Lincolnshire Council,http://statistics.data.gov.uk/id/local-authority/00FC),Children & Family Services,Ass Dir - Education,School Improvement,Other Agencies,Nursery Educ Fund - Standard,PJ139,06/12/2018,545402,634.2,REVENUE,CLEETHORPES CHILDCARE,101591
North East Lincolnshire Council,http://statistics.data.gov.uk/id/local-authority/00FC),Children & Family Services,Ass Dir - Education,School Improvement,Other Agencies,Nursery Educ Fund - Standard,PJ139,06/12/2018,545379,360,REVENUE,ST MARTINS PREPARATORY SCHOOL,100889
North East Lincolnshire Council,http://statistics.data.gov.uk/id/local-authority/00FC),Children & Family Services,Ass Dir - Education,School Improvement,Other Agencies,Nursery Educ Fund - Standard,PJ139,06/12/2018,545390,1107,REVENUE,ST PETERS CHILDREN CENTRE,101322
North East Lincolnshire Council,http://statistics.data.gov.uk/id/local-authority/00FC),Children & Family Services,Ass Dir - Education,School Improvement,Other Agencies,Nursery Educ Fund - Standard,PJ139,06/12/2018,545383,352,REVENUE,THE CHILDRENS HOUSE,101141
North East Lincolnshire Council,http://statistics.data.gov.uk/id/local-authority/00FC),Children & Family Services,Ass Dir - Education,School Improvement,Other Agencies,Nursery Educ Fund - Standard,PJ139,06/12/2018,545385,709,REVENUE,WELHOLME PRE SCHOOL,101258
North East Lincolnshire Council,http://statistics.data.gov.uk/id/local-authority/00FC),Children & Family Services,Ass Dir - Education,School Improvement,Other Agencies,Nursery Educ Fund - Standard,PJ139,06/12/2018,545392,1260,REVENUE,WENDOVER PRE-SCHOOL,101350
North East Lincolnshire Council,http://statistics.data.gov.uk/id/local-authority/00FC),Children & Family Services,Ass Dir - Education,School Improvement,Other Agencies,Other,PJ121,13/12/2018,546606,675,REVENUE,ANDREA CULLUM - LITTLE GEMS,127347
North East Lincolnshire Council,http://statistics.data.gov.uk/id/local-authority/00FC),Children & Family Services,Ass Dir - Education,School Improvement,Other Agencies,Other,PJ121,13/12/2018,546601,675,REVENUE,ANGELA MAYER,125119
North East Lincolnshire Council,http://statistics.data.gov.uk/id/local-authority/00FC),Children & Family Services,Ass Dir - Education,School Improvement,Other Agencies,Other,PJ121,13/12/2018,546662,675,REVENUE,ALEXANDRA BEECH,139871
North East Lincolnshire Council,http://statistics.data.gov.uk/id/local-authority/00FC),Children & Family Services,Ass Dir - Education,School Improvement,Other Agencies,Other,PJ121,13/12/2018,546479,13500,REVENUE,FOR UNDER FIVES LTD,100647
North East Lincolnshire Council,http://statistics.data.gov.uk/id/local-authority/00FC),Children & Family Services,Ass Dir - Education,School Improvement,Other Agencies,Other,PJ121,13/12/2018,546523,29025,REVENUE,BUTTERFLIES DAY NURSERY,101694
North East Lincolnshire Council,http://statistics.data.gov.uk/id/local-authority/00FC),Children & Family Services,Ass Dir - Education,School Improvement,Other Agencies,Other,PJ121,13/12/2018,546639,10800,REVENUE,CAMPDEN KIDS LTD,132975
North East Lincolnshire Council,http://statistics.data.gov.uk/id/local-authority/00FC),Children & Family Services,Ass Dir - Education,School Improvement,Other Agencies,Other,PJ121,13/12/2018,546477,25650,REVENUE,FOR UNDER FIVES LTD,100647
North East Lincolnshire Council,http://statistics.data.gov.uk/id/local-authority/00FC),Children & Family Services,Ass Dir - Education,School Improvement,Other Agencies,Other,PJ121,13/12/2018,546498,2025,REVENUE,THE CHILDRENS HOUSE,101141
North East Lincolnshire Council,http://statistics.data.gov.uk/id/local-authority/00FC),Children & Family Services,Ass Dir - Education,School Improvement,Other Agencies,Other,PJ121,13/12/2018,546668,3375,REVENUE,CLARE HOLNESS,140793
North East Lincolnshire Council,http://statistics.data.gov.uk/id/local-authority/00FC),Children & Family Services,Ass Dir - Education,School Improvement,Other Agencies,Other,PJ121,13/12/2018,546622,11475,REVENUE,FREESTON TOTS PRESCHOOL,128592
North East Lincolnshire Council,http://statistics.data.gov.uk/id/local-authority/00FC),Children & Family Services,Ass Dir - Education,School Improvement,Other Agencies,Other,PJ121,13/12/2018,546509,18900,REVENUE,FIRST STEPS GRIMSBY LIMITED,101411
North East Lincolnshire Council,http://statistics.data.gov.uk/id/local-authority/00FC),Children & Family Services,Ass Dir - Education,School Improvement,Other Agencies,Other,PJ121,13/12/2018,546510,675,REVENUE,FIRST STEPS GRIMSBY LIMITED,101411
North East Lincolnshire Council,http://statistics.data.gov.uk/id/local-authority/00FC),Children & Family Services,Ass Dir - Education,School Improvement,Other Agencies,Other,PJ121,13/12/2018,546484,4860,REVENUE,FOR UNDER FIVES LTD,100647
North East Lincolnshire Council,http://statistics.data.gov.uk/id/local-authority/00FC),Children & Family Services,Ass Dir - Education,School Improvement,Other Agencies,Other,PJ121,13/12/2018,546650,1350,REVENUE,CURIOUS MINDS CHILDMINDING,135012
North East Lincolnshire Council,http://statistics.data.gov.uk/id/local-authority/00FC),Children & Family Services,Ass Dir - Education,School Improvement,Other Agencies,Other,PJ121,13/12/2018,546518,675,REVENUE,HELEN CROOKS,101529
North East Lincolnshire Council,http://statistics.data.gov.uk/id/local-authority/00FC),Children & Family Services,Ass Dir - Education,School Improvement,Other Agencies,Other,PJ121,13/12/2018,546496,2520,REVENUE,HEALING VILLAGE NURSERY,101096
North East Lincolnshire Council,http://statistics.data.gov.uk/id/local-authority/00FC),Children & Family Services,Ass Dir - Education,School Improvement,Other Agencies,Other,PJ121,13/12/2018,546618,2700,REVENUE,ELLIE TOTS CHILDMINDING SERVICES,128251
North East Lincolnshire Council,http://statistics.data.gov.uk/id/local-authority/00FC),Children & Family Services,Ass Dir - Education,School Improvement,Other Agencies,Other,PJ121,13/12/2018,546522,11880,REVENUE,CLEETHORPES CHILDCARE,101591
North East Lincolnshire Council,http://statistics.data.gov.uk/id/local-authority/00FC),Children & Family Services,Ass Dir - Education,School Improvement,Other Agencies,Other,PJ121,13/12/2018,546632,2700,REVENUE,HUMBERSTON CLOVERFIELDS ACADEMY NURSERY,132178
North East Lincolnshire Council,http://statistics.data.gov.uk/id/local-authority/00FC),Children & Family Services,Ass Dir - Education,School Improvement,Other Agencies,Other,PJ121,13/12/2018,546568,2025,REVENUE,HUMBERSTON PRE SCHOOL,114491
North East Lincolnshire Council,http://statistics.data.gov.uk/id/local-authority/00FC),Children & Family Services,Ass Dir - Education,School Improvement,Other Agencies,Other,PJ121,13/12/2018,546494,2700,REVENUE,IMMINGHAM DAY NURSERY,100998
North East Lincolnshire Council,http://statistics.data.gov.uk/id/local-authority/00FC),Children & Family Services,Ass Dir - Education,School Improvement,Other Agencies,Other,PJ121,13/12/2018,546488,20250,REVENUE,JUDY CLARK CHILD CARE,100939
North East Lincolnshire Council,http://statistics.data.gov.uk/id/local-authority/00FC),Children & Family Services,Ass Dir - Education,School Improvement,Other Agencies,Other,PJ121,13/12/2018,546613,7020,REVENUE,LEAP AHEAD NURSERY,128017
North East Lincolnshire Council,http://statistics.data.gov.uk/id/local-authority/00FC),Children & Family Services,Ass Dir - Education,School Improvement,Other Agencies,Other,PJ121,13/12/2018,546615,8775,REVENUE,LEAP AHEAD NURSERY,128017
North East Lincolnshire Council,http://statistics.data.gov.uk/id/local-authority/00FC),Children & Family Services,Ass Dir - Education,School Improvement,Other Agencies,Other,PJ121,13/12/2018,546610,675,REVENUE,LEAP AHEAD NURSERY,128017
North East Lincolnshire Council,http://statistics.data.gov.uk/id/local-authority/00FC),Children & Family Services,Ass Dir - Education,School Improvement,Other Agencies,Other,PJ121,13/12/2018,546547,6075,REVENUE,LITTLE BLOSSOMS DAY NURSERY,111058
North East Lincolnshire Council,http://statistics.data.gov.uk/id/local-authority/00FC),Children & Family Services,Ass Dir - Education,School Improvement,Other Agencies,Other,PJ121,13/12/2018,546566,17550,REVENUE,GRIMSBY INSTITUTE - LITTLE STARS DAY NURSERY,114230
North East Lincolnshire Council,http://statistics.data.gov.uk/id/local-authority/00FC),Children & Family Services,Ass Dir - Education,School Improvement,Other Agencies,Other,PJ121,13/12/2018,546592,675,REVENUE,LITTLE TWINKLES CHILDCARE LTD,122217
North East Lincolnshire Council,http://statistics.data.gov.uk/id/local-authority/00FC),Children & Family Services,Ass Dir - Education,School Improvement,Other Agencies,Other,PJ121,13/12/2018,546543,5805,REVENUE,LISLE MARSDEN CHILDCARE LIMITED,110493
North East Lincolnshire Council,http://statistics.data.gov.uk/id/local-authority/00FC),Children & Family Services,Ass Dir - Education,School Improvement,Other Agencies,Other,PJ121,13/12/2018,546646,11475,REVENUE,LITTLECOATES PRIMARY ACADEMY,134261
North East Lincolnshire Council,http://statistics.data.gov.uk/id/local-authority/00FC),Children & Family Services,Ass Dir - Education,School Improvement,Other Agencies,Other,PJ121,13/12/2018,546672,1125,REVENUE,MS NATASHA DYKE,141560
North East Lincolnshire Council,http://statistics.data.gov.uk/id/local-authority/00FC),Children & Family Services,Ass Dir - Education,School Improvement,Other Agencies,Other,PJ121,13/12/2018,546581,2025,REVENUE,NICKY'S CHILDMINDING,119901
North East Lincolnshire Council,http://statistics.data.gov.uk/id/local-authority/00FC),Children & Family Services,Ass Dir - Education,School Improvement,Other Agencies,Other,PJ121,13/12/2018,546617,967.5,REVENUE,ONLY ABOUT KIDS,128121
North East Lincolnshire Council,http://statistics.data.gov.uk/id/local-authority/00FC),Children & Family Services,Ass Dir - Education,School Improvement,Other Agencies,Other,PJ121,13/12/2018,546555,18900,REVENUE,ORMISTON SOUTH PARADE ACADEMY,111750
North East Lincolnshire Council,http://statistics.data.gov.uk/id/local-authority/00FC),Children & Family Services,Ass Dir - Education,School Improvement,Other Agencies,Other,PJ121,13/12/2018,546514,1080,REVENUE,PRECIOUS TIMES CHILDCARE SERVICES,101420
North East Lincolnshire Council,http://statistics.data.gov.uk/id/local-authority/00FC),Children & Family Services,Ass Dir - Education,School Improvement,Other Agencies,Other,PJ121,13/12/2018,546511,9045,REVENUE,PRECIOUS TIMES CHILDCARE SERVICES,101420
North East Lincolnshire Council,http://statistics.data.gov.uk/id/local-authority/00FC),Children & Family Services,Ass Dir - Education,School Improvement,Other Agencies,Other,PJ121,13/12/2018,546483,14175,REVENUE,FOR UNDER FIVES LTD,100647
North East Lincolnshire Council,http://statistics.data.gov.uk/id/local-authority/00FC),Children & Family Services,Ass Dir - Education,School Improvement,Other Agencies,Other,PJ121,13/12/2018,546491,1350,REVENUE,READY TEDDY GO,100973
North East Lincolnshire Council,http://statistics.data.gov.uk/id/local-authority/00FC),Children & Family Services,Ass Dir - Education,School Improvement,Other Agencies,Other,PJ121,13/12/2018,546545,2025,REVENUE,SHARON SPRINGALL,111029
North East Lincolnshire Council,http://statistics.data.gov.uk/id/local-authority/00FC),Children & Family Services,Ass Dir - Education,School Improvement,Other Agencies,Other,PJ121,13/12/2018,546620,3375,REVENUE,SARAH'S CHILDMINDING,128578
North East Lincolnshire Council,http://statistics.data.gov.uk/id/local-authority/00FC),Children & Family Services,Ass Dir - Education,School Improvement,Other Agencies,Other,PJ121,13/12/2018,546520,1980,REVENUE,CLEETHORPES CHILDCARE,101591
North East Lincolnshire Council,http://statistics.data.gov.uk/id/local-authority/00FC),Children & Family Services,Ass Dir - Education,School Improvement,Other Agencies,Other,PJ121,13/12/2018,546482,3105,REVENUE,FOR UNDER FIVES LTD,100647
North East Lincolnshire Council,http://statistics.data.gov.uk/id/local-authority/00FC),Children & Family Services,Ass Dir - Education,School Improvement,Other Agencies,Other,PJ121,13/12/2018,546528,1350,REVENUE,SARAH SHOTBOLT,101742
North East Lincolnshire Council,http://statistics.data.gov.uk/id/local-authority/00FC),Children & Family Services,Ass Dir - Education,School Improvement,Other Agencies,Other,PJ121,13/12/2018,546587,9000,REVENUE,ST CHRISTOPHERS PRE SCHOOL,121589
North East Lincolnshire Council,http://statistics.data.gov.uk/id/local-authority/00FC),Children & Family Services,Ass Dir - Education,School Improvement,Other Agencies,Other,PJ121,13/12/2018,546490,6075,REVENUE,ST JAMES SCHOOL,100940
North East Lincolnshire Council,http://statistics.data.gov.uk/id/local-authority/00FC),Children & Family Services,Ass Dir - Education,School Improvement,Other Agencies,Other,PJ121,13/12/2018,546525,675,REVENUE,ST MARGARETS PRE-SCHOOL,101724
North East Lincolnshire Council,http://statistics.data.gov.uk/id/local-authority/00FC),Children & Family Services,Ass Dir - Education,School Improvement,Other Agencies,Other,PJ121,13/12/2018,546503,12825,REVENUE,ST PETERS CHILDREN CENTRE,101322
North East Lincolnshire Council,http://statistics.data.gov.uk/id/local-authority/00FC),Children & Family Services,Ass Dir - Education,School Improvement,Other Agencies,Other,PJ121,13/12/2018,546533,4050,REVENUE,THE AVENUE PLAYGROUP,103168
North East Lincolnshire Council,http://statistics.data.gov.uk/id/local-authority/00FC),Children & Family Services,Ass Dir - Education,School Improvement,Other Agencies,Other,PJ121,13/12/2018,546660,675,REVENUE,MRS VERITY TAYLOR-GREEN,138243
North East Lincolnshire Council,http://statistics.data.gov.uk/id/local-authority/00FC),Children & Family Services,Ass Dir - Education,School Improvement,Other Agencies,Other,PJ121,13/12/2018,546535,7425,REVENUE,WALTHAM LEAS PRE-SCHOOL,108236
North East Lincolnshire Council,http://statistics.data.gov.uk/id/local-authority/00FC),Children & Family Services,Ass Dir - Education,School Improvement,Other Agencies,Other,PJ121,06/12/2018,545370,1225,REVENUE,FOR UNDER FIVES LTD,100647
North East Lincolnshire Council,http://statistics.data.gov.uk/id/local-authority/00FC),Children & Family Services,Ass Dir - Education,School Improvement,Other Agencies,Other,PJ121,06/12/2018,545404,600,REVENUE,BUTTERFLIES DAY NURSERY,101694
North East Lincolnshire Council,http://statistics.data.gov.uk/id/local-authority/00FC),Children & Family Services,Ass Dir - Education,School Improvement,Other Agencies,Other,PJ121,06/12/2018,545468,375,REVENUE,CAMPDEN KIDS LTD,132975
North East Lincolnshire Council,http://statistics.data.gov.uk/id/local-authority/00FC),Children & Family Services,Ass Dir - Education,School Improvement,Other Agencies,Other,PJ121,06/12/2018,545398,525,REVENUE,FIRST STEPS GRIMSBY LIMITED,101411
North East Lincolnshire Council,http://statistics.data.gov.uk/id/local-authority/00FC),Children & Family Services,Ass Dir - Education,School Improvement,Other Agencies,Other,PJ121,06/12/2018,545399,1125,REVENUE,FIRST STEPS GRIMSBY LIMITED,101411
North East Lincolnshire Council,http://statistics.data.gov.uk/id/local-authority/00FC),Children & Family Services,Ass Dir - Education,School Improvement,Other Agencies,Other,PJ121,06/12/2018,545461,450,REVENUE,LEAP AHEAD NURSERY,128017
North East Lincolnshire Council,http://statistics.data.gov.uk/id/local-authority/00FC),Children & Family Services,Ass Dir - Education,School Improvement,Other Agencies,Other,PJ121,06/12/2018,545459,525,REVENUE,LEAP AHEAD NURSERY,128017
North East Lincolnshire Council,http://statistics.data.gov.uk/id/local-authority/00FC),Children & Family Services,Ass Dir - Education,School Improvement,Other Agencies,Other,PJ121,06/12/2018,545433,435,REVENUE,GRIMSBY INSTITUTE - LITTLE STARS DAY NURSERY,114230
North East Lincolnshire Council,http://statistics.data.gov.uk/id/local-authority/00FC),Children & Family Services,Ass Dir - Education,School Improvement,Other Agencies,Other,PJ121,06/12/2018,545421,645,REVENUE,LISLE MARSDEN CHILDCARE LIMITED,110493
North East Lincolnshire Council,http://statistics.data.gov.uk/id/local-authority/00FC),Children & Family Services,Ass Dir - Education,School Improvement,Other Agencies,Other,PJ121,06/12/2018,545369,1425,REVENUE,FOR UNDER FIVES LTD,100647
North East Lincolnshire Council,http://statistics.data.gov.uk/id/local-authority/00FC),Children & Family Services,Ass Dir - Education,School Improvement,Other Agencies,Other,PJ121,06/12/2018,545441,450,REVENUE,ST CHRISTOPHERS PRE SCHOOL,121589
North East Lincolnshire Council,http://statistics.data.gov.uk/id/local-authority/00FC),Children & Family Services,Ass Dir - Education,School Improvement,Other Agencies,Other,PJ121,06/12/2018,545410,555,REVENUE,THE AVENUE PLAYGROUP,103168
North East Lincolnshire Council,http://statistics.data.gov.uk/id/local-authority/00FC),Children & Family Services,Ass Dir - Education,School Improvement,Direct Employee Expenses,Agency Staff,EA105,06/12/2018,545122,600,REVENUE,HUMBERSTON C OF E PRIMARY SCHOOL,101566
North East Lincolnshire Council,http://statistics.data.gov.uk/id/local-authority/00FC),Children & Family Services,Ass Dir - Education,Palliative / Complex Care,Private Contractors,Third Party Prov - Private,PH101,18/12/2018,546811,999,REVENUE,APOLLO HOME HEALTHCARE LIMITED,138437
North East Lincolnshire Council,http://statistics.data.gov.uk/id/local-authority/00FC),Children & Family Services,Ass Dir - Education,Palliative / Complex Care,Private Contractors,Third Party Prov - Private,PH101,20/12/2018,547598,1599,REVENUE,THE ROWAN ORGANISATION,140036
North East Lincolnshire Council,http://statistics.data.gov.uk/id/local-authority/00FC),Children & Family Services,Ass Dir - Education,Palliative / Complex Care,Private Contractors,Third Party Prov - Private,PH101,20/12/2018,547599,1599,REVENUE,THE ROWAN ORGANISATION,140036
North East Lincolnshire Council,http://statistics.data.gov.uk/id/local-authority/00FC),Children & Family Services,Ass Dir - Education,Palliative / Complex Care,Private Contractors,Third Party Prov - Private,PH101,20/12/2018,547595,1599,REVENUE,THE ROWAN ORGANISATION,140036
North East Lincolnshire Council,http://statistics.data.gov.uk/id/local-authority/00FC),Children & Family Services,Ass Dir - Education,Palliative / Complex Care,Private Contractors,Third Party Prov - Private,PH101,20/12/2018,547593,666.25,REVENUE,THE ROWAN ORGANISATION,140037
North East Lincolnshire Council,http://statistics.data.gov.uk/id/local-authority/00FC),Children & Family Services,Ass Dir - Education,Palliative / Complex Care,Private Contractors,Third Party Prov - Private,PH101,20/12/2018,547589,666.25,REVENUE,THE ROWAN ORGANISATION,140037
North East Lincolnshire Council,http://statistics.data.gov.uk/id/local-authority/00FC),Children & Family Services,Ass Dir - Education,Palliative / Complex Care,Private Contractors,Third Party Prov - Private,PH101,20/12/2018,547600,666.25,REVENUE,THE ROWAN ORGANISATION,140037
North East Lincolnshire Council,http://statistics.data.gov.uk/id/local-authority/00FC),Children & Family Services,Ass Dir - Education,Palliative / Complex Care,Private Contractors,Third Party Prov - Private,PH101,20/12/2018,547597,319.8,REVENUE,THE ROWAN ORGANISATION,140038
North East Lincolnshire Council,http://statistics.data.gov.uk/id/local-authority/00FC),Children & Family Services,Ass Dir - Education,Palliative / Complex Care,Private Contractors,Third Party Prov - Private,PH101,20/12/2018,547591,319.8,REVENUE,THE ROWAN ORGANISATION,140038
North East Lincolnshire Council,http://statistics.data.gov.uk/id/local-authority/00FC),Children & Family Services,Ass Dir - Education,Palliative / Complex Care,Private Contractors,Third Party Prov - Private,PH101,20/12/2018,547603,319.8,REVENUE,THE ROWAN ORGANISATION,140038
North East Lincolnshire Council,http://statistics.data.gov.uk/id/local-authority/00FC),Children & Family Services,Ass Dir - Education,Palliative / Complex Care,Private Contractors,Third Party Prov - Private,PH101,20/12/2018,547592,1599,REVENUE,THE ROWAN ORGANISATION,140039
North East Lincolnshire Council,http://statistics.data.gov.uk/id/local-authority/00FC),Children & Family Services,Ass Dir - Education,Palliative / Complex Care,Private Contractors,Third Party Prov - Private,PH101,20/12/2018,547594,1599,REVENUE,THE ROWAN ORGANISATION,140039
North East Lincolnshire Council,http://statistics.data.gov.uk/id/local-authority/00FC),Children & Family Services,Ass Dir - Education,Palliative / Complex Care,Private Contractors,Third Party Prov - Private,PH101,20/12/2018,547602,1599,REVENUE,THE ROWAN ORGANISATION,140039
North East Lincolnshire Council,http://statistics.data.gov.uk/id/local-authority/00FC),Children & Family Services,Ass Dir - Education,Palliative / Complex Care,Private Contractors,Third Party Prov - Private,PH101,20/12/2018,547601,2132,REVENUE,THE ROWAN ORGANISATION,140040
North East Lincolnshire Council,http://statistics.data.gov.uk/id/local-authority/00FC),Children & Family Services,Ass Dir - Education,Palliative / Complex Care,Private Contractors,Third Party Prov - Private,PH101,20/12/2018,547596,2132,REVENUE,THE ROWAN ORGANISATION,140040
North East Lincolnshire Council,http://statistics.data.gov.uk/id/local-authority/00FC),Children & Family Services,Ass Dir - Education,Palliative / Complex Care,Private Contractors,Third Party Prov - Private,PH101,20/12/2018,547604,2132,REVENUE,THE ROWAN ORGANISATION,140040
North East Lincolnshire Council,http://statistics.data.gov.uk/id/local-authority/00FC),Children & Family Services,Ass Dir - Children & Families,Family Hubs,Private Contractors,Third Party Prov - Private,PH101,11/12/2018,545538,8847,REVENUE,N LINCS & GOOLE HOSPITALS NHS FOUNDATION TRUS,111074
North East Lincolnshire Council,http://statistics.data.gov.uk/id/local-authority/00FC),Children & Family Services,Ass Dir - Children & Families,Family Hubs,Catering,Provisions,LB101,20/12/2018,546194,1000,REVENUE,TESCO STORES LIMITED,102576
North East Lincolnshire Council,http://statistics.data.gov.uk/id/local-authority/00FC),Children & Family Services,Ass Dir - Children & Families,Head Of Child Resource & Reg,Miscellaneous Expenses,Activities - Service Users,LL114,11/12/2018,545794,333.33,REVENUE,PARKWAY ENTERTAINMENT CO LTD,101537
North East Lincolnshire Council,http://statistics.data.gov.uk/id/local-authority/00FC),Children & Family Services,Ass Dir - Children & Families,Head Of Child Resource & Reg,Other Agencies,Additional Cost,PJ114,03/12/2018,643520,364,REVENUE,REDACTED PERSONAL INFORMATION,REDACTED PERSONAL INFORMATION
North East Lincolnshire Council,http://statistics.data.gov.uk/id/local-authority/00FC),Children & Family Services,Ass Dir - Children & Families,Head Of Child Resource & Reg,Other Agencies,Additional Cost,PJ114,10/12/2018,645249,364,REVENUE,REDACTED PERSONAL INFORMATION,REDACTED PERSONAL INFORMATION
North East Lincolnshire Council,http://statistics.data.gov.uk/id/local-authority/00FC),Children & Family Services,Ass Dir - Children & Families,Head Of Child Resource & Reg,Other Agencies,Additional Cost,PJ114,17/12/2018,647134,364,REVENUE,REDACTED PERSONAL INFORMATION,REDACTED PERSONAL INFORMATION
North East Lincolnshire Council,http://statistics.data.gov.uk/id/local-authority/00FC),Children & Family Services,Ass Dir - Children & Families,Head Of Child Resource & Reg,Other Agencies,Additional Cost,PJ114,17/12/2018,648008,364,REVENUE,REDACTED PERSONAL INFORMATION,REDACTED PERSONAL INFORMATION
North East Lincolnshire Council,http://statistics.data.gov.uk/id/local-authority/00FC),Children & Family Services,Ass Dir - Children & Families,Head Of Child Resource & Reg,Other Agencies,Additional Cost,PJ114,17/12/2018,648893,364,REVENUE,REDACTED PERSONAL INFORMATION,REDACTED PERSONAL INFORMATION
North East Lincolnshire Council,http://statistics.data.gov.uk/id/local-authority/00FC),Children & Family Services,Ass Dir - Children & Families,Head Of Child Resource & Reg,Other Agencies,Additional Cost,PJ114,12/12/2018,546137,740,REVENUE,READY RENT A CAR,100557
North East Lincolnshire Council,http://statistics.data.gov.uk/id/local-authority/00FC),Children & Family Services,Ass Dir - Children & Families,Head Of Child Resource & Reg,Other Agencies,Child Care Payments,PJ104,03/12/2018,643445,650,REVENUE,REDACTED PERSONAL INFORMATION,REDACTED PERSONAL INFORMATION
North East Lincolnshire Council,http://statistics.data.gov.uk/id/local-authority/00FC),Children & Family Services,Ass Dir - Children & Families,Head Of Child Resource & Reg,Other Agencies,Child Care Payments,PJ104,03/12/2018,643449,650,REVENUE,REDACTED PERSONAL INFORMATION,REDACTED PERSONAL INFORMATION
North East Lincolnshire Council,http://statistics.data.gov.uk/id/local-authority/00FC),Children & Family Services,Ass Dir - Children & Families,Head Of Child Resource & Reg,Other Agencies,Child Care Payments,PJ104,03/12/2018,643464,325,REVENUE,REDACTED PERSONAL INFORMATION,REDACTED PERSONAL INFORMATION
North East Lincolnshire Council,http://statistics.data.gov.uk/id/local-authority/00FC),Children & Family Services,Ass Dir - Children & Families,Head Of Child Resource & Reg,Other Agencies,Child Care Payments,PJ104,03/12/2018,643478,996,REVENUE,REDACTED PERSONAL INFORMATION,REDACTED PERSONAL INFORMATION
North East Lincolnshire Council,http://statistics.data.gov.uk/id/local-authority/00FC),Children & Family Services,Ass Dir - Children & Families,Head Of Child Resource & Reg,Other Agencies,Child Care Payments,PJ104,03/12/2018,643483,373,REVENUE,REDACTED PERSONAL INFORMATION,REDACTED PERSONAL INFORMATION
North East Lincolnshire Council,http://statistics.data.gov.uk/id/local-authority/00FC),Children & Family Services,Ass Dir - Children & Families,Head Of Child Resource & Reg,Other Agencies,Child Care Payments,PJ104,03/12/2018,643484,1017,REVENUE,REDACTED PERSONAL INFORMATION,REDACTED PERSONAL INFORMATION
North East Lincolnshire Council,http://statistics.data.gov.uk/id/local-authority/00FC),Children & Family Services,Ass Dir - Children & Families,Head Of Child Resource & Reg,Other Agencies,Child Care Payments,PJ104,03/12/2018,643490,650,REVENUE,REDACTED PERSONAL INFORMATION,REDACTED PERSONAL INFORMATION
North East Lincolnshire Council,http://statistics.data.gov.uk/id/local-authority/00FC),Children & Family Services,Ass Dir - Children & Families,Head Of Child Resource & Reg,Other Agencies,Child Care Payments,PJ104,03/12/2018,643290,671,REVENUE,REDACTED PERSONAL INFORMATION,REDACTED PERSONAL INFORMATION
North East Lincolnshire Council,http://statistics.data.gov.uk/id/local-authority/00FC),Children & Family Services,Ass Dir - Children & Families,Head Of Child Resource & Reg,Other Agencies,Child Care Payments,PJ104,03/12/2018,643291,346,REVENUE,REDACTED PERSONAL INFORMATION,REDACTED PERSONAL INFORMATION
North East Lincolnshire Council,http://statistics.data.gov.uk/id/local-authority/00FC),Children & Family Services,Ass Dir - Children & Families,Head Of Child Resource & Reg,Other Agencies,Child Care Payments,PJ104,03/12/2018,643292,692,REVENUE,REDACTED PERSONAL INFORMATION,REDACTED PERSONAL INFORMATION
North East Lincolnshire Council,http://statistics.data.gov.uk/id/local-authority/00FC),Children & Family Services,Ass Dir - Children & Families,Head Of Child Resource & Reg,Other Agencies,Child Care Payments,PJ104,03/12/2018,643295,949,REVENUE,REDACTED PERSONAL INFORMATION,REDACTED PERSONAL INFORMATION
North East Lincolnshire Council,http://statistics.data.gov.uk/id/local-authority/00FC),Children & Family Services,Ass Dir - Children & Families,Head Of Child Resource & Reg,Other Agencies,Child Care Payments,PJ104,03/12/2018,643296,1186.29,REVENUE,REDACTED PERSONAL INFORMATION,REDACTED PERSONAL INFORMATION
North East Lincolnshire Council,http://statistics.data.gov.uk/id/local-authority/00FC),Children & Family Services,Ass Dir - Children & Families,Head Of Child Resource & Reg,Other Agencies,Child Care Payments,PJ104,03/12/2018,643504,1029,REVENUE,REDACTED PERSONAL INFORMATION,REDACTED PERSONAL INFORMATION
North East Lincolnshire Council,http://statistics.data.gov.uk/id/local-authority/00FC),Children & Family Services,Ass Dir - Children & Families,Head Of Child Resource & Reg,Other Agencies,Child Care Payments,PJ104,03/12/2018,643505,692,REVENUE,REDACTED PERSONAL INFORMATION,REDACTED PERSONAL INFORMATION
North East Lincolnshire Council,http://statistics.data.gov.uk/id/local-authority/00FC),Children & Family Services,Ass Dir - Children & Families,Head Of Child Resource & Reg,Other Agencies,Child Care Payments,PJ104,03/12/2018,643507,996,REVENUE,REDACTED PERSONAL INFORMATION,REDACTED PERSONAL INFORMATION
North East Lincolnshire Council,http://statistics.data.gov.uk/id/local-authority/00FC),Children & Family Services,Ass Dir - Children & Families,Head Of Child Resource & Reg,Other Agencies,Child Care Payments,PJ104,03/12/2018,643299,325,REVENUE,REDACTED PERSONAL INFORMATION,REDACTED PERSONAL INFORMATION
North East Lincolnshire Council,http://statistics.data.gov.uk/id/local-authority/00FC),Children & Family Services,Ass Dir - Children & Families,Head Of Child Resource & Reg,Other Agencies,Child Care Payments,PJ104,03/12/2018,643300,346,REVENUE,REDACTED PERSONAL INFORMATION,REDACTED PERSONAL INFORMATION
North East Lincolnshire Council,http://statistics.data.gov.uk/id/local-authority/00FC),Children & Family Services,Ass Dir - Children & Families,Head Of Child Resource & Reg,Other Agencies,Child Care Payments,PJ104,03/12/2018,643303,1363,REVENUE,REDACTED PERSONAL INFORMATION,REDACTED PERSONAL INFORMATION
North East Lincolnshire Council,http://statistics.data.gov.uk/id/local-authority/00FC),Children & Family Services,Ass Dir - Children & Families,Head Of Child Resource & Reg,Other Agencies,Child Care Payments,PJ104,03/12/2018,643304,1162,REVENUE,REDACTED PERSONAL INFORMATION,REDACTED PERSONAL INFORMATION
North East Lincolnshire Council,http://statistics.data.gov.uk/id/local-authority/00FC),Children & Family Services,Ass Dir - Children & Families,Head Of Child Resource & Reg,Other Agencies,Child Care Payments,PJ104,03/12/2018,643512,650,REVENUE,REDACTED PERSONAL INFORMATION,REDACTED PERSONAL INFORMATION
North East Lincolnshire Council,http://statistics.data.gov.uk/id/local-authority/00FC),Children & Family Services,Ass Dir - Children & Families,Head Of Child Resource & Reg,Other Agencies,Child Care Payments,PJ104,03/12/2018,643513,312,REVENUE,REDACTED PERSONAL INFORMATION,REDACTED PERSONAL INFORMATION
North East Lincolnshire Council,http://statistics.data.gov.uk/id/local-authority/00FC),Children & Family Services,Ass Dir - Children & Families,Head Of Child Resource & Reg,Other Agencies,Child Care Payments,PJ104,03/12/2018,643306,346,REVENUE,REDACTED PERSONAL INFORMATION,REDACTED PERSONAL INFORMATION
North East Lincolnshire Council,http://statistics.data.gov.uk/id/local-authority/00FC),Children & Family Services,Ass Dir - Children & Families,Head Of Child Resource & Reg,Other Agencies,Child Care Payments,PJ104,03/12/2018,643310,1023,REVENUE,REDACTED PERSONAL INFORMATION,REDACTED PERSONAL INFORMATION
North East Lincolnshire Council,http://statistics.data.gov.uk/id/local-authority/00FC),Children & Family Services,Ass Dir - Children & Families,Head Of Child Resource & Reg,Other Agencies,Child Care Payments,PJ104,03/12/2018,643314,996,REVENUE,REDACTED PERSONAL INFORMATION,REDACTED PERSONAL INFORMATION
North East Lincolnshire Council,http://statistics.data.gov.uk/id/local-authority/00FC),Children & Family Services,Ass Dir - Children & Families,Head Of Child Resource & Reg,Other Agencies,Child Care Payments,PJ104,03/12/2018,643316,671,REVENUE,REDACTED PERSONAL INFORMATION,REDACTED PERSONAL INFORMATION
North East Lincolnshire Council,http://statistics.data.gov.uk/id/local-authority/00FC),Children & Family Services,Ass Dir - Children & Families,Head Of Child Resource & Reg,Other Agencies,Child Care Payments,PJ104,03/12/2018,643317,637,REVENUE,REDACTED PERSONAL INFORMATION,REDACTED PERSONAL INFORMATION
North East Lincolnshire Council,http://statistics.data.gov.uk/id/local-authority/00FC),Children & Family Services,Ass Dir - Children & Families,Head Of Child Resource & Reg,Other Agencies,Child Care Payments,PJ104,03/12/2018,643319,1065,REVENUE,REDACTED PERSONAL INFORMATION,REDACTED PERSONAL INFORMATION
North East Lincolnshire Council,http://statistics.data.gov.uk/id/local-authority/00FC),Children & Family Services,Ass Dir - Children & Families,Head Of Child Resource & Reg,Other Agencies,Child Care Payments,PJ104,03/12/2018,643320,650,REVENUE,REDACTED PERSONAL INFORMATION,REDACTED PERSONAL INFORMATION
North East Lincolnshire Council,http://statistics.data.gov.uk/id/local-authority/00FC),Children & Family Services,Ass Dir - Children & Families,Head Of Child Resource & Reg,Other Agencies,Child Care Payments,PJ104,03/12/2018,643322,698,REVENUE,REDACTED PERSONAL INFORMATION,REDACTED PERSONAL INFORMATION
North East Lincolnshire Council,http://statistics.data.gov.uk/id/local-authority/00FC),Children & Family Services,Ass Dir - Children & Families,Head Of Child Resource & Reg,Other Agencies,Child Care Payments,PJ104,03/12/2018,643524,975,REVENUE,REDACTED PERSONAL INFORMATION,REDACTED PERSONAL INFORMATION
North East Lincolnshire Council,http://statistics.data.gov.uk/id/local-authority/00FC),Children & Family Services,Ass Dir - Children & Families,Head Of Child Resource & Reg,Other Agencies,Child Care Payments,PJ104,03/12/2018,643532,1004,REVENUE,REDACTED PERSONAL INFORMATION,REDACTED PERSONAL INFORMATION
North East Lincolnshire Council,http://statistics.data.gov.uk/id/local-authority/00FC),Children & Family Services,Ass Dir - Children & Families,Head Of Child Resource & Reg,Other Agencies,Child Care Payments,PJ104,03/12/2018,643335,637,REVENUE,REDACTED PERSONAL INFORMATION,REDACTED PERSONAL INFORMATION
North East Lincolnshire Council,http://statistics.data.gov.uk/id/local-authority/00FC),Children & Family Services,Ass Dir - Children & Families,Head Of Child Resource & Reg,Other Agencies,Child Care Payments,PJ104,03/12/2018,643338,1390,REVENUE,REDACTED PERSONAL INFORMATION,REDACTED PERSONAL INFORMATION
North East Lincolnshire Council,http://statistics.data.gov.uk/id/local-authority/00FC),Children & Family Services,Ass Dir - Children & Families,Head Of Child Resource & Reg,Other Agencies,Child Care Payments,PJ104,03/12/2018,643341,1017,REVENUE,REDACTED PERSONAL INFORMATION,REDACTED PERSONAL INFORMATION
North East Lincolnshire Council,http://statistics.data.gov.uk/id/local-authority/00FC),Children & Family Services,Ass Dir - Children & Families,Head Of Child Resource & Reg,Other Agencies,Child Care Payments,PJ104,03/12/2018,643343,346,REVENUE,REDACTED PERSONAL INFORMATION,REDACTED PERSONAL INFORMATION
North East Lincolnshire Council,http://statistics.data.gov.uk/id/local-authority/00FC),Children & Family Services,Ass Dir - Children & Families,Head Of Child Resource & Reg,Other Agencies,Child Care Payments,PJ104,03/12/2018,643345,373,REVENUE,REDACTED PERSONAL INFORMATION,REDACTED PERSONAL INFORMATION
North East Lincolnshire Council,http://statistics.data.gov.uk/id/local-authority/00FC),Children & Family Services,Ass Dir - Children & Families,Head Of Child Resource & Reg,Other Agencies,Child Care Payments,PJ104,03/12/2018,643346,373,REVENUE,REDACTED PERSONAL INFORMATION,REDACTED PERSONAL INFORMATION
North East Lincolnshire Council,http://statistics.data.gov.uk/id/local-authority/00FC),Children & Family Services,Ass Dir - Children & Families,Head Of Child Resource & Reg,Other Agencies,Child Care Payments,PJ104,03/12/2018,643348,325,REVENUE,REDACTED PERSONAL INFORMATION,REDACTED PERSONAL INFORMATION
North East Lincolnshire Council,http://statistics.data.gov.uk/id/local-authority/00FC),Children & Family Services,Ass Dir - Children & Families,Head Of Child Resource & Reg,Other Agencies,Child Care Payments,PJ104,03/12/2018,643552,650,REVENUE,REDACTED PERSONAL INFORMATION,REDACTED PERSONAL INFORMATION
North East Lincolnshire Council,http://statistics.data.gov.uk/id/local-authority/00FC),Children & Family Services,Ass Dir - Children & Families,Head Of Child Resource & Reg,Other Agencies,Child Care Payments,PJ104,03/12/2018,643553,996,REVENUE,REDACTED PERSONAL INFORMATION,REDACTED PERSONAL INFORMATION
North East Lincolnshire Council,http://statistics.data.gov.uk/id/local-authority/00FC),Children & Family Services,Ass Dir - Children & Families,Head Of Child Resource & Reg,Other Agencies,Child Care Payments,PJ104,03/12/2018,643360,1017,REVENUE,REDACTED PERSONAL INFORMATION,REDACTED PERSONAL INFORMATION
North East Lincolnshire Council,http://statistics.data.gov.uk/id/local-authority/00FC),Children & Family Services,Ass Dir - Children & Families,Head Of Child Resource & Reg,Other Agencies,Child Care Payments,PJ104,03/12/2018,643365,970,REVENUE,REDACTED PERSONAL INFORMATION,REDACTED PERSONAL INFORMATION
North East Lincolnshire Council,http://statistics.data.gov.uk/id/local-authority/00FC),Children & Family Services,Ass Dir - Children & Families,Head Of Child Resource & Reg,Other Agencies,Child Care Payments,PJ104,03/12/2018,643367,637,REVENUE,REDACTED PERSONAL INFORMATION,REDACTED PERSONAL INFORMATION
North East Lincolnshire Council,http://statistics.data.gov.uk/id/local-authority/00FC),Children & Family Services,Ass Dir - Children & Families,Head Of Child Resource & Reg,Other Agencies,Child Care Payments,PJ104,03/12/2018,643576,719,REVENUE,REDACTED PERSONAL INFORMATION,REDACTED PERSONAL INFORMATION
North East Lincolnshire Council,http://statistics.data.gov.uk/id/local-authority/00FC),Children & Family Services,Ass Dir - Children & Families,Head Of Child Resource & Reg,Other Agencies,Child Care Payments,PJ104,03/12/2018,643577,325,REVENUE,REDACTED PERSONAL INFORMATION,REDACTED PERSONAL INFORMATION
North East Lincolnshire Council,http://statistics.data.gov.uk/id/local-authority/00FC),Children & Family Services,Ass Dir - Children & Families,Head Of Child Resource & Reg,Other Agencies,Child Care Payments,PJ104,03/12/2018,643373,650,REVENUE,REDACTED PERSONAL INFORMATION,REDACTED PERSONAL INFORMATION
North East Lincolnshire Council,http://statistics.data.gov.uk/id/local-authority/00FC),Children & Family Services,Ass Dir - Children & Families,Head Of Child Resource & Reg,Other Agencies,Child Care Payments,PJ104,03/12/2018,643378,1654,REVENUE,REDACTED PERSONAL INFORMATION,REDACTED PERSONAL INFORMATION
North East Lincolnshire Council,http://statistics.data.gov.uk/id/local-authority/00FC),Children & Family Services,Ass Dir - Children & Families,Head Of Child Resource & Reg,Other Agencies,Child Care Payments,PJ104,03/12/2018,643589,624,REVENUE,REDACTED PERSONAL INFORMATION,REDACTED PERSONAL INFORMATION
North East Lincolnshire Council,http://statistics.data.gov.uk/id/local-authority/00FC),Children & Family Services,Ass Dir - Children & Families,Head Of Child Resource & Reg,Other Agencies,Child Care Payments,PJ104,03/12/2018,643592,637,REVENUE,REDACTED PERSONAL INFORMATION,REDACTED PERSONAL INFORMATION
North East Lincolnshire Council,http://statistics.data.gov.uk/id/local-authority/00FC),Children & Family Services,Ass Dir - Children & Families,Head Of Child Resource & Reg,Other Agencies,Child Care Payments,PJ104,03/12/2018,643594,1321,REVENUE,REDACTED PERSONAL INFORMATION,REDACTED PERSONAL INFORMATION
North East Lincolnshire Council,http://statistics.data.gov.uk/id/local-authority/00FC),Children & Family Services,Ass Dir - Children & Families,Head Of Child Resource & Reg,Other Agencies,Child Care Payments,PJ104,03/12/2018,643398,494.29,REVENUE,REDACTED PERSONAL INFORMATION,REDACTED PERSONAL INFORMATION
North East Lincolnshire Council,http://statistics.data.gov.uk/id/local-authority/00FC),Children & Family Services,Ass Dir - Children & Families,Head Of Child Resource & Reg,Other Agencies,Child Care Payments,PJ104,03/12/2018,643404,346,REVENUE,REDACTED PERSONAL INFORMATION,REDACTED PERSONAL INFORMATION
North East Lincolnshire Council,http://statistics.data.gov.uk/id/local-authority/00FC),Children & Family Services,Ass Dir - Children & Families,Head Of Child Resource & Reg,Other Agencies,Child Care Payments,PJ104,03/12/2018,643416,1356,REVENUE,REDACTED PERSONAL INFORMATION,REDACTED PERSONAL INFORMATION
North East Lincolnshire Council,http://statistics.data.gov.uk/id/local-authority/00FC),Children & Family Services,Ass Dir - Children & Families,Head Of Child Resource & Reg,Other Agencies,Child Care Payments,PJ104,03/12/2018,643628,346,REVENUE,REDACTED PERSONAL INFORMATION,REDACTED PERSONAL INFORMATION
North East Lincolnshire Council,http://statistics.data.gov.uk/id/local-authority/00FC),Children & Family Services,Ass Dir - Children & Families,Head Of Child Resource & Reg,Other Agencies,Child Care Payments,PJ104,03/12/2018,643419,698,REVENUE,REDACTED PERSONAL INFORMATION,REDACTED PERSONAL INFORMATION
North East Lincolnshire Council,http://statistics.data.gov.uk/id/local-authority/00FC),Children & Family Services,Ass Dir - Children & Families,Head Of Child Resource & Reg,Other Agencies,Child Care Payments,PJ104,03/12/2018,643424,996,REVENUE,REDACTED PERSONAL INFORMATION,REDACTED PERSONAL INFORMATION
North East Lincolnshire Council,http://statistics.data.gov.uk/id/local-authority/00FC),Children & Family Services,Ass Dir - Children & Families,Head Of Child Resource & Reg,Other Agencies,Child Care Payments,PJ104,03/12/2018,643426,1017,REVENUE,REDACTED PERSONAL INFORMATION,REDACTED PERSONAL INFORMATION
North East Lincolnshire Council,http://statistics.data.gov.uk/id/local-authority/00FC),Children & Family Services,Ass Dir - Children & Families,Head Of Child Resource & Reg,Other Agencies,Child Care Payments,PJ104,03/12/2018,643432,637,REVENUE,REDACTED PERSONAL INFORMATION,REDACTED PERSONAL INFORMATION
North East Lincolnshire Council,http://statistics.data.gov.uk/id/local-authority/00FC),Children & Family Services,Ass Dir - Children & Families,Head Of Child Resource & Reg,Other Agencies,Child Care Payments,PJ104,03/12/2018,643438,1017,REVENUE,REDACTED PERSONAL INFORMATION,REDACTED PERSONAL INFORMATION
North East Lincolnshire Council,http://statistics.data.gov.uk/id/local-authority/00FC),Children & Family Services,Ass Dir - Children & Families,Head Of Child Resource & Reg,Other Agencies,Child Care Payments,PJ104,03/12/2018,643646,637,REVENUE,REDACTED PERSONAL INFORMATION,REDACTED PERSONAL INFORMATION
North East Lincolnshire Council,http://statistics.data.gov.uk/id/local-authority/00FC),Children & Family Services,Ass Dir - Children & Families,Head Of Child Resource & Reg,Other Agencies,Child Care Payments,PJ104,10/12/2018,645024,325,REVENUE,REDACTED PERSONAL INFORMATION,REDACTED PERSONAL INFORMATION
North East Lincolnshire Council,http://statistics.data.gov.uk/id/local-authority/00FC),Children & Family Services,Ass Dir - Children & Families,Head Of Child Resource & Reg,Other Agencies,Child Care Payments,PJ104,10/12/2018,645025,349.86,REVENUE,REDACTED PERSONAL INFORMATION,REDACTED PERSONAL INFORMATION
North East Lincolnshire Council,http://statistics.data.gov.uk/id/local-authority/00FC),Children & Family Services,Ass Dir - Children & Families,Head Of Child Resource & Reg,Other Agencies,Child Care Payments,PJ104,10/12/2018,645028,1363,REVENUE,REDACTED PERSONAL INFORMATION,REDACTED PERSONAL INFORMATION
North East Lincolnshire Council,http://statistics.data.gov.uk/id/local-authority/00FC),Children & Family Services,Ass Dir - Children & Families,Head Of Child Resource & Reg,Other Agencies,Child Care Payments,PJ104,10/12/2018,645029,447.57,REVENUE,REDACTED PERSONAL INFORMATION,REDACTED PERSONAL INFORMATION
North East Lincolnshire Council,http://statistics.data.gov.uk/id/local-authority/00FC),Children & Family Services,Ass Dir - Children & Families,Head Of Child Resource & Reg,Other Agencies,Child Care Payments,PJ104,10/12/2018,645031,346,REVENUE,REDACTED PERSONAL INFORMATION,REDACTED PERSONAL INFORMATION
North East Lincolnshire Council,http://statistics.data.gov.uk/id/local-authority/00FC),Children & Family Services,Ass Dir - Children & Families,Head Of Child Resource & Reg,Other Agencies,Child Care Payments,PJ104,10/12/2018,645035,1023,REVENUE,REDACTED PERSONAL INFORMATION,REDACTED PERSONAL INFORMATION
North East Lincolnshire Council,http://statistics.data.gov.uk/id/local-authority/00FC),Children & Family Services,Ass Dir - Children & Families,Head Of Child Resource & Reg,Other Agencies,Child Care Payments,PJ104,10/12/2018,645039,996,REVENUE,REDACTED PERSONAL INFORMATION,REDACTED PERSONAL INFORMATION
North East Lincolnshire Council,http://statistics.data.gov.uk/id/local-authority/00FC),Children & Family Services,Ass Dir - Children & Families,Head Of Child Resource & Reg,Other Agencies,Child Care Payments,PJ104,10/12/2018,645041,671,REVENUE,REDACTED PERSONAL INFORMATION,REDACTED PERSONAL INFORMATION
North East Lincolnshire Council,http://statistics.data.gov.uk/id/local-authority/00FC),Children & Family Services,Ass Dir - Children & Families,Head Of Child Resource & Reg,Other Agencies,Child Care Payments,PJ104,10/12/2018,645042,637,REVENUE,REDACTED PERSONAL INFORMATION,REDACTED PERSONAL INFORMATION
North East Lincolnshire Council,http://statistics.data.gov.uk/id/local-authority/00FC),Children & Family Services,Ass Dir - Children & Families,Head Of Child Resource & Reg,Other Agencies,Child Care Payments,PJ104,10/12/2018,645044,1065,REVENUE,REDACTED PERSONAL INFORMATION,REDACTED PERSONAL INFORMATION
North East Lincolnshire Council,http://statistics.data.gov.uk/id/local-authority/00FC),Children & Family Services,Ass Dir - Children & Families,Head Of Child Resource & Reg,Other Agencies,Child Care Payments,PJ104,10/12/2018,645045,650,REVENUE,REDACTED PERSONAL INFORMATION,REDACTED PERSONAL INFORMATION
North East Lincolnshire Council,http://statistics.data.gov.uk/id/local-authority/00FC),Children & Family Services,Ass Dir - Children & Families,Head Of Child Resource & Reg,Other Agencies,Child Care Payments,PJ104,10/12/2018,645047,698,REVENUE,REDACTED PERSONAL INFORMATION,REDACTED PERSONAL INFORMATION
North East Lincolnshire Council,http://statistics.data.gov.uk/id/local-authority/00FC),Children & Family Services,Ass Dir - Children & Families,Head Of Child Resource & Reg,Other Agencies,Child Care Payments,PJ104,10/12/2018,645407,983,REVENUE,REDACTED PERSONAL INFORMATION,REDACTED PERSONAL INFORMATION
North East Lincolnshire Council,http://statistics.data.gov.uk/id/local-authority/00FC),Children & Family Services,Ass Dir - Children & Families,Head Of Child Resource & Reg,Other Agencies,Child Care Payments,PJ104,10/12/2018,645060,637,REVENUE,REDACTED PERSONAL INFORMATION,REDACTED PERSONAL INFORMATION
North East Lincolnshire Council,http://statistics.data.gov.uk/id/local-authority/00FC),Children & Family Services,Ass Dir - Children & Families,Head Of Child Resource & Reg,Other Agencies,Child Care Payments,PJ104,10/12/2018,645063,1390,REVENUE,REDACTED PERSONAL INFORMATION,REDACTED PERSONAL INFORMATION
North East Lincolnshire Council,http://statistics.data.gov.uk/id/local-authority/00FC),Children & Family Services,Ass Dir - Children & Families,Head Of Child Resource & Reg,Other Agencies,Child Care Payments,PJ104,10/12/2018,645066,1017,REVENUE,REDACTED PERSONAL INFORMATION,REDACTED PERSONAL INFORMATION
North East Lincolnshire Council,http://statistics.data.gov.uk/id/local-authority/00FC),Children & Family Services,Ass Dir - Children & Families,Head Of Child Resource & Reg,Other Agencies,Child Care Payments,PJ104,10/12/2018,645067,346,REVENUE,REDACTED PERSONAL INFORMATION,REDACTED PERSONAL INFORMATION
North East Lincolnshire Council,http://statistics.data.gov.uk/id/local-authority/00FC),Children & Family Services,Ass Dir - Children & Families,Head Of Child Resource & Reg,Other Agencies,Child Care Payments,PJ104,10/12/2018,645069,373,REVENUE,REDACTED PERSONAL INFORMATION,REDACTED PERSONAL INFORMATION
North East Lincolnshire Council,http://statistics.data.gov.uk/id/local-authority/00FC),Children & Family Services,Ass Dir - Children & Families,Head Of Child Resource & Reg,Other Agencies,Child Care Payments,PJ104,10/12/2018,645070,373,REVENUE,REDACTED PERSONAL INFORMATION,REDACTED PERSONAL INFORMATION
North East Lincolnshire Council,http://statistics.data.gov.uk/id/local-authority/00FC),Children & Family Services,Ass Dir - Children & Families,Head Of Child Resource & Reg,Other Agencies,Child Care Payments,PJ104,10/12/2018,645072,325,REVENUE,REDACTED PERSONAL INFORMATION,REDACTED PERSONAL INFORMATION
North East Lincolnshire Council,http://statistics.data.gov.uk/id/local-authority/00FC),Children & Family Services,Ass Dir - Children & Families,Head Of Child Resource & Reg,Other Agencies,Child Care Payments,PJ104,10/12/2018,645084,1017,REVENUE,REDACTED PERSONAL INFORMATION,REDACTED PERSONAL INFORMATION
North East Lincolnshire Council,http://statistics.data.gov.uk/id/local-authority/00FC),Children & Family Services,Ass Dir - Children & Families,Head Of Child Resource & Reg,Other Agencies,Child Care Payments,PJ104,10/12/2018,645089,970,REVENUE,REDACTED PERSONAL INFORMATION,REDACTED PERSONAL INFORMATION
North East Lincolnshire Council,http://statistics.data.gov.uk/id/local-authority/00FC),Children & Family Services,Ass Dir - Children & Families,Head Of Child Resource & Reg,Other Agencies,Child Care Payments,PJ104,10/12/2018,645091,325,REVENUE,REDACTED PERSONAL INFORMATION,REDACTED PERSONAL INFORMATION
North East Lincolnshire Council,http://statistics.data.gov.uk/id/local-authority/00FC),Children & Family Services,Ass Dir - Children & Families,Head Of Child Resource & Reg,Other Agencies,Child Care Payments,PJ104,10/12/2018,645091,312,REVENUE,REDACTED PERSONAL INFORMATION,REDACTED PERSONAL INFORMATION
North East Lincolnshire Council,http://statistics.data.gov.uk/id/local-authority/00FC),Children & Family Services,Ass Dir - Children & Families,Head Of Child Resource & Reg,Other Agencies,Child Care Payments,PJ104,10/12/2018,645096,650,REVENUE,REDACTED PERSONAL INFORMATION,REDACTED PERSONAL INFORMATION
North East Lincolnshire Council,http://statistics.data.gov.uk/id/local-authority/00FC),Children & Family Services,Ass Dir - Children & Families,Head Of Child Resource & Reg,Other Agencies,Child Care Payments,PJ104,10/12/2018,645101,1654,REVENUE,REDACTED PERSONAL INFORMATION,REDACTED PERSONAL INFORMATION
North East Lincolnshire Council,http://statistics.data.gov.uk/id/local-authority/00FC),Children & Family Services,Ass Dir - Children & Families,Head Of Child Resource & Reg,Other Agencies,Child Care Payments,PJ104,10/12/2018,645121,346,REVENUE,REDACTED PERSONAL INFORMATION,REDACTED PERSONAL INFORMATION
North East Lincolnshire Council,http://statistics.data.gov.uk/id/local-authority/00FC),Children & Family Services,Ass Dir - Children & Families,Head Of Child Resource & Reg,Other Agencies,Child Care Payments,PJ104,10/12/2018,645127,346,REVENUE,REDACTED PERSONAL INFORMATION,REDACTED PERSONAL INFORMATION
North East Lincolnshire Council,http://statistics.data.gov.uk/id/local-authority/00FC),Children & Family Services,Ass Dir - Children & Families,Head Of Child Resource & Reg,Other Agencies,Child Care Payments,PJ104,10/12/2018,645146,1356,REVENUE,REDACTED PERSONAL INFORMATION,REDACTED PERSONAL INFORMATION
North East Lincolnshire Council,http://statistics.data.gov.uk/id/local-authority/00FC),Children & Family Services,Ass Dir - Children & Families,Head Of Child Resource & Reg,Other Agencies,Child Care Payments,PJ104,10/12/2018,645149,698,REVENUE,REDACTED PERSONAL INFORMATION,REDACTED PERSONAL INFORMATION
North East Lincolnshire Council,http://statistics.data.gov.uk/id/local-authority/00FC),Children & Family Services,Ass Dir - Children & Families,Head Of Child Resource & Reg,Other Agencies,Child Care Payments,PJ104,10/12/2018,645154,996,REVENUE,REDACTED PERSONAL INFORMATION,REDACTED PERSONAL INFORMATION
North East Lincolnshire Council,http://statistics.data.gov.uk/id/local-authority/00FC),Children & Family Services,Ass Dir - Children & Families,Head Of Child Resource & Reg,Other Agencies,Child Care Payments,PJ104,10/12/2018,645156,1017,REVENUE,REDACTED PERSONAL INFORMATION,REDACTED PERSONAL INFORMATION
North East Lincolnshire Council,http://statistics.data.gov.uk/id/local-authority/00FC),Children & Family Services,Ass Dir - Children & Families,Head Of Child Resource & Reg,Other Agencies,Child Care Payments,PJ104,10/12/2018,645162,637,REVENUE,REDACTED PERSONAL INFORMATION,REDACTED PERSONAL INFORMATION
North East Lincolnshire Council,http://statistics.data.gov.uk/id/local-authority/00FC),Children & Family Services,Ass Dir - Children & Families,Head Of Child Resource & Reg,Other Agencies,Child Care Payments,PJ104,10/12/2018,645168,1017,REVENUE,REDACTED PERSONAL INFORMATION,REDACTED PERSONAL INFORMATION
North East Lincolnshire Council,http://statistics.data.gov.uk/id/local-authority/00FC),Children & Family Services,Ass Dir - Children & Families,Head Of Child Resource & Reg,Other Agencies,Child Care Payments,PJ104,10/12/2018,645175,650,REVENUE,REDACTED PERSONAL INFORMATION,REDACTED PERSONAL INFORMATION
North East Lincolnshire Council,http://statistics.data.gov.uk/id/local-authority/00FC),Children & Family Services,Ass Dir - Children & Families,Head Of Child Resource & Reg,Other Agencies,Child Care Payments,PJ104,10/12/2018,645179,650,REVENUE,REDACTED PERSONAL INFORMATION,REDACTED PERSONAL INFORMATION
North East Lincolnshire Council,http://statistics.data.gov.uk/id/local-authority/00FC),Children & Family Services,Ass Dir - Children & Families,Head Of Child Resource & Reg,Other Agencies,Child Care Payments,PJ104,10/12/2018,645194,325,REVENUE,REDACTED PERSONAL INFORMATION,REDACTED PERSONAL INFORMATION
North East Lincolnshire Council,http://statistics.data.gov.uk/id/local-authority/00FC),Children & Family Services,Ass Dir - Children & Families,Head Of Child Resource & Reg,Other Agencies,Child Care Payments,PJ104,10/12/2018,645208,996,REVENUE,REDACTED PERSONAL INFORMATION,REDACTED PERSONAL INFORMATION
North East Lincolnshire Council,http://statistics.data.gov.uk/id/local-authority/00FC),Children & Family Services,Ass Dir - Children & Families,Head Of Child Resource & Reg,Other Agencies,Child Care Payments,PJ104,10/12/2018,645213,1017,REVENUE,REDACTED PERSONAL INFORMATION,REDACTED PERSONAL INFORMATION
North East Lincolnshire Council,http://statistics.data.gov.uk/id/local-authority/00FC),Children & Family Services,Ass Dir - Children & Families,Head Of Child Resource & Reg,Other Agencies,Child Care Payments,PJ104,10/12/2018,645219,650,REVENUE,REDACTED PERSONAL INFORMATION,REDACTED PERSONAL INFORMATION
North East Lincolnshire Council,http://statistics.data.gov.uk/id/local-authority/00FC),Children & Family Services,Ass Dir - Children & Families,Head Of Child Resource & Reg,Other Agencies,Child Care Payments,PJ104,10/12/2018,645233,1038,REVENUE,REDACTED PERSONAL INFORMATION,REDACTED PERSONAL INFORMATION
North East Lincolnshire Council,http://statistics.data.gov.uk/id/local-authority/00FC),Children & Family Services,Ass Dir - Children & Families,Head Of Child Resource & Reg,Other Agencies,Child Care Payments,PJ104,10/12/2018,645234,1405.14,REVENUE,REDACTED PERSONAL INFORMATION,REDACTED PERSONAL INFORMATION
North East Lincolnshire Council,http://statistics.data.gov.uk/id/local-authority/00FC),Children & Family Services,Ass Dir - Children & Families,Head Of Child Resource & Reg,Other Agencies,Child Care Payments,PJ104,10/12/2018,645236,996,REVENUE,REDACTED PERSONAL INFORMATION,REDACTED PERSONAL INFORMATION
North East Lincolnshire Council,http://statistics.data.gov.uk/id/local-authority/00FC),Children & Family Services,Ass Dir - Children & Families,Head Of Child Resource & Reg,Other Agencies,Child Care Payments,PJ104,10/12/2018,645241,650,REVENUE,REDACTED PERSONAL INFORMATION,REDACTED PERSONAL INFORMATION
North East Lincolnshire Council,http://statistics.data.gov.uk/id/local-authority/00FC),Children & Family Services,Ass Dir - Children & Families,Head Of Child Resource & Reg,Other Agencies,Child Care Payments,PJ104,10/12/2018,645242,312,REVENUE,REDACTED PERSONAL INFORMATION,REDACTED PERSONAL INFORMATION
North East Lincolnshire Council,http://statistics.data.gov.uk/id/local-authority/00FC),Children & Family Services,Ass Dir - Children & Families,Head Of Child Resource & Reg,Other Agencies,Child Care Payments,PJ104,10/12/2018,645253,975,REVENUE,REDACTED PERSONAL INFORMATION,REDACTED PERSONAL INFORMATION
North East Lincolnshire Council,http://statistics.data.gov.uk/id/local-authority/00FC),Children & Family Services,Ass Dir - Children & Families,Head Of Child Resource & Reg,Other Agencies,Child Care Payments,PJ104,10/12/2018,645262,1004,REVENUE,REDACTED PERSONAL INFORMATION,REDACTED PERSONAL INFORMATION
North East Lincolnshire Council,http://statistics.data.gov.uk/id/local-authority/00FC),Children & Family Services,Ass Dir - Children & Families,Head Of Child Resource & Reg,Other Agencies,Child Care Payments,PJ104,10/12/2018,645288,650,REVENUE,REDACTED PERSONAL INFORMATION,REDACTED PERSONAL INFORMATION
North East Lincolnshire Council,http://statistics.data.gov.uk/id/local-authority/00FC),Children & Family Services,Ass Dir - Children & Families,Head Of Child Resource & Reg,Other Agencies,Child Care Payments,PJ104,10/12/2018,645290,996,REVENUE,REDACTED PERSONAL INFORMATION,REDACTED PERSONAL INFORMATION
North East Lincolnshire Council,http://statistics.data.gov.uk/id/local-authority/00FC),Children & Family Services,Ass Dir - Children & Families,Head Of Child Resource & Reg,Other Agencies,Child Care Payments,PJ104,10/12/2018,645314,719,REVENUE,REDACTED PERSONAL INFORMATION,REDACTED PERSONAL INFORMATION
North East Lincolnshire Council,http://statistics.data.gov.uk/id/local-authority/00FC),Children & Family Services,Ass Dir - Children & Families,Head Of Child Resource & Reg,Other Agencies,Child Care Payments,PJ104,10/12/2018,645315,325,REVENUE,REDACTED PERSONAL INFORMATION,REDACTED PERSONAL INFORMATION
North East Lincolnshire Council,http://statistics.data.gov.uk/id/local-authority/00FC),Children & Family Services,Ass Dir - Children & Families,Head Of Child Resource & Reg,Other Agencies,Child Care Payments,PJ104,10/12/2018,645331,624,REVENUE,REDACTED PERSONAL INFORMATION,REDACTED PERSONAL INFORMATION
North East Lincolnshire Council,http://statistics.data.gov.uk/id/local-authority/00FC),Children & Family Services,Ass Dir - Children & Families,Head Of Child Resource & Reg,Other Agencies,Child Care Payments,PJ104,10/12/2018,645340,637,REVENUE,REDACTED PERSONAL INFORMATION,REDACTED PERSONAL INFORMATION
North East Lincolnshire Council,http://statistics.data.gov.uk/id/local-authority/00FC),Children & Family Services,Ass Dir - Children & Families,Head Of Child Resource & Reg,Other Agencies,Child Care Payments,PJ104,10/12/2018,645342,1321,REVENUE,REDACTED PERSONAL INFORMATION,REDACTED PERSONAL INFORMATION
North East Lincolnshire Council,http://statistics.data.gov.uk/id/local-authority/00FC),Children & Family Services,Ass Dir - Children & Families,Head Of Child Resource & Reg,Other Agencies,Child Care Payments,PJ104,10/12/2018,645015,671,REVENUE,REDACTED PERSONAL INFORMATION,REDACTED PERSONAL INFORMATION
North East Lincolnshire Council,http://statistics.data.gov.uk/id/local-authority/00FC),Children & Family Services,Ass Dir - Children & Families,Head Of Child Resource & Reg,Other Agencies,Child Care Payments,PJ104,10/12/2018,645017,692,REVENUE,REDACTED PERSONAL INFORMATION,REDACTED PERSONAL INFORMATION
North East Lincolnshire Council,http://statistics.data.gov.uk/id/local-authority/00FC),Children & Family Services,Ass Dir - Children & Families,Head Of Child Resource & Reg,Other Agencies,Child Care Payments,PJ104,10/12/2018,645020,637,REVENUE,REDACTED PERSONAL INFORMATION,REDACTED PERSONAL INFORMATION
North East Lincolnshire Council,http://statistics.data.gov.uk/id/local-authority/00FC),Children & Family Services,Ass Dir - Children & Families,Head Of Child Resource & Reg,Other Agencies,Child Care Payments,PJ104,10/12/2018,645384,346,REVENUE,REDACTED PERSONAL INFORMATION,REDACTED PERSONAL INFORMATION
North East Lincolnshire Council,http://statistics.data.gov.uk/id/local-authority/00FC),Children & Family Services,Ass Dir - Children & Families,Head Of Child Resource & Reg,Other Agencies,Child Care Payments,PJ104,17/12/2018,647093,996,REVENUE,REDACTED PERSONAL INFORMATION,REDACTED PERSONAL INFORMATION
North East Lincolnshire Council,http://statistics.data.gov.uk/id/local-authority/00FC),Children & Family Services,Ass Dir - Children & Families,Head Of Child Resource & Reg,Other Agencies,Child Care Payments,PJ104,17/12/2018,647098,1017,REVENUE,REDACTED PERSONAL INFORMATION,REDACTED PERSONAL INFORMATION
North East Lincolnshire Council,http://statistics.data.gov.uk/id/local-authority/00FC),Children & Family Services,Ass Dir - Children & Families,Head Of Child Resource & Reg,Other Agencies,Child Care Payments,PJ104,17/12/2018,647104,650,REVENUE,REDACTED PERSONAL INFORMATION,REDACTED PERSONAL INFORMATION
North East Lincolnshire Council,http://statistics.data.gov.uk/id/local-authority/00FC),Children & Family Services,Ass Dir - Children & Families,Head Of Child Resource & Reg,Other Agencies,Child Care Payments,PJ104,17/12/2018,647118,1038,REVENUE,REDACTED PERSONAL INFORMATION,REDACTED PERSONAL INFORMATION
North East Lincolnshire Council,http://statistics.data.gov.uk/id/local-authority/00FC),Children & Family Services,Ass Dir - Children & Families,Head Of Child Resource & Reg,Other Agencies,Child Care Payments,PJ104,17/12/2018,647119,1004,REVENUE,REDACTED PERSONAL INFORMATION,REDACTED PERSONAL INFORMATION
North East Lincolnshire Council,http://statistics.data.gov.uk/id/local-authority/00FC),Children & Family Services,Ass Dir - Children & Families,Head Of Child Resource & Reg,Other Agencies,Child Care Payments,PJ104,17/12/2018,647121,996,REVENUE,REDACTED PERSONAL INFORMATION,REDACTED PERSONAL INFORMATION
North East Lincolnshire Council,http://statistics.data.gov.uk/id/local-authority/00FC),Children & Family Services,Ass Dir - Children & Families,Head Of Child Resource & Reg,Other Agencies,Child Care Payments,PJ104,17/12/2018,647126,650,REVENUE,REDACTED PERSONAL INFORMATION,REDACTED PERSONAL INFORMATION
North East Lincolnshire Council,http://statistics.data.gov.uk/id/local-authority/00FC),Children & Family Services,Ass Dir - Children & Families,Head Of Child Resource & Reg,Other Agencies,Child Care Payments,PJ104,17/12/2018,647127,312,REVENUE,REDACTED PERSONAL INFORMATION,REDACTED PERSONAL INFORMATION
North East Lincolnshire Council,http://statistics.data.gov.uk/id/local-authority/00FC),Children & Family Services,Ass Dir - Children & Families,Head Of Child Resource & Reg,Other Agencies,Child Care Payments,PJ104,17/12/2018,647138,975,REVENUE,REDACTED PERSONAL INFORMATION,REDACTED PERSONAL INFORMATION
North East Lincolnshire Council,http://statistics.data.gov.uk/id/local-authority/00FC),Children & Family Services,Ass Dir - Children & Families,Head Of Child Resource & Reg,Other Agencies,Child Care Payments,PJ104,17/12/2018,647146,1004,REVENUE,REDACTED PERSONAL INFORMATION,REDACTED PERSONAL INFORMATION
North East Lincolnshire Council,http://statistics.data.gov.uk/id/local-authority/00FC),Children & Family Services,Ass Dir - Children & Families,Head Of Child Resource & Reg,Other Agencies,Child Care Payments,PJ104,17/12/2018,647166,650,REVENUE,REDACTED PERSONAL INFORMATION,REDACTED PERSONAL INFORMATION
North East Lincolnshire Council,http://statistics.data.gov.uk/id/local-authority/00FC),Children & Family Services,Ass Dir - Children & Families,Head Of Child Resource & Reg,Other Agencies,Child Care Payments,PJ104,17/12/2018,647167,996,REVENUE,REDACTED PERSONAL INFORMATION,REDACTED PERSONAL INFORMATION
North East Lincolnshire Council,http://statistics.data.gov.uk/id/local-authority/00FC),Children & Family Services,Ass Dir - Children & Families,Head Of Child Resource & Reg,Other Agencies,Child Care Payments,PJ104,17/12/2018,647190,719,REVENUE,REDACTED PERSONAL INFORMATION,REDACTED PERSONAL INFORMATION
North East Lincolnshire Council,http://statistics.data.gov.uk/id/local-authority/00FC),Children & Family Services,Ass Dir - Children & Families,Head Of Child Resource & Reg,Other Agencies,Child Care Payments,PJ104,17/12/2018,647191,325,REVENUE,REDACTED PERSONAL INFORMATION,REDACTED PERSONAL INFORMATION
North East Lincolnshire Council,http://statistics.data.gov.uk/id/local-authority/00FC),Children & Family Services,Ass Dir - Children & Families,Head Of Child Resource & Reg,Other Agencies,Child Care Payments,PJ104,17/12/2018,647204,624,REVENUE,REDACTED PERSONAL INFORMATION,REDACTED PERSONAL INFORMATION
North East Lincolnshire Council,http://statistics.data.gov.uk/id/local-authority/00FC),Children & Family Services,Ass Dir - Children & Families,Head Of Child Resource & Reg,Other Agencies,Child Care Payments,PJ104,17/12/2018,647207,637,REVENUE,REDACTED PERSONAL INFORMATION,REDACTED PERSONAL INFORMATION
North East Lincolnshire Council,http://statistics.data.gov.uk/id/local-authority/00FC),Children & Family Services,Ass Dir - Children & Families,Head Of Child Resource & Reg,Other Agencies,Child Care Payments,PJ104,17/12/2018,647209,1321,REVENUE,REDACTED PERSONAL INFORMATION,REDACTED PERSONAL INFORMATION
North East Lincolnshire Council,http://statistics.data.gov.uk/id/local-authority/00FC),Children & Family Services,Ass Dir - Children & Families,Head Of Child Resource & Reg,Other Agencies,Child Care Payments,PJ104,17/12/2018,647244,346,REVENUE,REDACTED PERSONAL INFORMATION,REDACTED PERSONAL INFORMATION
North East Lincolnshire Council,http://statistics.data.gov.uk/id/local-authority/00FC),Children & Family Services,Ass Dir - Children & Families,Head Of Child Resource & Reg,Other Agencies,Child Care Payments,PJ104,17/12/2018,646907,671,REVENUE,REDACTED PERSONAL INFORMATION,REDACTED PERSONAL INFORMATION
North East Lincolnshire Council,http://statistics.data.gov.uk/id/local-authority/00FC),Children & Family Services,Ass Dir - Children & Families,Head Of Child Resource & Reg,Other Agencies,Child Care Payments,PJ104,17/12/2018,646908,346,REVENUE,REDACTED PERSONAL INFORMATION,REDACTED PERSONAL INFORMATION
North East Lincolnshire Council,http://statistics.data.gov.uk/id/local-authority/00FC),Children & Family Services,Ass Dir - Children & Families,Head Of Child Resource & Reg,Other Agencies,Child Care Payments,PJ104,17/12/2018,646909,692,REVENUE,REDACTED PERSONAL INFORMATION,REDACTED PERSONAL INFORMATION
North East Lincolnshire Council,http://statistics.data.gov.uk/id/local-authority/00FC),Children & Family Services,Ass Dir - Children & Families,Head Of Child Resource & Reg,Other Agencies,Child Care Payments,PJ104,17/12/2018,647262,983,REVENUE,REDACTED PERSONAL INFORMATION,REDACTED PERSONAL INFORMATION
